{"text_format":"1","workbook":"xlsx","n_sheets":13,"sheets":["Основные данные","Титульный лист","Описание","Содержание","1","2","3","4","5","6","Подпись","Логический контроль","Справочники"],"not_rendered":{"charts":0,"images":1,"macros":1,"external_links":1,"defined_names":279,"comments":0,"pivot_tables":0},"unopened":[],"bounds":{"document_bytes":16777216,"sheet_cells":100000,"rows_first":2000,"rows_last":500,"rows_between":2000,"halvings":0,"cell_chars":16384,"cell_head_chars":4096},"cells_cut":0,"cells_raw":0,"read":"whole","date_system":"1900"}

{"sheet":"Основные данные","index":0,"n_rows":37,"n_cols":7,"rows_kept":37,"cut":false,"hidden":false,"merged":[[9,1,9,6],[7,1,7,6],[36,0,41,6],[31,0,34,6],[19,1,19,6],[20,1,20,6],[22,1,22,6],[28,0,29,6],[25,0,26,0],[0,0,1,6],[3,0,4,6],[11,1,11,6],[23,1,23,6],[24,1,24,6],[10,1,10,3],[12,1,12,6],[13,1,13,6],[14,1,14,6],[17,1,17,6],[15,1,15,6],[18,1,18,6],[16,1,16,6],[21,1,21,6],[6,1,6,6],[8,1,8,6]]}
["ТБЗ-1 Кәсіпорындарды төлем балансы бойынша тексеру сауалнамасы\nОПБ-1 Анкета обследования предприятий по платежному балансу"]
[]
[]
["Негізгі мәліметтер\nОсновные данные"]
[]
[]
["Есептің коды / Код отчета","opb01_2025"]
["Тілі / Язык заполнения *"]
["Кәсіпорын / Предприятие"]
["БСН / БИН"]
["Кезең / Период","Тоқсан / Квартал",null,null,null,"Жыл / Год"]
["Есепті беру күні / Дата предоставления отчета"]
["Валюта","Доллар США"]
["Басшы немесе есепке қол қою функциясы жүктелген адам\nРуководитель или лицо, на которое возложена функция по подписанию отчета"]
["Бас бухгалтер немесе есепке қол қою функциясы жүктелген адам\nГлавный бухгалтер или лицо, на которое возложена функция по подписанию отчета"]
["Орындаушының аты-жөні / Ф.И.О. Исполнителя"]
["Орындаушының телефоны / Телефон исполнителя"]
["Бастапқы статистикалық деректерді таратуға келісеміз\nСогласны на распространение первичных статистических данных **","Жоқ / Нет (0)"]
["Түсініктемелер\nКомментарий"]
["Мекен-жайы\nАдрес"]
["Телефоны (стационарлық) / Телефон (стационарный)"]
["Телефоны (ұялы) / Телефон (сотовый)"]
["Электрондық пошта мекенжайы (респонденттің)\nАдрес электронной почты (респондента)"]
["Қазақстан Республикасы Ұлттық Банкі толтырады\nЗаполняется Национальным Банком Республики Казахстан"]
["Есепті беру күні / Дата предоставления отчета"]
["Бөлімдер / Разделы",1,2,3,4,5,6]
[]
[]
["* Тілді өзгерткен кезде есептің мәліметтері нөлге аударылады. Есепті толтыра бастамай тілді таңдаңыз.\nПри смене языка данные отчета обнулятся. Выберите язык до начала заполнения отчета"]
[]
[]
["** Аталған тармақ «Мемлекеттік статистика туралы» Қазақстан Республикасының 2010 жылғы 19 наурыздағы Заңының 8-бабының 5-тармағына сәйкес толтырылады\nДанный пункт заполняется согласно пункту 5 статьи 8 Закона Республики Казахстан от 19 марта 2010 года «О государственной статистике»"]
[]
[]
[]
[]
["Мемлекеттік статистиканың тиісті органдарына анық емес бастапқы статистикалық деректерді ұсыну және бастапқы статистикалық деректерді белгіленген мерзімде ұсынбау «Әкімшілік құқық бұзушылық туралы» Қазақстан Республикасы Кодексінің 497-бабында көзделген әкімшілік құқық бұзушылықтар болып табылады\nПредставление недостоверных и непредставление первичных статистических данных в соответствующие органы государственной статистики в установленный срок являются административными правонарушениями, предусмотренными статьей 497 Кодекса Республики Казахстан «Об административных правонарушениях»"]

{"sheet":"Титульный лист","index":1,"n_rows":28,"n_cols":20,"rows_kept":28,"cut":false,"hidden":false,"merged":[[9,12,9,18],[10,12,10,18],[12,0,12,18],[13,0,13,18],[26,3,27,3],[26,4,27,4],[26,9,27,9],[26,10,27,10],[26,5,27,5],[26,6,27,6],[26,7,27,7],[26,8,27,8],[26,11,27,11],[26,12,27,12],[26,13,27,13],[26,14,27,14],[15,3,16,9],[17,3,18,9],[20,0,20,18],[21,0,21,18],[0,15,0,18],[1,15,1,18],[2,15,2,18],[3,15,3,18],[5,12,5,18],[15,14,16,14],[15,15,16,15],[15,16,16,16],[15,17,16,17],[6,12,6,18],[7,12,7,18],[8,12,8,18]]}
[null,null,null,null,null,null,null,null,null,null,null,null,null,null,null,"2025 жылғы 23 маусымдағы № 33"]
[null,null,null,null,null,null,null,null,null,null,null,null,null,null,null,"Қаулыға 31-қосымша"]
[null,null,null,null,null,null,null,null,null,null,null,null,null,null,null,"Приложение 31 к постановлению"]
[null,null,null,null,null,null,null,null,null,null,null,null,null,null,null,"от 23 июня 2025 года № 33"]
[]
[null,null,null,null,null,null,null,null,null,null,null,null,"Ақпаратты алушы органдар құпиялылығына кепілдік береді",null,null,null,null,null,null,"1\n2"]
[null,null,null,null,null,null,null,null,null,null,null,null,"Конфиденциальность гарантируется органами получателями информации",null,null,null,null,null,null,"1\n3"]
[null,null,null,null,null,null,null,null,null,null,null,null,"Ведомстволық статистикалық байқаудың статистикалық нысаны",null,null,null,null,null,null,"1\n4"]
[null,null,null,null,null,null,null,null,null,null,null,null,"Статистическая форма ведомственного статистического наблюдения",null,null,null,null,null,null,"1\n5"]
[null,null,null,null,null,null,null,null,null,null,null,null,"Қазақстан Республикасы Ұлттық Банкінің аумақтық филиалына респонденттің орналасқан жері бойынша ұсынылады",null,null,null,null,null,null,"1\n6"]
[null,null,null,null,null,null,null,null,null,null,null,null,"Представляется территориальному филиалу Национального Банка Республики Казахстан по месту нахождения респондента",null,null,null,null,null,null,"1\n7"]
[]
["Кәсіпорындарды төлем балансы бойынша тексеру сауалнамасы",null,null,null,null,null,null,null,null,null,null,null,null,null,null,null,null,null,null,"1\n7"]
["Анкета обследования предприятий по платежному балансу",null,null,null,null,null,null,null,null,null,null,null,null,null,null,null,null,null,null,"1\n7"]
[]
["Индексі",null,"ТБЗ-1","Қазақстан Республикасы Ұлттық Банкі аумақтық филиалының сұратуы бойынша",null,null,null,null,null,null,null,"Есепті кезең",null,null,{"$f":"LEFT(p1_year,1)","v":""},{"$f":"LEFT(RIGHT(p1_year,3),1)","v":""},{"$f":"LEFT(RIGHT(p1_year,2),1)","v":""},{"$f":"RIGHT(p1_year,1)","v":""},"жыл"]
["Индекс",null,"ОПБ-1",null,null,null,null,null,null,null,null,"Отчетный период",null,null,null,null,null,null,"год"]
[null,null,null,"по запросу территориального филиала Национального Банка Республики Казахстан"]
[]
[]
["Қазақстан Республикасы Ұлттық Банкі аумақтық филиалының сұратуы бойынша заңды тұлғалар ұсынады. Статистикалық нысанды мемлекеттік басқару органдары және банктер ұсынбайды",null,null,null,null,null,null,null,null,null,null,null,null,null,null,null,null,null,null,"1\n7"]
["Представляют юридические лица по запросу территориального филиала Национального Банка Республики Казахстан. Не представляют статистическую форму органы государственного управления и банки",null,null,null,null,null,null,null,null,null,null,null,null,null,null,null,null,null,null,"1\n7"]
[]
["Ұсыну мерзімі – сауалнамада көрсетілген күнге дейін"]
["Срок представления – до даты, указанной в анкете"]
[]
["БСН коды",null,null,{"$f":"LEFT(p1_bin,1)","v":""},{"$f":"LEFT(RIGHT(p1_bin,11),1)","v":""},{"$f":"LEFT(RIGHT(p1_bin,10),1)","v":""},{"$f":"LEFT(RIGHT(p1_bin,9),1)","v":""},{"$f":"LEFT(RIGHT(p1_bin,8),1)","v":""},{"$f":"LEFT(RIGHT(p1_bin,7),1)","v":""},{"$f":"LEFT(RIGHT(p1_bin,6),1)","v":""},{"$f":"LEFT(RIGHT(p1_bin,5),1)","v":""},{"$f":"LEFT(RIGHT(p1_bin,4),1)","v":""},{"$f":"LEFT(RIGHT(p1_bin,3),1)","v":""},{"$f":"LEFT(RIGHT(p1_bin,2),1)","v":""},{"$f":"RIGHT(p1_bin,1)","v":""}]
["Код БИН"," "]

{"sheet":"Описание","index":2,"n_rows":24,"n_cols":7,"rows_kept":24,"cut":false,"hidden":false,"merged":[[13,0,17,13],[18,0,18,13],[20,0,20,13],[21,0,21,13],[0,0,0,13],[1,0,1,13],[3,0,3,13],[4,0,4,13],[6,0,10,13],[11,0,11,13]]}
["Кұрметтi респондент!"]
["Уважаемый респондент!"]
[]
[{"$f":"CONCATENATE(\"Толтырылған статистикалық нысанды \",IF(TEXT(p1_period_date_max,0)=\"0\",\"20___ ж. _____________\",TEXT(p1_period_date_max,\"ДД.ММ.ГГГГ\")),\" дейін қайтаруды сұраймыз.\")","v":"Толтырылған статистикалық нысанды 20___ ж. _____________ дейін қайтаруды сұраймыз."}]
[{"$f":"CONCATENATE(\"Пожалуйста, возвратите заполненную статистическую форму до \",IF(TEXT(p1_period_date_max,0)=\"0\",\"____________20___ г\",TEXT(p1_period_date_max,\"ДД.ММ.ГГГГ\")),\".\")","v":"Пожалуйста, возвратите заполненную статистическую форму до ____________20___ г."}]
[]
["     Осы статистикалық нысан Қазақстанның сыртқы экономикалық шоттарының (төлем балансының және халықаралық инвестициялау позицияның) статистикасын жасау, сондай-ақ осы статистикалық нысанға сәйкес сұралған іріктемелі ақпаратты жаңарту және нақтылау мақсатында статистикалық байқауға енгізілуі тиіс кәсіпорындарды анықтауға арналған. Сыртқы сауда саясаты, шетелдік инвестицияларды қолдау саясаты (несиелерді және сауда кредиттерін қоса алғанда) және теңгенің айырбас бағамы саясаты саласында шешімдер қабылдаудың негізі болып табылатын сыртқы экономикалық шоттарының шынайылығы осы статистикалық нысанды толтыруға байланысты болады."]
[]
[]
[]
[]
["     Тиісті жауаптарға «√» немесе «х» белгісін қоюды және ұсынылған кестелерді толтыруды сұраймыз. "]
[]
["     Данная статистическая форма предназначена для определения организаций, которые включаются в статистическое наблюдение в целях составления статистики внешнеэкономических счетов Казахстана (платежного баланса и международной инвестиционной позиции), а также с целью уточнения и обновления выборочной информации, запрашиваемой в соответствии с настоящей статистической формой. От заполнения данной статистической формы зависит достоверность статистики внешнеэкономических счетов, являющейся основой принятия решений в области внешнеторговой политики, политики поддержки иностранных инвестиций (включая ссуды и торговые кредиты) и политики обменного курса тенге."]
[]
[]
[]
[]
["     Просим проставить знак «√» или «х» в соответствующих ответах и заполнить предлагаемые таблицы."]
[]
["Нысанның келесі бөлімдерін толтыруға/жаңартуға сұраймыз"]
["Пожалуйста, заполните/обновите следующие разделы формы"]
["Бөлімдер",1,2,3,4,5,6]
["Разделы",{"$f":"CONCATENATE(HLOOKUP(B23,p1_part,2,FALSE))","v":""},"","","","",""]

{"sheet":"Содержание","index":3,"n_rows":33,"n_cols":10,"rows_kept":33,"cut":false,"hidden":false,"merged":[[0,0,0,4],[2,0,2,4],[30,3,30,4],[3,3,3,4],[4,3,4,4],[16,3,16,4],[21,3,21,4],[26,0,26,4],[27,3,27,4]]}
["Мазмұны\nСодержание",null,null,null,null,null,{"$f":"CONCATENATE($A$1)","v":"Мазмұны\nСодержание"}]
[]
[null,null,null,null,null,null,{"$f":"CONCATENATE($A$3)","v":""}]
[null,1,"1 - бөлім.\nРаздел 1.","Сіздің ұйымыңыз туралы жалпы ақпарат\nОбщая информация о Вашей организации",null,{"$f":"COUNTA(OFFSET(p5_205_data,ROW(p5_205_indicator_code)-ROW(p5_205_data),COLUMN(p5_205_cols_code)-COLUMN(p5_205_data),ROWS(p5_205_indicator_code),COLUMNS(p5_205_cols_code)))>0","v":false},null,null,{"$f":"CONCATENATE($D$4)","v":"Сіздің ұйымыңыз туралы жалпы ақпарат\nОбщая информация о Вашей организации"},"1\n1"]
[null,2,"2 - бөлім.\nРаздел 2.","Сіздің ұйымыңыздың инвесторлары және инвестициялау объектілері, филиалдары, өкілдіктері мен тел ұйымдары туралы ақпарат\nИнформация об инвесторах и объектах инвестирования, филиалах, представительствах и сестринских организациях Вашей организации",null,{"$f":"OR($F$6,$F$8,$F$11,$F$14,$F$16)","v":false},null,null,{"$f":"CONCATENATE($D$5)","v":"Сіздің ұйымыңыздың инвесторлары және инвестициялау объектілері, филиалдары, өкілдіктері мен тел ұйымдары туралы ақпарат\nИнформация об инвесторах и объектах инвестирования, филиалах, представительствах и сестринских организациях Вашей организации"},"1\n1"]
[null,"2.1",null,"2.1","Сіздің ұйымыңыздың тура инвесторлары туралы ақпарат\nИнформация о непосредственных инвесторах Вашей организации",{"$f":"OR($F$7)","v":false}]
[null,null,null,null,null,{"$f":"NOT(ISERROR(AREAS(p6_219_cols_num)))","v":false}]
[null,"2.2",null,"2.2","Сіздің ұйымыңыздың тура инвестициялау объектілері туралы ақпарат\nИнформация о непосредственных объектах инвестирования Вашей организации",{"$f":"OR($F$9,$F$10)","v":false}]
[null,null,null,null,null,{"$f":"COUNTA(OFFSET(p6_228_data,ROW(p6_228_indicator_code)-ROW(p6_228_data),COLUMN(p6_228_cols_code)-COLUMN(p6_228_data),ROWS(p6_228_indicator_code),COLUMNS(p6_228_cols_code)))>0","v":false}]
[null,null,null,null,null,{"$f":"NOT(ISERROR(AREAS(p6_220_cols_num)))","v":false}]
[null,"2.3",null,"2.3","Сіздің ұйымыңыздың филиалдар мен өкілдіктер туралы ақпарат\nИнформация о филиалах и представительствах Вашей организации",{"$f":"OR($F$12,$F$13)","v":false}]
[null,null,null,null,null,{"$f":"COUNTA(OFFSET(p6_229_data,ROW(p6_229_indicator_code)-ROW(p6_229_data),COLUMN(p6_229_cols_code)-COLUMN(p6_229_data),ROWS(p6_229_indicator_code),COLUMNS(p6_229_cols_code)))>0","v":false}]
[null,null,null,null,null,{"$f":"NOT(ISERROR(AREAS(p6_230_cols_num)))","v":false}]
[null,"2.4",null,"2.4","Сіздің ұйымыңыздың байланыстарының жалпы схемасы\nОбщая схема связей Вашей организации",{"$f":"OR($F$15)","v":false}]
[null,null,null,null,null,{"$f":"NOT(ISERROR(AREAS(p6_231_cols_num)))","v":false}]
[null,"2.5",null,"2.5","Бастапқы инвестор(-лар) туралы ақпарат\nИнформация о первичном(-ых) инвесторе(-ах)",{"$f":"NOT(ISERROR(AREAS(p6_177_cols_num)))","v":false}]
[null,3,"3 - бөлім.\nРаздел 3.","Сіздің ұйымыңыздың талаптары, міндеттемелері және капиталы туралы ақпарат\nИнформация о требованиях, обязательствах и капитале Вашей организации",null,{"$f":"OR($F$18,$F$19,$F$20,$F$21)","v":false},null,null,{"$f":"CONCATENATE($D$17)","v":"Сіздің ұйымыңыздың талаптары, міндеттемелері және капиталы туралы ақпарат\nИнформация о требованиях, обязательствах и капитале Вашей организации"},"1\n1"]
[null,"3.1",null,"3.1","Сіздің ұйымыңыздың сауалнаманы толтыру күнінің жағдайы бойынша  жарғы капиталдың мөлшерін көрсетіңіз\nУкажите размер уставного капитала Вашей организации по состоянию на дату заполнения анкеты",{"$f":"COUNTA(OFFSET(p7_232_data,ROW(p7_232_indicator_code)-ROW(p7_232_data),COLUMN(p7_232_cols_code)-COLUMN(p7_232_data),ROWS(p7_232_indicator_code),COLUMNS(p7_232_cols_code)))>0","v":false}]
[null,"3.2",null,"3.2","Сауалнаманы толтыру күнінің жағдайы бойынша төменде тізімделген қаржылық құралдардың қай түрі бойынша бейрезиденттерге талаптардың және (немесе) бейрезиденттердің алдындағы міндеттемелердің көлемі 50 000 000 теңгенің баламасын асатынын белгілеңіз\nОтметьте, по каким из перечисленных ниже видов финансовых инструментов объемы требований к нерезидентам и (или) обязательств перед нерезидентами по состоянию на дату заполнения анкеты превышают эквивалент 50 000 000 тенге",{"$f":"COUNTA(OFFSET(p7_233_data,ROW(p7_233_indicator_code)-ROW(p7_233_data),COLUMN(p7_233_cols_code)-COLUMN(p7_233_data),ROWS(p7_233_indicator_code),COLUMNS(p7_233_cols_code)))>0","v":false}]
[null,"3.3",null,"3.3","Бірлескен қызмет туралы шарттар\nДоговоры о совместной деятельности",{"$f":"COUNTA(OFFSET(p7_234_data,ROW(p7_234_indicator_code)-ROW(p7_234_data),COLUMN(p7_234_cols_code)-COLUMN(p7_234_data),ROWS(p7_234_indicator_code),COLUMNS(p7_234_cols_code)))>0","v":false}]
[null,"3.4",null,"3.4","Қызметкерлерге берілетін бейрезидент бас компанияның акцияларына опциондар. 2.1-тармағында көрсетілген бейрезидент инвесторлар бар болса, толтырылады\nОпционы сотрудникам на акции головной компании-нерезидента. Заполняется в случае наличия инвесторов-нерезидентов, указанных в пункте 2.1.",{"$f":"COUNTA(OFFSET(p7_235_data,ROW(p7_235_indicator_code)-ROW(p7_235_data),COLUMN(p7_235_cols_code)-COLUMN(p7_235_data),ROWS(p7_235_indicator_code),COLUMNS(p7_235_cols_code)))>0","v":false}]
[null,4,"4 - бөлім.\nРаздел 4.","Сіздің ұйымыңыздың бейрезиденттермен операциялары туралы ақпарат\nИнформация об операциях Вашей организации с нерезидентами",null,{"$f":"OR($F$23,$F$24,$F$25,$F$26)","v":false},null,null,{"$f":"CONCATENATE($D$22)","v":"Сіздің ұйымыңыздың бейрезиденттермен операциялары туралы ақпарат\nИнформация об операциях Вашей организации с нерезидентами"},"1\n1"]
[null,"4.1",null,"4.1","20___ж. тауарлармен сыртқы сауда\nВнешняя торговля товарами в 20___г.",{"$f":"COUNTA(OFFSET(p8_236_data,ROW(p8_236_indicator_code)-ROW(p8_236_data),COLUMN(p8_236_cols_code)-COLUMN(p8_236_data),ROWS(p8_236_indicator_code),COLUMNS(p8_236_cols_code)))>0","v":false}]
[null,"4.2",null,"4.2","20___ж. қызметтермен сыртқы сауда\nВнешняя торговля услугами в 20___г.",{"$f":"COUNTA(OFFSET(p8_237_data,ROW(p8_237_indicator_code)-ROW(p8_237_data),COLUMN(p8_237_cols_code)-COLUMN(p8_237_data),ROWS(p8_237_indicator_code),COLUMNS(p8_237_cols_code)))>0","v":false}]
[null,"4.2.3",null,"4.2.3","Экспорттың немесе импорттың көлемі 5 000 000 теңгеден асқан қызметтер түрлерін көрсетіңіз\nУкажите, пожалуйста, виды услуг, по которым объем экспорта или импорта превысил 5 000 000 тенге",{"$f":"COUNTA(OFFSET(p8_238_data,ROW(p8_238_indicator_code)-ROW(p8_238_data),COLUMN(p8_238_cols_code)-COLUMN(p8_238_data),ROWS(p8_238_indicator_code),COLUMNS(p8_238_cols_code)))>0","v":false}]
[null,"4.3",null,"4.3","Шетелдік жұмыс күшін пайдалану\nИспользование иностранной рабочей силы",{"$f":"COUNTA(OFFSET(p8_239_data,ROW(p8_239_indicator_code)-ROW(p8_239_data),COLUMN(p8_239_cols_code)-COLUMN(p8_239_data),ROWS(p8_239_indicator_code),COLUMNS(p8_239_cols_code)))>0","v":false}]
[null,null,null,null,null,null,{"$f":"CONCATENATE($A$3)","v":""}]
[null,5,"5 - бөлім.\nРаздел 5.","Берешекті өтеу графигі\nГрафик погашения задолженности",null,{"$f":"OR($F$29,$F$30)","v":false},null,null,{"$f":"CONCATENATE($D$28)","v":"Берешекті өтеу графигі\nГрафик погашения задолженности"},"1\n1"]
[null,"5.1",null,"5.1","«Бейрезиденттерге қойылатын қаржылық талаптар және олардың алдындағы міндеттемелер туралы есепте» (индексі 1-ТБ, кезеңділігі тоқсандық) (бұдан әрі – 1-ТБ) көрсетілген берешек туралы ақпарат, өтеу графигін осы есеп бойынша ұсыну қажет (Ұлттық Банк толтырады)\nИнформация о задолженности, отраженной в «Отчете о финансовых требованиях к нерезидентам и обязательствах перед ними» (индекс 1-ПБ, периодичность квартальная) (далее – 1-ПБ), по которой необходимо представить график погашения (заполняется Национальным Банком)",{"$f":"COUNTA(OFFSET(p9_240_data,ROW(p9_240_indicator_code)-ROW(p9_240_data),COLUMN(p9_240_cols_code)-COLUMN(p9_240_data),ROWS(p9_240_indicator_code),COLUMNS(p9_240_cols_code)))>0","v":false}]
[null,"5.2",null,"5.2","Берешекті өтеу графигі (мың АҚШ долл.)\nГрафик погашения задолженности (в тыс. долл. США)",{"$f":"NOT(ISERROR(AREAS(p9_241_pb_str)))","v":false}]
[null,6,"6 - бөлім.\nРаздел 6.","Берешектің валюталық құрылымы\nВалютная структура задолженности",null,{"$f":"OR($F$32,$F$33)","v":false},null,null,{"$f":"CONCATENATE($D$31)","v":"Берешектің валюталық құрылымы\nВалютная структура задолженности"},"1\n1"]
[null,"6.1",null,"6.1","«Бейрезиденттерге қойылатын қаржылық талаптар және олардың алдындағы міндеттемелер туралы есепте» (индексі 1-ТБ, кезеңділігі тоқсандық) көрсетілген берешек туралы ақпарат, валюталық құрылымды осы есеп бойынша ұсыну қажет (Ұлттық Банк толтырады)\nИнформация о задолженности, отраженной в «Отчете о финансовых требованиях к нерезидентам и обязательствах перед ними» (индекс 1-ПБ, периодичность квартальная), по которой представляется валютная структура (заполняется Национальным Банком)",{"$f":"COUNTA(OFFSET(p10_242_data,ROW(p10_242_indicator_code)-ROW(p10_242_data),COLUMN(p10_242_cols_code)-COLUMN(p10_242_data),ROWS(p10_242_indicator_code),COLUMNS(p10_242_cols_code)))>0","v":false}]
[null,"6.2",null,"6.2","Берешектің валюталық құрылымы (мың АҚШ долл.)\nВалютная структура задолженности (в тыс. долл. США)",{"$f":"NOT(ISERROR(AREAS(p10_243_pb_str)))","v":false}]

{"sheet":"1","index":4,"n_rows":31,"n_cols":5,"rows_kept":31,"cut":false,"hidden":false,"merged":[[0,3,0,4]]}
["1 - бөлім. Сіздің ұйымыңыз туралы жалпы ақпарат\nРаздел 1. Общая информация о Вашей организации",null,null,"1 - бөлім. Сіздің ұйымыңыз туралы жалпы ақпарат\nРаздел 1. Общая информация о Вашей организации"]
[null,null,"Жол коды\nКод строки","Көрсеткіш атауы\nНаименование показателя","Мәні\nЗначение"]
[null,null,null,"А",10001]
[null,null,11000,"1.1. Келесі мәліметтерді көрсетіңіз\n1.1. Укажите следующие данные"]
[null,null,11001,"     Пошталық индексі\n     Почтовый индекс"]
[null,null,11002,"     Облысы\n     Область"]
[null,null,11003,"     Қаласы, ауданы (немесе қаланың ауданы)\n     Город, район (или район города)"]
[null,null,11004,"     Елді мекен (ауыл)\n     Населенный пункт (село)"]
[null,null,11005,"     Мекенжайы (көшесі, даңғылы)\n     Местонахождение (улица, проспект)"]
[null,null,11006,"     Үйдің және офистің (пәтердің) номері\n     Номер дома и офиса (квартиры)"]
[null,null,11007,"     Телефоны\n     Телефон"]
[null,null,11008,"     Факс"]
[null,null,11009,"     Электрондық поштаның мекенжайы\n     Почтовый электронный адрес"]
[null,null,11010,"     Ұйымның ресми сайты (бар болған жағдайда)\n     Официальный сайт организации (при наличии)"]
[null,null,12000,"1.2. Есептілікті Қазақстан Республикасы Ұлттық Банке ұсыну\n1.2. Представление отчетности в Национальный Банк"]
[null,null,12100,"     1.2.1. Сізге ыңғайлы есептілікті ұсыну тәсілдерін көрсетуді сұраймыз (бірнеше жауаптарды таңдауға болады)\n     1.2.1. Укажите, пожалуйста, удобные варианты представления отчетности (можно выбрать несколько ответов)"]
["2\n1",null,12101,"          Электрондық цифрлық қолтаңбамен (ЭЦҚ) растау рәсімдерін сақтай отырып,  Интернет желісі арқылы электрондық түрде\n          В электронном виде посредством сети Интернет с подтверждением электронно-цифровой подписью (ЭЦП)"]
["2\n1",null,12102,"          Қағаз тасығышта\n          На бумажном носителе"]
["2\n1",null,12103,"          Басқа (көрсетіңіз)\n          Иное (укажите)"]
[null,null,12104,"               (көрсетіңіз)\n               (укажите)"]
[null,null,12200,"     1.2.2. Сіздің ұйымыңыздың Интернет желісіне шығу мүмкіндігі бар ма?\n     1.2.2. Имеет ли Ваша организация доступ к сети Интернет?"]
["2\n1",null,12201,"          Иә\n          Да"]
["2\n1",null,12202,"          Жоқ\n          Нет"]
[null,null,12300,"     1.2.3. Сіздің ұйымыңыздың ЭЦҚ-сы бар ма?\n     1.2.3. Имеет ли Ваша организация ЭЦП?"]
["2\n1",null,12301,"          Иә\n          Да"]
["2\n1",null,12302,"          Жоқ\n          Нет"]
[null,null,12400,"     1.2.4. Сіздің ұйымыңыз үшін қай органның ЭЦҚ-сы арқылы есепті ұсыну ыңғайлы?\n     1.2.4. Представление отчетов посредством ЭЦП какого органа для Вашей организации более удобно?"]
["2\n1",null,12401,"          Қазақстан Республикасы Ұлттық куәландырушы орталығының (ҰКО) ЭЦҚ-сы\n          ЭЦП Национального удостоверяющего центра Республики Казахстан (НУЦ)"]
["2\n1",null,12402,"          «Қазақстан Республикасы Ұлттық Банкінің Қазақстан Банкаралық Есеп Айырысу Орталығы» МРК-ның  (ҚБЕО) ЭЦҚ-сы\n          ЭЦП РГП «Казахстанский центр межбанковских расчетов Национального Банка Республики Казахстан» (КЦМР)"]
["2\n1",null,12403,"          Басқа (көрсетіңіз)\n          Иное (укажите)"]
[null,null,12404,"               (көрсетіңіз)\n               (укажите)"]

{"sheet":"2","index":5,"n_rows":49,"n_cols":10,"rows_kept":49,"cut":false,"hidden":false,"merged":[[44,3,44,9],[8,3,8,9],[9,3,9,9],[16,3,16,9],[22,3,22,9],[30,3,30,9],[36,3,36,9],[39,3,40,3],[0,3,0,9],[1,3,1,9],[2,3,2,9],[39,7,39,8],[37,3,37,9],[39,2,40,2],[39,6,40,6],[39,4,40,4],[39,5,40,5],[23,3,23,9]]}
["2 - бөлім. Сіздің ұйымыңыздың инвесторлары және инвестициялау объектілері, филиалдары, өкілдіктері мен тел ұйымдары туралы ақпарат\nРаздел 2. Информация об инвесторах и объектах инвестирования, филиалах, представительствах и сестринских организациях Вашей организации",null,null,"2 - бөлім. Сіздің ұйымыңыздың инвесторлары және инвестициялау объектілері, филиалдары, өкілдіктері мен тел ұйымдары туралы ақпарат\nРаздел 2. Информация об инвесторах и объектах инвестирования, филиалах, представительствах и сестринских организациях Вашей организации"]
["2.1 Сіздің ұйымыңыздың тура инвесторлары туралы ақпарат\n2.1 Информация о непосредственных инвесторах Вашей организации",null,null,"2.1 Сіздің ұйымыңыздың тура инвесторлары туралы ақпарат\n2.1 Информация о непосредственных инвесторах Вашей организации"]
["2.1.1 Сауалнаманы толтыру күнінің жағдайы бойынша Сіздің ұйымыңыздағы үлеске тура ие болып табылатын бар акционер инвесторларды/қатысушыларды атап шығыңыз\n2.1.1 Перечислите всех инвесторов-акционеров/участников, непосредственно владеющих долей в Вашей организации по состоянию на дату заполнения анкеты",null,null,"2.1.1 Сауалнаманы толтыру күнінің жағдайы бойынша Сіздің ұйымыңыздағы үлеске тура ие болып табылатын бар акционер инвесторларды/қатысушыларды атап шығыңыз\n2.1.1 Перечислите всех инвесторов-акционеров/участников, непосредственно владеющих долей в Вашей организации по состоянию на дату заполнения анкеты"]
[]
[null,null,"2\n1","№","Инвестордың атауы/Тегі, аты, әкесінің аты (бар болған жағдайда) (бұдан әрі – Т.А.Ә.)\nНаименование/Фамилия, имя, отчество (при наличии) (далее – Ф.И.О.) инвестора","Заңды тұлғаның тіркеу елі/ жеке тұлғаның азаматтығы\nСтрана регистрации юридического лица/ гражданства физического лица","БСН/ЖСН/шет елдердің заңнамасына тіркеусәйкестендіру нөмері (бұдан әрі – ТСН) (ТСН туралы ақпарат бар болған жағдайда)\nБИН/ИИН/ идентификационный номеррегистрации, присваиваемый в соответствии с законодательством иностранного государства (далее – ИНР) (при наличииинформации об ИНР)","Заңды тұлға орналасқан мекенжай/ жеке тұлға тұратын мекенжай\nАдрес местонахождения юридического лица/ страна и адрес проживания физического лица","Инвестордың Сіздің ұйымыңыздың жарғы капиталындағы үлесі (%)\nДоля инвестора в уставном капитале Вашей организации (%)","Инвестор ие болуға бастайтын күн\nДата начала владения инвестором"]
[null,null,"","А","Б","1","2","3","4","5"]
[null,null,"","А","2110Б","21101","21102","21103","21104","21105"]
[]
["2.2 Сіздің ұйымыңыздың тура инвестициялау объектілері туралы ақпарат\n2.2 Информация о непосредственных объектах инвестирования Вашей организации",null,null,"2.2 Сіздің ұйымыңыздың тура инвестициялау объектілері туралы ақпарат\n2.2 Информация о непосредственных объектах инвестирования Вашей организации"]
["2.2.1 Сіздің ұйымыңыз сауалнаманы толтыру күнінің жағдайы бойынша басқа ұйымдардың акцияларына (қатысу үлестеріне) ие болады ма?\n2.2.1 Владеет ли Ваша организация акциями (долями участия) других организаций по состоянию на дату заполнения анкеты?",null,null,"2.2.1 Сіздің ұйымыңыз сауалнаманы толтыру күнінің жағдайы бойынша басқа ұйымдардың акцияларына (қатысу үлестеріне) ие болады ма?\n2.2.1 Владеет ли Ваша организация акциями (долями участия) других организаций по состоянию на дату заполнения анкеты?"]
[null,null,"Жол коды\nКод строки","Көрсеткіш атауы\nНаименование показателя","Мәні\nЗначение"]
[null,null,null,"А",22001]
["2\n1",null,22111,"     Иә\n     Да"]
["2\n1",null,22112,"     Жоқ\n     Нет"]
[null,null,22120,"Егер жауабыңыз «Иә» болса, 2.2.2-тармақты толтыруға көшіңіз, жауабыңыз «Жоқ» болса - 2.3-тармақты толтыруға көшіңіз.\nЕсли ответ «Да», перейдите к заполнению пункта 2.2.2, если ответ «Нет» - к заполнению пункта 2.3."]
[]
["2.2.2 Сауалнаманы толтыру күнінің жағдайы бойынша Сіздің ұйымыңыз үлесіне тура ие болып табылатын бар ұйымдар - инвестициялау объектілерін атап шығыңыз\n2.2.2 Перечислите все объекты инвестирования-организации, доля в которых непосредственно принадлежит Вашей организации по состоянию на дату заполнения анкеты",null,null,"2.2.2 Сауалнаманы толтыру күнінің жағдайы бойынша Сіздің ұйымыңыз үлесіне тура ие болып табылатын бар ұйымдар - инвестициялау объектілерін атап шығыңыз\n2.2.2 Перечислите все объекты инвестирования-организации, доля в которых непосредственно принадлежит Вашей организации по состоянию на дату заполнения анкеты"]
[]
[null,null,"2\n1","№","Инвестициялау объектісінің атауы\nНаименование объекта инвестирования","Инвестициялау объектісінің тіркеу елі\nСтрана регистрации объекта инвестирования","БСН/ ТСН\nБИН/ ИНР","Инвестициялау объектісі орналасқан мекенжай\nАдрес местонахождения объекта инвестирования","Сіздің ұйымыңыздың инвестициялау объектісінің жарғы капиталындағы үлесі (%)\nДоля Вашей организации в капитале объекте инвестирования (%)","Инвестициялау объектісіне ие болуға бастайтын күн\nДата начала владения объектом инвестирования"]
[null,null,"","А","Б","1","2","3","4","5"]
[null,null,"","А","2220Б","22201","22202","22203","22204","22205"]
[]
["2.3 Сіздің ұйымыңыздың филиалдар мен өкілдіктер туралы ақпарат\n2.3 Информация о филиалах и представительствах Вашей организации",null,null,"2.3 Сіздің ұйымыңыздың филиалдар мен өкілдіктер туралы ақпарат\n2.3 Информация о филиалах и представительствах Вашей организации"]
["2.3.1 Сіздің ұйымыңыз сауалнаманы толтыру күнінің жағдайы бойынша филиалдар мен өкілдіктерге ие болады ма?\n2.3.1 Имеет ли Ваша организация филиалы, представительства за рубежом по состоянию на дату заполнения анкеты?",null,null,"2.3.1 Сіздің ұйымыңыз сауалнаманы толтыру күнінің жағдайы бойынша филиалдар мен өкілдіктерге ие болады ма?\n2.3.1 Имеет ли Ваша организация филиалы, представительства за рубежом по состоянию на дату заполнения анкеты?"]
[null,null,"Жол коды\nКод строки","Көрсеткіш атауы\nНаименование показателя","Мәні\nЗначение"]
[null,null,null,"А",23001]
["2\n1",null,23111,"     Иә\n     Да"]
["2\n1",null,23112,"     Жоқ\n     Нет"]
[null,null,23120,"Егер жауабыңыз «Иә» болса, 2.3.2-тармақты толтыруға көшіңіз, жауабыңыз «Жоқ» болса - 2.4-тармақты толтыруға көшіңіз\nЕсли ответ «Да» перейдите к заполнению пункта 2.3.2, если ответ «Нет» - к заполнению пункта 2.4."]
[]
["2.3.2 Сауалнаманы толтыру күнінің жағдайы бойынша Сіздің ұйымыңыз ие болып табылатын бар филиалдар мен өкілдіктерді атап шығыңыз\n2.3.2 Перечислите филиалы и представительства Вашей организации за рубежом по состоянию на дату заполнения анкеты",null,null,"2.3.2 Сауалнаманы толтыру күнінің жағдайы бойынша Сіздің ұйымыңыз ие болып табылатын бар филиалдар мен өкілдіктерді атап шығыңыз\n2.3.2 Перечислите филиалы и представительства Вашей организации за рубежом по состоянию на дату заполнения анкеты"]
[]
[null,null,"2\n1","№","Филиалың, өкілдіктің атауы\nНаименование филиала, представительства","Филиалың, өкілдіктің тіркеу елі\nСтрана регистрации филиала, представительства","ТСН\nИНР","Филиал, өкілдік орналасқан мекенжай\nАдрес местонахождения филиала, представительства","Филиал, өкілдік құрылған күні\nДата создания филиала, представительства"]
[null,null,"","А","Б","1","2","3","4"]
[null,null,"","А","2320Б","23201","23202","23203","23204"]
[]
["2.4 Сіздің ұйымыңыздың байланыстарының жалпы схемасы\n2.4 Общая схема связей Вашей организации",null,null,"2.4 Сіздің ұйымыңыздың байланыстарының жалпы схемасы\n2.4 Общая схема связей Вашей организации"]
["2.4.1 Сауалнаманы толтыру күнінің жағдайы бойынша иелік иерархияға сәйкес Сіздің ұйымыңыздың байланыстар жалпы тәсімі бойынша (Сіздің ұйымыңыз ұйымыңыз кіретін Топ бойынша) кестені толтырыңыз. Кестені толтыру үшін үлгісі осы нысанды толтыру бойынша Нұсқаулықтың 6-тармағынды келтірген\n2.4.1 Заполните таблицу по общей схеме связей Вашей организации (по Группе, в которую входит Ваша организация) в соответствии с иерархией владения по состоянию на дату заполнения анкеты. Пример для заполнения таблицы приведен в пункте 6 Инструкции по заполнению настоящей формы",null,null,"2.4.1 Сауалнаманы толтыру күнінің жағдайы бойынша иелік иерархияға сәйкес Сіздің ұйымыңыздың байланыстар жалпы тәсімі бойынша (Сіздің ұйымыңыз ұйымыңыз кіретін Топ бойынша) кестені толтырыңыз. Кестені толтыру үшін үлгісі осы нысанды толтыру бойынша Нұсқаулықтың 6-тармағынды келтірген\n2.4.1 Заполните таблицу по общей схеме связей Вашей организации (по Группе, в которую входит Ваша организация) в соответствии с иерархией владения по состоянию на дату заполнения анкеты. Пример для заполнения таблицы приведен в пункте 6 Инструкции по заполнению настоящей формы"]
[]
["1\n2",null,"№","Топқа кіретін заңды тұлғаның атауы/ жеке тұлғаның Т.А.Ә.\nНаименование юридического лица/ Ф.И.О физического лица, находящегося в Группе","Заңды тұлғаның тіркеу елі/ жеке тұлғаның азаматтығы\nСтрана регистрации юридического лица/ гражданства физического лица","БСН/ ЖСН/ ТСН (ТСН туралы ақпараттың бар болған жағдайында)\nБИН/ ИИН/ ИНР (при наличии информации об ИНР)","А – В-бағандарда көрсетілген заңды тұлғаларға берілетін реттік номер\nПорядковый номер, присваиваемый юридическим лицам, указанным в столбцах А – В","А – В-бағандарда көрсетілген заңды тұлғаларда үлестерге тура ие болатын инвесторлар\nИнвесторы, непосредственно владеющие долями в юридических лицах, указанных в столбцах А – В"]
[null,null,null,null,null,null,null,"А-бағандағы инвестордың атауы және (немесе) 1-бағандағы инвестордың номері\nНаименование инвестора из столбца А и (или) номер инвестора из столбца 1","инвестордың үлесі (%)\nдоля инвестора (%)"]
[null,null,"А","А","Б","В","1","2","3"]
[null,null,"А","2410А","2410Б","2410В","24101","24112","24113"]
[]
["2.5 Бастапқы инвестор(-лар) туралы ақпарат\n2.5 Информация о первичном(-ых) инвесторе(-ах)",null,null,"2.5 Бастапқы инвестор(-лар) туралы ақпарат\n2.5 Информация о первичном(-ых) инвесторе(-ах)"]
[]
[null,null,"2\n1","№","Бастапқы инвестордың атауы/ Т.А.Ә.\nНаименование/ Ф.И.О. первичного инвестора","Заңды тұлғаның тіркеу елі/ жеке тұлғаның азаматтығы\nСтрана регистрации юридического лица/ гражданства физического лица","БСН/ ЖСН/ ТСН\nБИН/ ИИН/ ИНР (при наличии информации об ИНР)"]
[null,null,"","А","Б","1","2"]
[null,null,"","А","2500Б","25001","25002"]

{"sheet":"3","index":6,"n_rows":35,"n_cols":7,"rows_kept":35,"cut":false,"hidden":false,"merged":[[7,3,7,6],[1,3,1,6],[0,3,0,6],[20,3,20,6],[29,3,29,6]]}
["3 - бөлім. Сіздің ұйымыңыздың талаптары, міндеттемелері және капиталы туралы ақпарат\nРаздел 3. Информация о требованиях, обязательствах и капитале Вашей организации",null,null,"3 - бөлім. Сіздің ұйымыңыздың талаптары, міндеттемелері және капиталы туралы ақпарат\nРаздел 3. Информация о требованиях, обязательствах и капитале Вашей организации"]
["3.1 Сіздің ұйымыңыздың сауалнаманы толтыру күнінің жағдайы бойынша  жарғы капиталдың мөлшерін көрсетіңіз\n3.1 Укажите размер уставного капитала Вашей организации по состоянию на дату заполнения анкеты",null,null,"3.1 Сіздің ұйымыңыздың сауалнаманы толтыру күнінің жағдайы бойынша  жарғы капиталдың мөлшерін көрсетіңіз\n3.1 Укажите размер уставного капитала Вашей организации по состоянию на дату заполнения анкеты"]
[null,null,"Жол коды\nКод строки","Көрсеткіш атауы\nНаименование показателя","Мәні\nЗначение"]
[null,null,null,"А",31001]
[null,null,31100,"Барлығы, жарғы капитал (теңге)\nВсего, уставный капитал (тенге)"]
[null,null,31110,"оның ішінде төленген (теңге)\nв том числе оплаченный (тенге)"]
[]
["3.2 Сауалнаманы толтыру күнінің жағдайы бойынша төменде тізімделген қаржылық құралдардың қай түрі бойынша бейрезиденттерге талаптардың және (немесе) бейрезиденттердің алдындағы міндеттемелердің көлемі 50 000 000 теңгенің баламасын асатынын белгілеңіз\n3.2 Отметьте, по каким из перечисленных ниже видов финансовых инструментов объемы требований к нерезидентам и (или) обязательств перед нерезидентами по состоянию на дату заполнения анкеты превышают эквивалент 50 000 000 тенге",null,null,"3.2 Сауалнаманы толтыру күнінің жағдайы бойынша төменде тізімделген қаржылық құралдардың қай түрі бойынша бейрезиденттерге талаптардың және (немесе) бейрезиденттердің алдындағы міндеттемелердің көлемі 50 000 000 теңгенің баламасын асатынын белгілеңіз\n3.2 Отметьте, по каким из перечисленных ниже видов финансовых инструментов объемы требований к нерезидентам и (или) обязательств перед нерезидентами по состоянию на дату заполнения анкеты превышают эквивалент 50 000 000 тенге"]
[null,null,"Жол коды\nКод строки"," ","Бейрезиденттерге талаптар\nТребования к нерезидентам","Бейрезиденттердің алдындағы міндеттемелер\nОбязательства перед нерезидентами","Ескертпе\nПримечание"]
[null,null,null,"А",32001,32002,32003]
["2\n1",null,32100,"Кассадағы қолма-қол шетелдік валюта\nНаличная иностранная валюта в кассе"]
["2\n1",null,32200,"Депозиттер, ағымдағы шоттар және түсімдер\nДепозиты, текущие счета и вклады"]
["2\n1",null,32300,"Үлестік құралдар (акциялар, қатысу үлестер, үлеспұлдар)\nДолевые инструменты (акции, доли участия, паи)"]
["2\n1",null,32400,"Борыштық бағалы қағаздар\nДолговые ценные бумаги"]
["2\n1",null,32500,"Сауда (коммерциялық) кредиттер мен аванстар\nТорговые (коммерческие) кредиты и авансы"]
["2\n1",null,32600,"Заемдар\nЗаймы"]
["2\n1",null,32700,"Басқа кредиторлық/ дебиторлық берешек\nПрочая кредиторская/ дебиторская задолженность"]
["2\n1",null,32800,"Басқа (көрсетіңіз)\nПрочее (укажите)"]
[null,null,32810,"     (көрсетіңіз)\n     (укажите)"]
[]
["3.3 Бірлескен қызмет туралы шарттар\n3.3 Договоры о совместной деятельности",null,null,"3.3 Бірлескен қызмет туралы шарттар\n3.3 Договоры о совместной деятельности"]
[null,null,"Жол коды\nКод строки","Көрсеткіш атауы\nНаименование показателя","Мәні\nЗначение"]
[null,null,null,"А",33001]
[null,null,33110,"3.3.1. Сіздің ұйымыңызда сауалнаманы толтыру күнінің жағдайы бойынша бейрезиденттермен қолданыстағы бірлескен қызмет туралы шарттар (заңды тұлғаны құруысыз) бар ма?\n3.3.1. Имеет ли Ваша организация действующие договоры о совместной деятельности с нерезидентами (без образования юридического лица) на дату заполнения анкеты?"]
["2\n1",null,33111,"     Иә\n     Да"]
["2\n1",null,33112,"     Жоқ\n     Нет"]
[null,null,33113,"Егер жауабыңыз «Иә» болса, 3.3.2-тармақты толтыруға көшіңіз, жауабыңыз «Жоқ» болса - 3.4-тармақты толтыруға көшіңіз.\nЕсли ответ «Да» перейдите к заполнению пункта 3.3.2, если ответ «Нет» - к заполнению пункта 3.4."]
[null,null,33210,"3.3.2. Бірлескен қызметтің затын (іске асыру саласын) көрсетіңіз\n3.3.2. Укажите предмет (сферу осуществления) совместной деятельности"]
[]
["3.4 Қызметкерлерге берілетін бейрезидент бас компанияның акцияларына опциондар. 2.1-тармағында көрсетілген бейрезидент инвесторлар бар болса, толтырылады\n3.4 Опционы сотрудникам на акции головной компании-нерезидента. Заполняется в случае наличия инвесторов-нерезидентов, указанных в пункте 2.1.",null,null,"3.4 Қызметкерлерге берілетін бейрезидент бас компанияның акцияларына опциондар. 2.1-тармағында көрсетілген бейрезидент инвесторлар бар болса, толтырылады\n3.4 Опционы сотрудникам на акции головной компании-нерезидента. Заполняется в случае наличия инвесторов-нерезидентов, указанных в пункте 2.1."]
[null,null,"Жол коды\nКод строки","Көрсеткіш атауы\nНаименование показателя","Мәні\nЗначение"]
[null,null,null,"А",34001]
[null,null,34100,"Сіздің ұйымыңызда бейрезидент бас компанияның акцияларына опциондарды ұсыну түрінде өз қызметкерлерін көтермелеу тәжірибесі бар ма?\nСуществует ли в Вашей организации практика поощрения своих сотрудников в виде представления опционов на акции головной компании-нерезидента?"]
["2\n1",null,34110,"     Иә\n     Да"]
["2\n1",null,34120,"     Жоқ\n     Нет"]

{"sheet":"4","index":7,"n_rows":76,"n_cols":6,"rows_kept":76,"cut":false,"hidden":false,"merged":[[68,3,68,5],[1,3,1,5],[0,3,0,5],[50,3,50,5],[30,3,30,5]]}
["4 - бөлім. Сіздің ұйымыңыздың бейрезиденттермен операциялары туралы ақпарат\nРаздел 4. Информация об операциях Вашей организации с нерезидентами",null,null,"4 - бөлім. Сіздің ұйымыңыздың бейрезиденттермен операциялары туралы ақпарат\nРаздел 4. Информация об операциях Вашей организации с нерезидентами"]
["4.1 20___ж. тауарлармен сыртқы сауда\n4.1 Внешняя торговля товарами в 20___г.",null,null,"4.1 20___ж. тауарлармен сыртқы сауда\n4.1 Внешняя торговля товарами в 20___г."]
[null,null,"Жол коды\nКод строки","Көрсеткіш атауы\nНаименование показателя","Мәні\nЗначение"]
[null,null,null,"А",41001]
[null,null,"4100-2","4.1. 20___ж. тауарлармен сыртқы сауда.\n4.1. Внешняя торговля товарами в 20___г."]
[null,null,411000,"4.1.1. Сіздің ұйымыңыз тауар экспортымен немесе импортымен қарастырылған кезеңде айналысты ма?\n4.1.1. Занималась ли Ваша организация экспортом или импортом товаров в рассматриваемом периоде?"]
["2\n1",null,411010,"     Иә\n     Да"]
["2\n1",null,411020,"     Жоқ\n     Нет"]
[null,null,411030,"Егер жауабыңыз «Иә» болса  4.1.1.1-тармақты толтыруға көшіңіз, егер жауабыңыз  «Жоқ» болса - 4.1.2- тармақты толтыруға көшіңіз.\nЕсли ответ «Да» перейдите к заполнению пункта 4.1.1.1, если ответ «Нет» - к заполнению пункта 4.1.2."]
[null,null,411100,"4.1.1.1. Өтінеміз, тиісті көлемін көрсетіңіз (теңге)\n4.1.1.1. Пожалуйста, укажите соответствующий объем (тенге)"]
[null,null,411110,"     Тауар экспорты\n     Экспорт товаров"]
["2\n1",null,411111,"          5 000 000 - нан аз\n          менее 5 000 000"]
["2\n1",null,411112,"          5 000 000 - нан  50 000 000 дейін\n          от 5 000 000 до 50 000 000"]
["2\n1",null,411113,"          50 000 000 - нан  500 000 000 дейін\n          от 50 000 000 до 500 000 000"]
["2\n1",null,411114,"          500 000 000 және одан көп\n          500 000 000 и более"]
[null,null,411120,"     Тауар импорты\n     Импорт товаров"]
["2\n1",null,411121,"          5 000 000 - нан аз\n          менее 5 000 000"]
["2\n1",null,411122,"          5 000 000 - нан  50 000 000 дейін\n          от 5 000 000 до 50 000 000"]
["2\n1",null,411123,"          50 000 000 - нан  500 000 000 дейін\n          от 50 000 000 до 500 000 000"]
["2\n1",null,411124,"          500 000 000 және одан көп\n          500 000 000 и более"]
[null,null,412000,"4.1.2. Сіздің ұйымыңыз қарастырылған кезеңде бейрезиденттерден алынған тауарларды қайта өңдеумен немесе жөндеумен айналысты ма?\n4.1.2. Занималась ли Ваша организация переработкой или ремонтом товаров, полученных от нерезидентов, в рассматриваемом периоде?"]
["2\n1",null,412010,"     Иә\n     Да"]
["2\n1",null,412020,"     Жоқ\n     Нет"]
[null,null,413000,"4.1.3. Сіздің ұйымыңыз қарастырылған кезеңде тауарларды қайта өңдеуге немесе жөндеуге шетелге жіберді ме?\n4.1.3. Направляла ли Ваша организация за рубеж товары на переработку или на ремонт в рассматриваемом периоде?"]
["2\n1",null,413010,"     Иә\n     Да"]
["2\n1",null,413020,"     Жоқ\n     Нет"]
[null,null,414000,"4.1.4. Сіздің ұйымыңыз қарастырылған кезеңде тауарларды Қазақстан Республикасына әкелместен шетелде қайта сатумен айналысты ма?\n4.1.4. Занималась ли Ваша организация перепродажей товаров за рубежом без их ввоза в Республику Казахстан в рассматриваемом периоде?"]
["2\n1",null,414010,"     Иә\n     Да"]
["2\n1",null,414020,"     Жоқ\n     Нет"]
[]
["4.2 20___ж. қызметтермен сыртқы сауда\n4.2 Внешняя торговля услугами в 20___г.",null,null,"4.2 20___ж. қызметтермен сыртқы сауда\n4.2 Внешняя торговля услугами в 20___г."]
[null,null,"Жол коды\nКод строки","Көрсеткіш атауы\nНаименование показателя","Мәні\nЗначение"]
[null,null,null,"А",42001]
[null,null,"420-2","4.2. 20___ж.қызметтермен сыртқы сауда.\n4.2. Внешняя торговля услугами в 20___г."]
[null,null,42100,"4.2.1. Сіздің ұйымыңыз бейрезиденттерге қызмет көрсетті ме немесе бейрезиденттерден қызметін пайдаланды ма?\n4.2.1. Представляла ли Ваша организация услуги нерезидентам или приобретала ли она услуги от нерезидентов?"]
["2\n1",null,42110,"     Иә\n     Да"]
["2\n1",null,42120,"     Жоқ\n     Нет"]
[null,null,42130,"Егер жауабыңыз «Иә» болса  4.2.2-тармағын толтыруға көшіңіз, егер жауабыңыз «Жоқ» болса- 4.3-тармағын толтырыңыз.\nЕсли ответ «Да» перейдите к заполнению пункта 4.2.2., если ответ «Нет» - к заполнению пункта 4.3."]
[null,null,42200,"4.2.2. Өтінеміз, тиісті көлемін көрсетіңіз (теңге)\n4.2.2. Пожалуйста, укажите соответствующий объем (тенге)"]
[null,null,42210,"     Қызметтер экспорты (Сіздің ұйымыңыздың бейрезиденттерге көрсеткен қызметтерінің көлемі)\n     Экспорт услуг (Объемы услуг, оказанные Вашей организацией нерезидентам)"]
["2\n1",null,42211,"          5 000 000 - нан аз\n          менее 5 000 000"]
["2\n1",null,42212,"          5 000 000 - нан  50 000 000 дейін\n          от 5 000 000 до 50 000 000"]
["2\n1",null,42213,"          50 000 000 - нан  500 000 000 дейін\n          от 50 000 000 до 500 000 000"]
["2\n1",null,42214,"          500 000 000 және одан көп\n          500 000 000 и более"]
[null,null,42220,"     Қызметтер импорты (Сіздің ұйымыңызға бейрезиденттердің көрсеткен қызметтерінің көлемі)\n     Импорт услуг (Объемы услуг, оказанные Вашей организации нерезидентами)"]
["2\n1",null,42221,"          5 000 000 - нан аз\n          менее 5 000 000"]
["2\n1",null,42222,"          5 000 000 - нан  50 000 000 дейін\n          от 5 000 000 до 50 000 000"]
["2\n1",null,42223,"          50 000 000 - нан  500 000 000 дейін\n          от 50 000 000 до 500 000 000"]
["2\n1",null,42224,"          500 000 000 және одан көп\n          500 000 000 и более"]
[]
["4.2.3 Экспорттың немесе импорттың көлемі 5 000 000 теңгеден асқан қызметтер түрлерін көрсетіңіз\n4.2.3 Укажите, пожалуйста, виды услуг, по которым объем экспорта или импорта превысил 5 000 000 тенге",null,null,"4.2.3 Экспорттың немесе импорттың көлемі 5 000 000 теңгеден асқан қызметтер түрлерін көрсетіңіз\n4.2.3 Укажите, пожалуйста, виды услуг, по которым объем экспорта или импорта превысил 5 000 000 тенге"]
[null,null,"Жол коды\nКод строки","Қызмет түрлері / Виды услуг","Экспорт","Импорт"]
[null,null,null,"А",43001,43002]
["2\n1",null,423010,"Көлік қызметі (жүк тасымалдау, жолаушылар тасымалдау, қосалқы көлік қызметі)\nТранспортные услуги (перевозка грузов, перевозка пассажиров, вспомогательная транспортная деятельность)"]
["2\n1",null,423020,"Пошта қызметтері және курьерлік байланыс қызметтері\nПочтовые услуги и услуги курьерской связи"]
["2\n1",null,423030,"Компьютерлік қызметтер\nКомпьютерные услуги"]
["2\n1",null,423040,"Ақпараттық қызметтер\nИнформационные услуги"]
["2\n1",null,423050,"Телекоммуникациялық қызметтер\nТелекоммуникационные услуги"]
["2\n1",null,423060,"Зияткерлік меншікті пайдаланғаны үшін ақы төлеуге меншік құқықтарын (патенттер, авторлық құқықтар, сауда белгілері, технологиялық процестер, дизайн сияқты тағы басқалар) пайдаланғаны үшін ақы төлеу, сондай-ақ  жасалынған түпнұсқаларды және прототиптерді (кітаптар және қолжазбалар, компьютерлік бағдарламалық қамтамасыз етулер, кинематографиялық жұмыстар, дыбыстық жазбалар және сияқты тағы басқалар) жасауға және (немесе) таратуға арналған лицензиялар үшін ақы\nПлата за использование интеллектуальной собственности за пользование правами собственности (такими как патенты, авторские права, торговые марки, технологические процессы, дизайн и так далее), а также плату за лицензии  на воспроизводство и (или) распространение произведенных оригиналов и прототипов (таких как книги и рукописи, компьютерное программное обеспечение, кинематографические работы, звукозаписи и так далее)"]
["2\n1",null,423070,"Құрылыс қызметтері\nСтроительные услуги"]
["2\n1",null,423080,"Архитектуралық, инженерлік және басқа да техникалық қызметтер (геофизикалық қызметтерді қоса алғанда)\nАрхитектурные, инженерные и прочие технические услуги (включая геофизические услуги)"]
["2\n1",null,423090,"Пайдалы қазбаларды өндіру саласындағы қызметтер (бұрғылау жұмыстарын қоса алғанда)\nУслуги в области добычи полезных ископаемых (включая буровые работы)"]
["2\n1",null,423100,"Жабдықты қызметкерлерсіз жалдау, жылжымайтын мүлікті жалдау, көлік құралдарын экипажсыз жалдау\nАренда оборудования без персонала, аренда недвижимости, аренда транспортных средств без экипажа"]
["2\n1",null,423110,"Жарнама, маркетинг\nРеклама, маркетинг"]
["2\n1",null,423120,"Заң, бухгалтерлік, аудиторлық, консультациялық қызметтер\nЮридические, бухгалтерские, аудиторские, консультационные услуги"]
["2\n1",null,423130,"Басқалары (өтінеміз, көрсетіңіз)\nПрочие (пожалуйста, укажите)"]
[null,null,423131,"     (өтінеміз, көрсетіңіз)\n     (пожалуйста, укажите)"]
[]
["4.3 Шетелдік жұмыс күшін пайдалану\n4.3 Использование иностранной рабочей силы",null,null,"4.3 Шетелдік жұмыс күшін пайдалану\n4.3 Использование иностранной рабочей силы"]
[null,null,"Жол коды\nКод строки","Көрсеткіш атауы\nНаименование показателя","Мәні\nЗначение"]
[null,null,null,"А",44001]
[null,null,43100,"Сіздің ұйымыңызда шетелдік қызметкерлер жұмыс істейді ме? (шетелдік қызметкерлерге бір жылдан аз мерзімге жұмысқа жалданған шетелдік азаматтар және вахталық әдіспен жұмысқа тартылған шетелдік азаматтар жатады)\nРаботают ли в Вашей организации иностранные служащие? (к иностранным служащим относятся иностранные граждане, нанятые на работу на срок менее года, и иностранные граждане, привлеченные на работу вахтовым методом)"]
["2\n1",null,43110,"     Иә\n     Да"]
["2\n1",null,43120,"     Жоқ\n     Нет"]
[null,null,43200,"Сіздің ұйымыңызда сауалнаманы толтыру уақытында шетелдік қызметкерлердің қандай саны жұмыс істеді?\nКакое количество иностранных служащих работает в Вашей организации на дату заполнения анкеты?"]
[null,null,43300,"Шетелдік қызметкерлерге төленетін орташа еңбекақы қандай (теңгемен)?\nКакова средняя заработная  плата, выплачиваемая иностранным служащим (в тенге)?"]

{"sheet":"5","index":8,"n_rows":24,"n_cols":16,"rows_kept":24,"cut":false,"hidden":false,"merged":[[23,3,23,14],[17,1,19,1],[17,2,19,2],[1,3,1,14],[0,3,0,14],[15,3,15,14],[17,3,19,3],[17,4,19,4],[17,5,19,5],[18,6,19,6],[17,6,17,15],[18,7,18,15],[14,3,14,14]]}
["5 - бөлім. Берешекті өтеу графигі\nРаздел 5. График погашения задолженности",null,null,"5 - бөлім. Берешекті өтеу графигі\nРаздел 5. График погашения задолженности"]
["5.1 «Бейрезиденттерге қойылатын қаржылық талаптар және олардың алдындағы міндеттемелер туралы есепте» (индексі 1-ТБ, кезеңділігі тоқсандық) (бұдан әрі – 1-ТБ) көрсетілген берешек туралы ақпарат, өтеу графигін осы есеп бойынша ұсыну қажет (Ұлттық Банк толтырады)\n5.1 Информация о задолженности, отраженной в «Отчете о финансовых требованиях к нерезидентам и обязательствах перед ними» (индекс 1-ПБ, периодичность квартальная) (далее – 1-ПБ), по которой необходимо представить график погашения (заполняется Национальным Банком)",null,null,"5.1 «Бейрезиденттерге қойылатын қаржылық талаптар және олардың алдындағы міндеттемелер туралы есепте» (индексі 1-ТБ, кезеңділігі тоқсандық) (бұдан әрі – 1-ТБ) көрсетілген берешек туралы ақпарат, өтеу графигін осы есеп бойынша ұсыну қажет (Ұлттық Банк толтырады)\n5.1 Информация о задолженности, отраженной в «Отчете о финансовых требованиях к нерезидентам и обязательствах перед ними» (индекс 1-ПБ, периодичность квартальная) (далее – 1-ПБ), по которой необходимо представить график погашения (заполняется Национальным Банком)"]
[null,null,"Жол коды\nКод строки","Көрсеткіш атауы\nНаименование показателя","1-ТБ көрсетілген берешек туралы ақпарат, өтеу графигін осы есеп бойынша ұсыну қажет\nИнформация о задолженности, отраженной в 1-ПБ, по которой необходимо представить график погашения"]
[null,null,null,"А",51001]
[null,null,51010,"Сұралған ақпараттың санаты, осы санат бойынша графикті ұсыну қажет\nКатегория запрашиваемой информации, по которой следует представить график"]
["2\n1",null,51011,"     Бейрезиденттерге талаптар\n     Требования к нерезидентам"]
["2\n1",null,51012,"     Бейрезиденттердің алдындағы міндеттемелер\n     Обязательства перед нерезидентами"]
[null,null,51020,"Қаржылық құрал, осы құрал бойынша графикті ұсыну қажет\nФинансовый инструмент, по которому следует представить график"]
["2\n1",null,51024,"     Колма-қол шетел валютасы мен депозиттер\n     Наличная иностранная валюта и депозиты"]
["2\n1",null,51021,"     Несиелер және заемдар\n     Ссуды и займы"]
["2\n1",null,51022,"     Саудалық (коммерциялық) кредиттер\n     Торговые (коммерческие) кредиты"]
["2\n1",null,51023,"     Басқа берешек\n     Прочая задолженность"]
[null,null,51032,"жағдайы бойынша берешек _ (күнін көрсетіңіз) (бұдан әрі – есепті күн) (мың АҚШ долл.)\nЗадолженность на _ (указать дату) (далее - отчетная дата) (в тыс. долл. США)"]
[]
["5.2 Берешекті өтеу графигі (мың АҚШ долл.)\n5.2 График погашения задолженности (в тыс. долл. США)",null,null,"5.2 Берешекті өтеу графигі (мың АҚШ долл.)\n5.2 График погашения задолженности (в тыс. долл. США)"]
["мың АҚШ долл.\nв тыс. долл. США *",null,null,"мың АҚШ долл.\nв тыс. долл. США *"]
[]
["1\n2","Детализация","№","5.1-бөлігінде көрсетілген 1-ТБ нысанынан көрсеткіштің коды\nКод показателя из формы 1-ПБ, указанный в части 5.1","Экспорттық және импорттық операциялар бойынша нақтылау\nДетализация по экспортным и импортным операциям","Б бағанында көрсетілген көрсеткіш бойынша берешек\nЗадолженность по показателю, указанной в графе Б ","оның ішінде\nв том числе :"]
["1\n2",null,null,null,null,null,"талап етілетін\nдо востребования","5.1-бөлігінде көрсетілген есепті күннен бастап мерзімнің ішінде (айлармен) өтеуге тиіс\nподлежит погашению в течение (месяцев), начиная с отчетной даты, указанной в части 5.1"]
[null,null,null,null,null,null,null,"0-3","4-6","7-9","10-12","13-15","16-18","19-21","22-24","24 айдан кейін\nпосле 24 месяца"]
[null,null,null,"А","Б","1","2","3","4","5","6","7","8","9","10","11"]
[null,null,"5210А","5230Б","52201",null,"52002","52003","52004","52005","52006","52007","52008","52009","52010","52011"]
[]
["1\n2",null,null,"* АҚШ долл. – мың Америка құрама штаттарының долларында\nДолл. США – в тысячах долларов Соединенных штатов Америки"]

{"sheet":"6","index":9,"n_rows":23,"n_cols":14,"rows_kept":23,"cut":false,"hidden":false,"merged":[[0,3,0,13],[1,3,1,13],[15,3,15,13],[14,3,14,13],[22,3,22,13],[17,1,18,1],[17,2,18,2],[17,3,18,3],[17,4,18,4],[17,5,17,13]]}
["6 - бөлім. Берешектің валюталық құрылымы\nРаздел 6. Валютная структура задолженности",null,null,"6 - бөлім. Берешектің валюталық құрылымы\nРаздел 6. Валютная структура задолженности"]
["6.1 «Бейрезиденттерге қойылатын қаржылық талаптар және олардың алдындағы міндеттемелер туралы есепте» (индексі 1-ТБ, кезеңділігі тоқсандық) көрсетілген берешек туралы ақпарат, валюталық құрылымды осы есеп бойынша ұсыну қажет (Ұлттық Банк толтырады)\n6.1 Информация о задолженности, отраженной в «Отчете о финансовых требованиях к нерезидентам и обязательствах перед ними» (индекс 1-ПБ, периодичность квартальная), по которой представляется валютная структура (заполняется Национальным Банком)",null,null,"6.1 «Бейрезиденттерге қойылатын қаржылық талаптар және олардың алдындағы міндеттемелер туралы есепте» (индексі 1-ТБ, кезеңділігі тоқсандық) көрсетілген берешек туралы ақпарат, валюталық құрылымды осы есеп бойынша ұсыну қажет (Ұлттық Банк толтырады)\n6.1 Информация о задолженности, отраженной в «Отчете о финансовых требованиях к нерезидентам и обязательствах перед ними» (индекс 1-ПБ, периодичность квартальная), по которой представляется валютная структура (заполняется Национальным Банком)"]
[null,null,"Жол коды\nКод строки","Көрсеткіш атауы\nНаименование показателя","1-ТБ көрсетілген берешек туралы ақпарат, валюталық құрылымды осы есеп бойынша ұсыну қажет\nИнформация о задолженности, отраженной в 1-ПБ, по которой представляется валютная структура"]
[null,null,null,"А",61001]
[null,null,61010,"Сұралған ақпараттың санаты, осы санат бойынша валюталық құрылымды ұсыну қажет\nКатегория запрашиваемой информации, по которой следует представить валютную структуру"]
["2\n1",null,61011,"     Бейрезиденттерге талаптар\n     Требования к нерезидентам"]
["2\n1",null,61012,"     Бейрезиденттердің алдындағы міндеттемелер\n     Обязательства перед нерезидентами"]
[null,null,61020,"Қаржылық құрал, осы құрал бойынша валюталық құрылымды ұсыну қажет\nФинансовый инструмент, по которому следует представить валютную структуру"]
["2\n1",null,61024,"     Колма-қол шетел валютасы мен депозиттер\n     Наличная иностранная валюта и депозиты"]
["2\n1",null,61021,"     Несиелер және заемдар\n     Ссуды и займы"]
["2\n1",null,61022,"     Саудалық (коммерциялық) кредиттер\n     Торговые (коммерческие) кредиты"]
["2\n1",null,61023,"     Басқа берешек\n     Прочая задолженность"]
[null,null,61040,"жағдайы бойынша берешек _ (күнін көрсетіңіз) (бұдан әрі – есепті күн) (мың АҚШ долл.)\nЗадолженность на _ (указать дату) (далее - отчетная дата) (в тыс. долл. США)"]
[]
["6.2 Берешектің валюталық құрылымы (мың АҚШ долл.)\n6.2 Валютная структура задолженности (в тыс. долл. США)",null,null,"6.2 Берешектің валюталық құрылымы (мың АҚШ долл.)\n6.2 Валютная структура задолженности (в тыс. долл. США)"]
["мың АҚШ долл.\nв тыс. долл. США *",null,null,"мың АҚШ долл.\nв тыс. долл. США *"]
[]
["1\n2","Детализация","№","6.1-бөлігінде көрсетілген 1-ТБ нысанынан көрсеткіштің коды\nКод показателя из формы 1-ПБ, указанный в части 6.1","6.1-бөлігінде көрсетілген берешек\nЗадолженность, указанная в части 6.1","Валюта түрлері бойынша / По видам валют"]
[null,null,null,null,null,"теңге\nтенге","АҚШ доллары\nдоллар США","еуро\nевро","Ресей рублі\nРоссийский рубль","Швейцар франкі\nШвейцарский франк","Арнайы қарыз алу құқықтары\nСпециальные права заимствования","Канада доллары\nКанадский доллар","Қытай юаньі\nКитайский юань","Басқа валюта түрлері\nДругие виды валют"]
[null,null,null,"А","1","2","3","4","5","6","7","8","9","10"]
[null,null,"6210А","62201",null,"62002","62003","62004","62005","62006","62007","62008","62009","62010"]
[]
["1\n2",null,null,"* АҚШ долл. – мың Америка құрама штаттарының долларында\nДолл. США – в тысячах долларов Соединенных штатов Америки"]

{"sheet":"Подпись","index":10,"n_rows":40,"n_cols":19,"rows_kept":40,"cut":false,"hidden":false,"merged":[[1,2,1,18],[2,0,2,18],[30,6,30,14],[30,16,30,18],[11,3,11,10],[10,12,10,18],[11,12,11,18],[17,5,17,18],[5,2,6,7],[5,12,6,18],[9,3,9,10],[9,12,9,18],[10,3,10,10],[20,2,20,12],[21,2,21,12],[22,2,22,12],[21,14,21,18],[20,14,20,18],[22,14,22,18],[31,0,32,5],[26,0,27,5],[24,0,25,5],[37,0,38,18],[39,0,40,18],[32,6,32,14],[32,16,32,18],[25,16,25,18],[26,16,26,18],[27,16,27,18],[31,6,31,14],[31,16,31,18],[25,6,25,14],[26,6,26,14],[27,6,27,14]]}
["Түсіндірме:"]
["Комментарий: "]
[{"$f":"CONCATENATE(p1_comment)","v":""}]
[]
[]
["Атауы",null,{"$f":"CONCATENATE(p1_enterprise)","v":""},null,null,null,null,null,null,"Мекен-жайы",null,null,{"$f":"CONCATENATE(p1_address)","v":""}]
["Наименование",null,null,null,null,null,null,null,null,"Адрес (респондента)"]
[]
["Телефоны (респонденттің)"]
["Телефон (респондента)",null,null,{"$f":"CONCATENATE(p1_phone)","v":""},null,null,null,null,null,null,null,null,{"$f":"CONCATENATE(p1_mobile)","v":""}]
[null,null,null,"стационарлық",null,null,null,null,null,null,null,null,"ұялы"]
[null,null,null,"стационарный",null,null,null,null,null,null,null,null,"мобильный"]
[]
["Бастапқы статистикалық деректерді таратуға келісеміз",null,null,null,null,null,null,null,null,"Бастапқы статистикалық деректерді таратуға келіспейміз"]
["Согласны на распространение первичных статистических данных",null,null,null,null,null,null,{"$f":"IF(VLOOKUP(1,p_yesno,5,FALSE)=p1_is_show_data,p_yes_code,\"\")","v":""},null,"Не согласны на распространение первичных статистических данных",null,null,null,null,null,null,null,null,{"$f":"IF(VLOOKUP(0,p_yesno,5,FALSE)=p1_is_show_data,p_yes_code,\"\")","v":"√"}]
[]
["Электрондық пошта мекенжайы (респонденттің)"]
["Адрес электронной почты (респондента)",null,null,null,null,{"$f":"CONCATENATE(p1_email)","v":""}]
[]
["Орындаушы"]
["Исполнитель",null,{"$f":"CONCATENATE(p1_executor)","v":""},null,null,null,null,null,null,null,null,null,null,null,{"$f":"CONCATENATE(p1_executor_phone)","v":""}]
[null,null,"тегі, аты және әкесінің аты (бар болған жағдайда)",null,null,null,null,null,null,null,null,null,null,null,"қолы, телефоны (орындаушының)"]
[null,null,"фамилия, имя и отчество (при его наличии)",null,null,null,null,null,null,null,null,null,null,null,"подпись, телефон (исполнителя)"]
[]
["Бас бухгалтер немесе есепке қол қою функциясы жүктелген адам"]
[null,null,null,null,null,null,{"$f":"CONCATENATE(p1_accountant)","v":""}]
["Главный бухгалтер или лицо, на которое возложена функция по подписанию отчета  ",null,null,null,null,null,"тегі, аты және әкесінің аты (бар болған жағдайда)",null,null,null,null,null,null,null,null,null,"қолы"]
[null,null,null,null,null,null,"фамилия, имя и отчество (при его наличии)",null,null,null,null,null,null,null,null,null,"подпись"]
[]
[]
["Басшы немесе есепке қол қою функциясы жүктелген адам",null,null,null,null,null,{"$f":"CONCATENATE(p1_manager)","v":""}]
["Руководитель или лицо, на которое возложена функция по подписанию отчета",null,null,null,null,null,"тегі, аты және әкесінің аты (бар болған жағдайда)",null,null,null,null,null,null,null,null,null,"қолы"]
[null,null,null,null,null,null,"фамилия, имя и отчество (при его наличии)",null,null,null,null,null,null,null,null,null,"подпись"]
[]
["Ескертпе:"]
["Примечание:"]
[]
["Мемлекеттік статистиканың тиісті органдарына анық емес бастапқы статистикалық деректерді ұсыну және бастапқы статистикалық деректерді белгіленген мерзімде ұсынбау Әкімшілік құқық бұзушылық туралы Қазақстан Республикасы Кодексінің 497-бабында көзделген әкімшілік құқық бұзушылықтар болып табылады."]
[]
["Представление недостоверных и непредставление первичных статистических данных в соответствующие органы государственной статистики в установленный срок являются административными правонарушениями, предусмотренными статьей 497 Кодекса Республики Казахстан «Об административных правонарушениях»"]

{"sheet":"Логический контроль","index":11,"n_rows":0,"n_cols":0,"rows_kept":0,"cut":false,"hidden":true,"merged":[]}

{"sheet":"Справочники","index":12,"n_rows":649,"n_cols":38,"rows_kept":649,"cut":false,"hidden":true,"merged":[[632,0,632,2],[637,0,637,2],[387,0,387,23],[421,0,421,11],[604,0,604,11],[0,0,0,2],[6,0,6,6],[15,0,15,6],[11,0,11,6],[372,0,372,7],[109,0,109,6]]}
["Справочник языков"]
["ID","Код","Наименование",null,"ID Текущего языка",null,1,2,3,4]
[1,null,"Русский язык",null,{"$f":"IF(VLOOKUP(A3,p_language,3)=p1_language,A3,IF(VLOOKUP(A4,p_language,3)=p1_language,A4,A5))","v":0},null,2018,2019,2020,2021,2022,2023,2024,2025,2026,2027,2028,2029,2030,2031,2032,2033,2034,2035,2036,2037,2038,2039,2040,2041,2042,2043,2044,2045,2046,2047,2048,2049]
[2,null,"Қазақ тілі",null,null,null,"√"]
[0,null,null,null,null,null,{"$f":"1=1","v":true}]
[]
["Справочник логический"]
["ID","Код слева","Наименование на русском языке","Наименование на казахском языке","Наименование","Перенос текста или вставка символов \" / \"","Код справа"]
[1,null,"Да","Иә",{"$f":"CONCATENATE(IF(B9<>\"\",CONCATENATE(B9,\" \"),\"\"),IF(p_language_current_id=1,C9,IF(p_language_current_id=2,D9,IF(C9=D9,C9,CONCATENATE(D9,IF(F9=0,\" / \",CHAR(10)),C9)))),IF(G9<>\"\",CONCATENATE(\" \",G9),\"\"))","v":"Иә / Да (1)"},0,"(1)"]
[0,null,"Нет","Жоқ",{"$f":"CONCATENATE(IF(B10<>\"\",CONCATENATE(B10,\" \"),\"\"),IF(p_language_current_id=1,C10,IF(p_language_current_id=2,D10,IF(C10=D10,C10,CONCATENATE(D10,IF(F10=0,\" / \",CHAR(10)),C10)))),IF(G10<>\"\",CONCATENATE(\" \",G10),\"\"))","v":"Жоқ / Нет (0)"},0,"(0)"]
[]
["Справочник валют"]
["ID","Код слева","Наименование на русском языке","Наименование на казахском языке","Наименование","Перенос текста","Код справа","Код"]
[162,null,"ДОЛЛАР США","АҚШ ДОЛЛАРЫ",{"$f":"C14","v":"ДОЛЛАР США"},0,{"$f":"IF(H14<>\"\",CONCATENATE(\"(\",H14,\")\"),\"\")","v":"(840)"},840]
[]
["Справочник переводов"]
["ID","Код слева","Наименование на русском языке","Наименование на казахском языке","Наименование","Перенос текста","Код справа","Лист","Наименование в объектах"]
["A1",null,"ОПБ-1 Анкета обследования предприятий по платежному балансу","ТБЗ-1 Кәсіпорындарды төлем балансы бойынша тексеру сауалнамасы",{"$f":"CONCATENATE(IF(B18<>\"\",CONCATENATE(B18,\" \"),\"\"),IF(p_language_current_id=1,C18,IF(p_language_current_id=2,D18,IF(C18=D18,C18,CONCATENATE(D18,IF(F18=0,\" / \",CHAR(10)),C18)))),IF(G18<>\"\",CONCATENATE(\" \",G18),\"\"))","v":"ТБЗ-1 Кәсіпорындарды төлем балансы бойынша тексеру сауалнамасы\nОПБ-1 Анкета обследования предприятий по платежному балансу"},1,null,1,{"$f":"IF(p_language_current_id=2,CONCATENATE(D18),CONCATENATE(C18))","v":"ОПБ-1 Анкета обследования предприятий по платежному балансу"}]
[null,null,"ОПБ-1","ТБЗ-1","ТБЗ-1\nОПБ-1",1,null,null,"ОПБ-1"]
[null,"ОПБ-1","Анкета обследования предприятий по платежному балансу","Кәсіпорындарды төлем балансы бойынша тексеру сауалнамасы","ОПБ-1 Кәсіпорындарды төлем балансы бойынша тексеру сауалнамасы\nАнкета обследования предприятий по платежному балансу",1,null,null,"Анкета обследования предприятий по платежному балансу"]
["A4",null,"Основные данные","Негізгі мәліметтер","Негізгі мәліметтер\nОсновные данные",1,null,1,"Основные данные"]
["A7",null,"Код отчета","Есептің коды","Есептің коды / Код отчета",0,null,1,"Код отчета"]
["A8",null,"Язык заполнения","Тілі","Тілі / Язык заполнения *",0,"*",1,"Язык заполнения"]
["A9",null,"Предприятие","Кәсіпорын","Кәсіпорын / Предприятие",0,null,1,"Предприятие"]
["A10",null,"БИН","БСН","БСН / БИН",0,null,1,"БИН"]
["A11",null,"Период","Кезең","Кезең / Период",0,null,1,"Период"]
["B11",null,"Квартал","Тоқсан","Тоқсан / Квартал",0,null,1,"Квартал"]
["F11",null,"Год","Жыл","Жыл / Год",0,null,1,"Год"]
["A12",null,"Дата предоставления отчета","Есепті беру күні","Есепті беру күні / Дата предоставления отчета",0,null,1,"Дата предоставления отчета"]
["A13",null,"Валюта","Валюта","Валюта",0,null,1,"Валюта"]
["A14",null,"Руководитель или лицо, на которое возложена функция по подписанию отчета","Басшы немесе есепке қол қою функциясы жүктелген адам","Басшы немесе есепке қол қою функциясы жүктелген адам\nРуководитель или лицо, на которое возложена функция по подписанию отчета",1,null,1,"Руководитель или лицо, на которое возложена функция по подписанию отчета"]
["A15",null,"Главный бухгалтер или лицо, на которое возложена функция по подписанию отчета","Бас бухгалтер немесе есепке қол қою функциясы жүктелген адам","Бас бухгалтер немесе есепке қол қою функциясы жүктелген адам\nГлавный бухгалтер или лицо, на которое возложена функция по подписанию отчета",1,null,1,"Главный бухгалтер или лицо, на которое возложена функция по подписанию отчета"]
["A16",null,"Ф.И.О. Исполнителя","Орындаушының аты-жөні","Орындаушының аты-жөні / Ф.И.О. Исполнителя",0,null,1,"Ф.И.О. Исполнителя"]
["A17",null,"Телефон исполнителя","Орындаушының телефоны","Орындаушының телефоны / Телефон исполнителя",0,null,1,"Телефон исполнителя"]
["A18",null,"Согласны на распространение первичных статистических данных","Бастапқы статистикалық деректерді таратуға келісеміз","Бастапқы статистикалық деректерді таратуға келісеміз\nСогласны на распространение первичных статистических данных **",1,"**",1,"Согласны на распространение первичных статистических данных"]
["A19",null,"Комментарий","Түсініктемелер","Түсініктемелер\nКомментарий",1,null,1,"Комментарий"]
["A20",null,"Адрес","Мекен-жайы","Мекен-жайы\nАдрес",1,null,1,"Адрес"]
["A21",null,"Телефон (стационарный)","Телефоны (стационарлық)","Телефоны (стационарлық) / Телефон (стационарный)",0,null,1,"Телефон (стационарный)","Телефон организации"]
["A22",null,"Телефон (сотовый)","Телефоны (ұялы)","Телефоны (ұялы) / Телефон (сотовый)",0,null,1,"Телефон (сотовый)"]
["A23",null,"Адрес электронной почты (респондента)","Электрондық пошта мекенжайы (респонденттің)",{"$f":"CONCATENATE(IF(B40<>\"\",CONCATENATE(B40,\" \"),\"\"),IF(p_language_current_id=1,C40,IF(p_language_current_id=2,D40,IF(C40=D40,C40,CONCATENATE(D40,IF(F40=0,\" / \",CHAR(10)),C40)))),IF(G40<>\"\",CONCATENATE(\" \",G40),\"\"))","v":"Электрондық пошта мекенжайы (респонденттің)\nАдрес электронной почты (респондента)"},1,null,1,{"$f":"IF(p_language_current_id=2,CONCATENATE(D40),CONCATENATE(C40))","v":"Адрес электронной почты (респондента)"},"e-mail респондента"]
["A24",null,"Заполняется Национальным Банком Республики Казахстан","Қазақстан Республикасы Ұлттық Банкі толтырады","Қазақстан Республикасы Ұлттық Банкі толтырады\nЗаполняется Национальным Банком Республики Казахстан",1,null,1,"Заполняется Национальным Банком Республики Казахстан"]
["A25",null,"Дата предоставления отчета","Есепті беру күні","Есепті беру күні / Дата предоставления отчета",0,null,1,"Дата предоставления отчета"]
["A26",null,"Разделы","Бөлімдер","Бөлімдер / Разделы",0,null,1,"Разделы"]
["A29","*","При смене языка данные отчета обнулятся. Выберите язык до начала заполнения отчета","Тілді өзгерткен кезде есептің мәліметтері нөлге аударылады. Есепті толтыра бастамай тілді таңдаңыз.","* Тілді өзгерткен кезде есептің мәліметтері нөлге аударылады. Есепті толтыра бастамай тілді таңдаңыз.\nПри смене языка данные отчета обнулятся. Выберите язык до начала заполнения отчета",1,null,1,"При смене языка данные отчета обнулятся. Выберите язык до начала заполнения отчета"]
["A32","**","Данный пункт заполняется согласно пункту 5 статьи 8 Закона Республики Казахстан от 19 марта 2010 года «О государственной статистике»","Аталған тармақ «Мемлекеттік статистика туралы» Қазақстан Республикасының 2010 жылғы 19 наурыздағы Заңының 8-бабының 5-тармағына сәйкес толтырылады","** Аталған тармақ «Мемлекеттік статистика туралы» Қазақстан Республикасының 2010 жылғы 19 наурыздағы Заңының 8-бабының 5-тармағына сәйкес толтырылады\nДанный пункт заполняется согласно пункту 5 статьи 8 Закона Республики Казахстан от 19 марта 2010 года «О государственной статистике»",1,null,1,"Данный пункт заполняется согласно пункту 5 статьи 8 Закона Республики Казахстан от 19 марта 2010 года «О государственной статистике»"]
["A37",null,"Представление недостоверных и непредставление первичных статистических данных в соответствующие органы государственной статистики в установленный срок являются административными правонарушениями, предусмотренными статьей 497 Кодекса Республики Казахстан «Об административных правонарушениях»","Мемлекеттік статистиканың тиісті органдарына анық емес бастапқы статистикалық деректерді ұсыну және бастапқы статистикалық деректерді белгіленген мерзімде ұсынбау «Әкімшілік құқық бұзушылық туралы» Қазақстан Республикасы Кодексінің 497-бабында көзделген әкімшілік құқық бұзушылықтар болып табылады","Мемлекеттік статистиканың тиісті органдарына анық емес бастапқы статистикалық деректерді ұсыну және бастапқы статистикалық деректерді белгіленген мерзімде ұсынбау «Әкімшілік құқық бұзушылық туралы» Қазақстан Республикасы Кодексінің 497-бабында көзделген әкімшілік құқық бұзушылықтар болып табылады\nПредставление недостоверных и непредставление первичных статистических данных в соответствующие органы государственной статистики в установленный срок являются административными правонарушениями, предусмотренными статьей 497 Кодекса Республики Казахстан «Об административных правонарушениях»",1,null,1,"Представление недостоверных и непредставление первичных статистических данных в соответствующие органы государственной статистики в установленный срок являются административными правонарушениями, предусмотренными статьей 497 Кодекса Республики Казахстан «Об административных правонарушениях»"]
["p3_title",null,"Содержание","Мазмұны","Мазмұны\nСодержание",1,null,null,"Содержание"]
["p3_col_check",null,"Укажите (галочкой) заполненные части","Толтырылған бөліктерді көрсетіңіз (қанат белгісімен)","Толтырылған бөліктерді көрсетіңіз (қанат белгісімен)\nУкажите (галочкой) заполненные части",1,null,null,"Укажите (галочкой) заполненные части"]
["indicator_name_1",null,"Виды услуг","Қызмет түрлері","Қызмет түрлері / Виды услуг",0,null,null,"Виды услуг"]
["indicator_name_2",null," "," "," ",1,null,null," "]
["cols_num",null,"№","№","№",1,null,null,"№"]
["pb_str_1",null,"Код показателя из формы 1-ПБ, указанный в части 5.1","5.1-бөлігінде көрсетілген 1-ТБ нысанынан көрсеткіштің коды","5.1-бөлігінде көрсетілген 1-ТБ нысанынан көрсеткіштің коды\nКод показателя из формы 1-ПБ, указанный в части 5.1",1,null,null,"Код показателя из формы 1-ПБ, указанный в части 5.1"]
["pb_value_1",null,"Задолженность, указанная в части 5.1","5.1-бөлігінде көрсетілген берешек","5.1-бөлігінде көрсетілген берешек\nЗадолженность, указанная в части 5.1",1,null,null,"Задолженность, указанная в части 5.1"]
["pb_str_2",null,"Код показателя из формы 1-ПБ, указанный в части 6.1","6.1-бөлігінде көрсетілген 1-ТБ нысанынан көрсеткіштің коды","6.1-бөлігінде көрсетілген 1-ТБ нысанынан көрсеткіштің коды\nКод показателя из формы 1-ПБ, указанный в части 6.1",1,null,null,"Код показателя из формы 1-ПБ, указанный в части 6.1"]
["pb_value_2",null,"Задолженность, указанная в части 6.1","6.1-бөлігінде көрсетілген берешек",{"$f":"CONCATENATE(IF(B55<>\"\",CONCATENATE(B55,\" \"),\"\"),IF(p_language_current_id=1,C55,IF(p_language_current_id=2,D55,IF(C55=D55,C55,CONCATENATE(D55,IF(F55=0,\" / \",CHAR(10)),C55)))),IF(G55<>\"\",CONCATENATE(\" \",G55),\"\"))","v":"6.1-бөлігінде көрсетілген берешек\nЗадолженность, указанная в части 6.1"},1,null,null,{"$f":"IF(p_language_current_id=2,CONCATENATE(D55),CONCATENATE(C55))","v":"Задолженность, указанная в части 6.1"}]
["indicator_name",null,"Наименование показателя","Көрсеткіш атауы","Көрсеткіш атауы\nНаименование показателя",1,null,null,"Наименование показателя"]
["indicator_code",null,"Код строки","Жол коды","Жол коды\nКод строки",1,null,null,"Код строки"]
["indicator_num",null,"№","№","№",1,null,null,"№"]
["c_1","*","Ф.И.О. – Фамилия, имя, отчество (при наличии)","Т.А.Ә. – Тегі, аты, әкесінің аты (бар болған жағдайында)","* Т.А.Ә. – Тегі, аты, әкесінің аты (бар болған жағдайында)\nФ.И.О. – Фамилия, имя, отчество (при наличии)",1,null,null,"Ф.И.О. – Фамилия, имя, отчество (при наличии)"]
["c_2","**","БИН(бизнес идентификационный номер)/ ИИН (индивидуальный идентификационный номер)/ ИНР (идентификационный номер регистрации) – идентификационные номера, присваиваемые в соответствии с законодательством Казахстана/иностранного государства","БСН (бизнес-сәйкестендіру номері)/ ЖСН (жеке сәйкестендіру номері)/ ТСН (тіркеу сәйкестендіру номері) – Қазақстанның/шет елдің заңнамасына сәйкес берілген сәйкестендіру номерлері","** БСН (бизнес-сәйкестендіру номері)/ ЖСН (жеке сәйкестендіру номері)/ ТСН (тіркеу сәйкестендіру номері) – Қазақстанның/шет елдің заңнамасына сәйкес берілген сәйкестендіру номерлері\nБИН(бизнес идентификационный номер)/ ИИН (индивидуальный идентификационный номер)/ ИНР (идентификационный номер регистрации) – идентификационные номера, присваиваемые в соответствии с законодательством Казахстана/иностранного государства",1,null,null,"БИН(бизнес идентификационный номер)/ ИИН (индивидуальный идентификационный номер)/ ИНР (идентификационный номер регистрации) – идентификационные номера, присваиваемые в соответствии с законодательством Казахстана/иностранного государства"]
["c_3","*","Долл. США – в тысячах долларов Соединенных штатов Америки","АҚШ долл. – мың Америка құрама штаттарының долларында","* АҚШ долл. – мың Америка құрама штаттарының долларында\nДолл. США – в тысячах долларов Соединенных штатов Америки",1,null,null,"Долл. США – в тысячах долларов Соединенных штатов Америки"]
["c_0",null,1,2,"2\n1",1,null,null,"1"]
["currency_0",null,"тенге","теңге","теңге / тенге",0,null,null,"тенге"]
["currency_1",null,"в тыс. долл. США","мың АҚШ долл.","мың АҚШ долл.\nв тыс. долл. США *",1,"*",null,"в тыс. долл. США"]
["currency_2",null,"в тысячах долларов Соединенных штатов Америки","мың Америка құрама штаттарының долларында","мың Америка құрама штаттарының долларында\nв тысячах долларов Соединенных штатов Америки",1,null,null,"в тысячах долларов Соединенных штатов Америки"]
["col_name_1",null,"в том числе","оның ішінде","оның ішінде\nв том числе :",1,":",null,"в том числе"]
["col_name_2",null,"Всего","Барлығы","Барлығы\nВсего",1,null,null,"Всего"]
["col_name_3",null,"По видам валют","Валюта түрлері бойынша","Валюта түрлері бойынша / По видам валют",0,null,null,"По видам валют"]
["err_caption",null,"Ошибка ввода данных","Мәліметтерді енгізу қатесі","Мәліметтерді енгізу қатесі / Ошибка ввода данных",0,null,null,"Ошибка ввода данных"]
["warning_caption",null,"Предупреждение","Ескертпе","Ескертпе / Предупреждение",0,null,null,"Предупреждение"]
["pb_01_code",null,"Код показателя из формы 1-ПБ","1-ТБ нысанынан көрсеткіштің коды","1-ТБ нысанынан көрсеткіштің коды / Код показателя из формы 1-ПБ",0,null,null,"Код показателя из формы 1-ПБ"]
["pb_01_value",null,"Задолженность на _ (в тыс. долл. США)","_ жағдайы бойынша берешек (мың АҚШ долл.)","_ жағдайы бойынша берешек (мың АҚШ долл.) / Задолженность на _ (в тыс. долл. США) * **",0,"* **",null,"Задолженность на _ (в тыс. долл. США)"]
["ok",null,"Ок","Ок","Ок",0,null,null,"Ок"]
["cancel",null,"Отмена","Болдырмау","Болдырмау / Отмена",0,null,null,"Отмена"]
["add",null,"Добавить","Қосу","Қосу / Добавить",0,null,null,"Добавить"]
["Add str",null,"Добавить строку","Жолды қосу","Жолды қосу / Добавить строку",0,null,null,"Добавить строку"]
["Delete str",null,"Удалить строку","Жолды алып тастау","Жолды алып тастау / Удалить строку",0,null,null,"Удалить строку"]
["del",null,"Удалить","Алып тастау","Алып тастау / Удалить",0,null,null,"Удалить"]
["Add Pb 01",null,"Добавить показатель 1-ПБ","Добавить показатель 1-ПБ","Добавить показатель 1-ПБ",0,null,null,"Добавить показатель 1-ПБ"]
["Delete Pb 01",null,"Удалить показатель 1-ПБ","Удалить показатель 1-ПБ","Удалить показатель 1-ПБ",0,null,null,"Удалить показатель 1-ПБ"]
["edit",null,"Изменить","Өзгерту","Өзгерту / Изменить",0,null,null,"Изменить"]
["clear",null,"Очистить","Тазалау","Тазалау / Очистить",0,null,null,"Очистить"]
["sort",null,"Сортировать","Сұрыптау","Сұрыптау / Сортировать",0,null,null,"Сортировать"]
["err_field",null,"Значение поля \"{0}\" имеет недопустимое значение.","\"{0}\" жолының мәні жарамайды.","\"{0}\" жолының мәні жарамайды. / Значение поля \"{0}\" имеет недопустимое значение.",0,null,null,"Значение поля \"{0}\" имеет недопустимое значение."]
["err_list",null,"Значение поля {0} не найдено в списке.","{0} жолының мәні тізімде табылмады.","{0} жолының мәні тізімде табылмады. / Значение поля {0} не найдено в списке.",0,null,null,"Значение поля {0} не найдено в списке."]
["err_quarter",null,"Значение поля \"Квартал\" может иметь только следующие значения: \"1\", \"2\", \"3\", \"4\".","\"Тоқсан\" жолы тек келесі мәндерді қабылдай алады: \"1\", \"2\", \"3\", \"4\".","\"Тоқсан\" жолы тек келесі мәндерді қабылдай алады: \"1\", \"2\", \"3\", \"4\". / Значение поля \"Квартал\" может иметь только следующие значения: \"1\", \"2\", \"3\", \"4\".",0,null,null,"Значение поля \"Квартал\" может иметь только следующие значения: \"1\", \"2\", \"3\", \"4\"."]
["err_year",null,"Значение поля \"Год\" должно лежать в диапазоне от {0} до {1}","\"Жылы\" жолының мәні {0} бастап {1} дейінгі диапазонда болу керек.",{"$f":"CONCATENATE(IF(B87<>\"\",CONCATENATE(B87,\" \"),\"\"),IF(p_language_current_id=1,C87,IF(p_language_current_id=2,D87,IF(C87=D87,C87,CONCATENATE(D87,IF(F87=0,\" / \",CHAR(10)),C87)))),IF(G87<>\"\",CONCATENATE(\" \",G87),\"\"))","v":"\"Жылы\" жолының мәні {0} бастап {1} дейінгі диапазонда болу керек. / Значение поля \"Год\" должно лежать в диапазоне от {0} до {1}"},0,null,null,{"$f":"IF(p_language_current_id=2,CONCATENATE(D87),CONCATENATE(C87))","v":"Значение поля \"Год\" должно лежать в диапазоне от {0} до {1}"}]
["err_date",null,"Значение поля {0} должно лежать в диапазоне от {1} до {2}.","{0} жолының мәні {1} бастап {3} дейінгі диапазонда болу керек.","{0} жолының мәні {1} бастап {3} дейінгі диапазонда болу керек. / Значение поля {0} должно лежать в диапазоне от {1} до {2}.",0,null,null,"Значение поля {0} должно лежать в диапазоне от {1} до {2}."]
["err_message",null,"Значение поля имеет недопустимое значение.","Жолдың мәні жарамайды.","Жолдың мәні жарамайды. / Значение поля имеет недопустимое значение.",0,null,null,"Значение поля имеет недопустимое значение."]
["err_extra",null,"Один или более листов с дополнительными данными не скрыт. Хотите ли Вы скрыть их?","Қосымша мәліметтері бар бір және одан астам парақ жасырылмаған. Оларды жасырғыңыз келеді ме?","Қосымша мәліметтері бар бір және одан астам парақ жасырылмаған. Оларды жасырғыңыз келеді ме? / Один или более листов с дополнительными данными не скрыт. Хотите ли Вы скрыть их?",0,null,null,"Один или более листов с дополнительными данными не скрыт. Хотите ли Вы скрыть их?"]
["err_protect",null,"Книга или один или более листов с  не защищен. Хотите ли Вы защитить их?","Бір және одан астам парақ қорғалмаған. Оларды қорғағыңыз келеді ме?","Бір және одан астам парақ қорғалмаған. Оларды қорғағыңыз келеді ме? / Книга или один или более листов с  не защищен. Хотите ли Вы защитить их?",0,null,null,"Книга или один или более листов с  не защищен. Хотите ли Вы защитить их?"]
["err_part",null,"Значение поля \"Раздел\" имеет недопустимое значение.","\"Бөлім\" жолының мәні жарамайды.","\"Бөлім\" жолының мәні жарамайды. / Значение поля \"Раздел\" имеет недопустимое значение.",0,null,null,"Значение поля \"Раздел\" имеет недопустимое значение."]
["err_n2",null,"Тип данных вводимой Вами информации должен иметь числовой тип. Максимальное количество знаков после разделителя дробной части - 2.","Сіз енгізетін ақпараттың мәліметтерінің типі сандық болуға тиіс. Бөлшек бөлігінің бөлгішінен кейінгі белгілердің максималды саны - 2.","Сіз енгізетін ақпараттың мәліметтерінің типі сандық болуға тиіс. Бөлшек бөлігінің бөлгішінен кейінгі белгілердің максималды саны - 2. / Тип данных вводимой Вами информации должен иметь числовой тип. Максимальное количество знаков после разделителя дробной части - 2.",0,null,null,"Тип данных вводимой Вами информации должен иметь числовой тип. Максимальное количество знаков после разделителя дробной части - 2."]
["err_n",null,"Тип данных вводимой Вами информации должен иметь числовой тип.","Сіз енгізетін ақпараттың мәліметтерінің типі сандық болуға тиіс.","Сіз енгізетін ақпараттың мәліметтерінің типі сандық болуға тиіс. / Тип данных вводимой Вами информации должен иметь числовой тип.",0,null,null,"Тип данных вводимой Вами информации должен иметь числовой тип."]
["part",null,"Раздел","Бөлім","Бөлім / Раздел",0,null,null,"Раздел"]
["count",null,"Количество строк","Количество строк","Количество строк",0,null,null,"Количество строк"]
["password",null,"Пароль","Паролі","Паролі / Пароль",0,null,null,{"$f":"CONCATENATE(A97,\"|\",C97,\"|\",D97)","v":"password|Пароль|Паролі"}]
["err_password",null,"Неверный пароль","Паролі дұрыс емес","Паролі дұрыс емес\nНеверный пароль",1,null,null,"err_password|Неверный пароль|Паролі дұрыс емес"]
["Data entry in account",null,"Ввод данных в отчет","Ввод данных в отчет","Ввод данных в отчет",0,null,null,"Data entry in account|Ввод данных в отчет|Ввод данных в отчет"]
["Data edit on sheet with str",null,"Строки для разделов 2 листа","Строки для разделов 2 листа","Строки для разделов 2 листа",0,null,null,"Data edit on sheet with str|Строки для разделов 2 листа|Строки для разделов 2 листа"]
["Data edit on sheet with pb 01",null,"Показатели 1-ПБ для разделов 5 и 6 листа","Показатели 1-ПБ для разделов 5 и 6 листа","Показатели 1-ПБ для разделов 5 и 6 листа",0,null,null,"Data edit on sheet with pb 01|Показатели 1-ПБ для разделов 5 и 6 листа|Показатели 1-ПБ для разделов 5 и 6 листа"]
["Data edit on sheet",null,"Изменение данных на листах","Изменение данных на листах","Изменение данных на листах",0,null,null,"Data edit on sheet|Изменение данных на листах|Изменение данных на листах"]
["Additional sheets",null,"Дополнительные листы","Дополнительные листы","Дополнительные листы",0,null,null,"Additional sheets|Дополнительные листы|Дополнительные листы"]
["Additional sheets hint",null,"Действия доступные для дополнительных листов","Действия доступные для дополнительных листов","Действия доступные для дополнительных листов",1,null,null,"Additional sheets hint|Действия доступные для дополнительных листов|Действия доступные для дополнительных листов"]
["Additional sheets show",null,"Показать листы с дополнительными данными","Показать листы с дополнительными данными","Показать листы с дополнительными данными",0,null,null,"Additional sheets show|Показать листы с дополнительными данными|Показать листы с дополнительными данными"]
["Additional sheets hide",null,"Скрыть листы с дополнительными данными","Скрыть листы с дополнительными данными","Скрыть листы с дополнительными данными",0,null,null,"Additional sheets hide|Скрыть листы с дополнительными данными|Скрыть листы с дополнительными данными"]
["Additional sheets show/hide hint",null,"Скрытие/показ всех листов с дополнительными данными","Скрытие/показ всех листов с дополнительными данными","Скрытие/показ всех листов с дополнительными данными",1,null,null,"Additional sheets show/hide hint|Скрытие/показ всех листов с дополнительными данными|Скрытие/показ всех листов с дополнительными данными"]
[null,null,null,null,"",1,null,null,{"$f":"IF(p_language_current_id=2,CONCATENATE(D108),CONCATENATE(C108))","v":""}]
[]
["Справочник стран"]
["ID","Код слева","Наименование на русском языке","Наименование на казахском языке","Наименование","Перенос текста","Код справа","Код","Признак СНГ"]
[10,null,"АВСТРАЛИЯ","АВСТРАЛИЯ",{"$f":"CONCATENATE(IF(B112<>\"\",CONCATENATE(B112,\" \"),\"\"),IF(p_language_current_id=1,C112,IF(p_language_current_id=2,D112,IF(C112=D112,C112,CONCATENATE(D112,IF(F112=0,\" / \",CHAR(10)),C112)))),IF(G112<>\"\",CONCATENATE(\" \",G112),\"\"))","v":"АВСТРАЛИЯ (036)"},0,{"$f":"IF(AND(H112<>\"\",H112<>\" \"),CONCATENATE(\"(\",H112,\")\"),\"\")","v":"(036)"},"036",0,null,10,"АВСТРАЛИЯ","АВСТРАЛИЯ","0","036","select * from"]
[11,null,"АВСТРИЯ","АВСТРИЯ","АВСТРИЯ (040)",0,"(040)","040",0,null,11,"АВСТРИЯ","АВСТРИЯ","0","040","(select id_country, name, name_kz, is_sng_cnry, nvl(oksm_code, ' ') from s_country_last where trim(oksm_code) is not null and id_country not in (310, 311, 315) and date_end is null"]
[8,null,"АЗЕРБАЙДЖАН","ӘЗЕРБАЙЖАН","ӘЗЕРБАЙЖАН / АЗЕРБАЙДЖАН (031)",0,"(031)","031",1,null,8,"АЗЕРБАЙДЖАН","ӘЗЕРБАЙЖАН","1","031","  union  "]
[2,null,"АЛБАНИЯ","АЛБАНИЯ","АЛБАНИЯ (008)",0,"(008)","008",0,null,2,"АЛБАНИЯ","АЛБАНИЯ","0","008"," select id_country, name, name_kz, is_sng_cnry, nvl(oksm_code, ' ') from s_country_last where trim(oksm_code) is null and id_country in (137, 243, 242) and date_end is null)"]
[3,null,"АЛЖИР","АЛЖИР","АЛЖИР (012)",0,"(012)","012",0,null,3,"АЛЖИР","АЛЖИР","0","012","order by name;"]
[184,null,"АНГИЛЬЯ (БРИТ.)","АНГИЛЬЯ","АНГИЛЬЯ / АНГИЛЬЯ (БРИТ.) (660)",0,"(660)","660",0,null,184,"АНГИЛЬЯ (БРИТ.)","АНГИЛЬЯ","0","660"]
[6,null,"АНГОЛА","АНГОЛА","АНГОЛА (024)",0,"(024)","024",0,null,6,"АНГОЛА","АНГОЛА","0","024"]
[5,null,"АНДОРРА","АНДОРРА","АНДОРРА (020)",0,"(020)","020",0,null,5,"АНДОРРА","АНДОРРА","0","020"]
[291,null,"АНТАРКТИКА","АНТАРКТИКА","АНТАРКТИКА (010)",0,"(010)","010",0,null,291,"АНТАРКТИКА","АНТАРКТИКА","0","010"]
[7,null,"АНТИГУА И БАРБУДА","АНТИГУА ЖӘНЕ БАРБУДА","АНТИГУА ЖӘНЕ БАРБУДА / АНТИГУА И БАРБУДА (028)",0,"(028)","028",0,null,7,"АНТИГУА И БАРБУДА","АНТИГУА ЖӘНЕ БАРБУДА","0","028"]
[9,null,"АРГЕНТИНА","АРГЕНТИНА","АРГЕНТИНА (032)",0,"(032)","032",0,null,9,"АРГЕНТИНА","АРГЕНТИНА","0","032"]
[15,null,"АРМЕНИЯ","АРМЕНИЯ","АРМЕНИЯ (051)",0,"(051)","051",1,null,15,"АРМЕНИЯ","АРМЕНИЯ","1","051"]
[150,null,"АРУБА ОСТРОВ (НИДЕРЛАНДЫ)","АРУБА","АРУБА / АРУБА ОСТРОВ (НИДЕРЛАНДЫ) (533)",0,"(533)","533",0,null,150,"АРУБА ОСТРОВ (НИДЕРЛАНДЫ)","АРУБА","0","533"]
[109,null,"АТТОЛ ДЖОНСТОН (США)","АТТОЛ ДЖОНСТОН (США)","АТТОЛ ДЖОНСТОН (США) (396)",0,"(396)","396",0,null,109,"АТТОЛ ДЖОНСТОН (США)","АТТОЛ ДЖОНСТОН (США)","0","396"]
[1,null,"АФГАНИСТАН","АУҒАНСТАН","АУҒАНСТАН / АФГАНИСТАН (004)",0,"(004)","004",0,null,1,"АФГАНИСТАН","АУҒАНСТАН","0","004"]
[12,null,"Багамы","Багам","Багам / Багамы (044)",0,"(044)","044",0,null,12,"Багамы","Багам","0","044"]
[14,null,"БАНГЛАДЕШ","БАНГЛАДЕШ","БАНГЛАДЕШ (050)",0,"(050)","050",0,null,14,"БАНГЛАДЕШ","БАНГЛАДЕШ","0","050"]
[16,null,"БАРБАДОС","БАРБАДОС","БАРБАДОС (052)",0,"(052)","052",0,null,16,"БАРБАДОС","БАРБАДОС","0","052"]
[13,null,"БАХРЕЙН","БАХРЕЙН","БАХРЕЙН (048)",0,"(048)","048",0,null,13,"БАХРЕЙН","БАХРЕЙН","0","048"]
[33,null,"БЕЛАРУСЬ","БЕЛАРУСЬ","БЕЛАРУСЬ (112)",0,"(112)","112",1,null,33,"БЕЛАРУСЬ","БЕЛАРУСЬ","1","112"]
[25,null,"БЕЛИЗ","БЕЛИЗ","БЕЛИЗ (084)",0,"(084)","084",0,null,25,"БЕЛИЗ","БЕЛИЗ","0","084"]
[17,null,"БЕЛЬГИЯ","БЕЛЬГИЯ","БЕЛЬГИЯ (056)",0,"(056)","056",0,null,17,"БЕЛЬГИЯ","БЕЛЬГИЯ","0","056"]
[57,null,"БЕНИН","БЕНИН","БЕНИН (204)",0,"(204)","204",0,null,57,"БЕНИН","БЕНИН","0","204"]
[18,null,"Бермуды","Бермуд","Бермуд / Бермуды (060)",0,"(060)","060",0,null,18,"Бермуды","Бермуд","0","060"]
[30,null,"БОЛГАРИЯ","БОЛГАРИЯ","БОЛГАРИЯ (100)",0,"(100)","100",0,null,30,"БОЛГАРИЯ","БОЛГАРИЯ","0","100"]
[20,null,"БОЛИВИЯ","БОЛИВИЯ","БОЛИВИЯ (068)",0,"(068)","068",0,null,20,"БОЛИВИЯ","БОЛИВИЯ","0","068"]
[300,null,"Бонэйр, Синт-Эстатиус и Саба","Бонэйр, Синт-Эстатиус и Саба","Бонэйр, Синт-Эстатиус и Саба (535)",0,"(535)","535",0,null,300,"Бонэйр, Синт-Эстатиус и Саба","Бонэйр, Синт-Эстатиус и Саба","0","535"]
[21,null,"БОСНИЯ И ГЕРЦЕГОВИНА","БОСНИЯ ЖӘНЕ ГЕРЦЕГОВИНА","БОСНИЯ ЖӘНЕ ГЕРЦЕГОВИНА / БОСНИЯ И ГЕРЦЕГОВИНА (070)",0,"(070)","070",0,null,21,"БОСНИЯ И ГЕРЦЕГОВИНА","БОСНИЯ ЖӘНЕ ГЕРЦЕГОВИНА","0","070"]
[22,null,"БОТСВАНА","БОТСВАНА","БОТСВАНА (072)",0,"(072)","072",0,null,22,"БОТСВАНА","БОТСВАНА","0","072"]
[24,null,"БРАЗИЛИЯ","БРАЗИЛИЯ","БРАЗИЛИЯ (076)",0,"(076)","076",0,null,24,"БРАЗИЛИЯ","БРАЗИЛИЯ","0","076"]
[26,null,"БРИТАНСКАЯ ТЕРРИТОРИЯ В ИНДИЙСКОМ ОКЕАНЕ","БРИТАНСКАЯ ТЕРРИТОРИЯ В ИНДИЙСКОМ ОКЕАНЕ","БРИТАНСКАЯ ТЕРРИТОРИЯ В ИНДИЙСКОМ ОКЕАНЕ (086)",0,"(086)","086",0,null,26,"БРИТАНСКАЯ ТЕРРИТОРИЯ В ИНДИЙСКОМ ОКЕАНЕ","БРИТАНСКАЯ ТЕРРИТОРИЯ В ИНДИЙСКОМ ОКЕАНЕ","0","086"]
[29,null,"Бруней-Даруссалам","Бруней-Даруссалам","Бруней-Даруссалам (096)",0,"(096)","096",0,null,29,"Бруней-Даруссалам","Бруней-Даруссалам","0","096"]
[232,null,"БУРКИНА-ФАСО","БУРКИНА-ФАСО","БУРКИНА-ФАСО (854)",0,"(854)","854",0,null,232,"БУРКИНА-ФАСО","БУРКИНА-ФАСО","0","854"]
[32,null,"БУРУНДИ","БУРУНДИ","БУРУНДИ (108)",0,"(108)","108",0,null,32,"БУРУНДИ","БУРУНДИ","0","108"]
[19,null,"БУТАН","БУТАН","БУТАН (064)",0,"(064)","064",0,null,19,"БУТАН","БУТАН","0","064"]
[152,null,"ВАНУАТУ","ВАНУАТУ","ВАНУАТУ (548)",0,"(548)","548",0,null,152,"ВАНУАТУ","ВАНУАТУ","0","548"]
[97,null,"ВЕНГРИЯ","ВЕНГРИЯ","ВЕНГРИЯ (348)",0,"(348)","348",0,null,97,"ВЕНГРИЯ","ВЕНГРИЯ","0","348"]
[235,null,"ВЕНЕСУЭЛА","ВЕНЕСУЭЛА","ВЕНЕСУЭЛА (862)",0,"(862)","862",0,null,235,"ВЕНЕСУЭЛА","ВЕНЕСУЭЛА","0","862"]
[28,null,"Виргинские острова  (Брит.)","Виргин аралдары (Брит.)","Виргин аралдары (Брит.) / Виргинские острова  (Брит.) (092)",0,"(092)","092",0,null,28,"Виргинские острова  (Брит.)","Виргин аралдары (Брит.)","0","092"]
[231,null,"Виргинские острова, США","Виргин аралдары,  АҚШ","Виргин аралдары,  АҚШ / Виргинские острова, США (850)",0,"(850)","850",0,null,231,"Виргинские острова, США","Виргин аралдары,  АҚШ","0","850"]
[4,null,"ВОСТОЧНОЕ САМОА (США)","АМЕРИКАН САМОАСЫ","АМЕРИКАН САМОАСЫ / ВОСТОЧНОЕ САМОА (США) (016)",0,"(016)","016",0,null,4,"ВОСТОЧНОЕ САМОА (США)","АМЕРИКАН САМОАСЫ","0","016"]
[196,null,"ВЬЕТНАМ","ВЬЕТНАМ","ВЬЕТНАМ (704)",0,"(704)","704",0,null,196,"ВЬЕТНАМ","ВЬЕТНАМ","0","704"]
[76,null,"ГАБОН","ГАБОН","ГАБОН (266)",0,"(266)","266",0,null,76,"ГАБОН","ГАБОН","0","266"]
[92,null,"ГАИТИ","ГАИТИ","ГАИТИ (332)",0,"(332)","332",0,null,92,"ГАИТИ","ГАИТИ","0","332"]
[91,null,"ГАЙАНА","ГАЙАНА","ГАЙАНА (328)",0,"(328)","328",0,null,91,"ГАЙАНА","ГАЙАНА","0","328"]
[78,null,"ГАМБИЯ","ГАМБИЯ","ГАМБИЯ (270)",0,"(270)","270",0,null,78,"ГАМБИЯ","ГАМБИЯ","0","270"]
[81,null,"Гана - Республика Гана","Гана - Гана Республикасы","Гана - Гана Республикасы / Гана - Республика Гана (288)",0,"(288)","288",0,null,81,"Гана - Республика Гана","Гана - Гана Республикасы","0","288"]
[87,null,"ГВАДЕЛУПА","ГВАДЕЛУПА","ГВАДЕЛУПА (312)",0,"(312)","312",0,null,87,"ГВАДЕЛУПА","ГВАДЕЛУПА","0","312"]
[89,null,"ГВАТЕМАЛА","ГВАТЕМАЛА","ГВАТЕМАЛА (320)",0,"(320)","320",0,null,89,"ГВАТЕМАЛА","ГВАТЕМАЛА","0","320"]
[72,null,"ГВИАНА","ФРАНЦУЗ ГВИАНАСЫ","ФРАНЦУЗ ГВИАНАСЫ / ГВИАНА (254)",0,"(254)","254",0,null,72,"ГВИАНА","ФРАНЦУЗ ГВИАНАСЫ","0","254"]
[90,null,"ГВИНЕЯ","ГВИНЕЯ","ГВИНЕЯ (324)",0,"(324)","324",0,null,90,"ГВИНЕЯ","ГВИНЕЯ","0","324"]
[174,null,"ГВИНЕЯ-БИСАУ","ГВИНЕЯ-БИСАУ","ГВИНЕЯ-БИСАУ (624)",0,"(624)","624",0,null,174,"ГВИНЕЯ-БИСАУ","ГВИНЕЯ-БИСАУ","0","624"]
[80,null,"ГЕРМАНИЯ","ГЕРМАНИЯ","ГЕРМАНИЯ (276)",0,"(276)","276",0,null,80,"ГЕРМАНИЯ","ГЕРМАНИЯ","0","276"]
[82,null,"ГИБРАЛТАР (БРИТ.)","ГИБРАЛТАР","ГИБРАЛТАР / ГИБРАЛТАР (БРИТ.) (292)",0,"(292)","292",0,null,82,"ГИБРАЛТАР (БРИТ.)","ГИБРАЛТАР","0","292"]
[95,null,"ГОНДУРАС","ГОНДУРАС","ГОНДУРАС (340)",0,"(340)","340",0,null,95,"ГОНДУРАС","ГОНДУРАС","0","340"]
[96,null,"ГОНКОНГ (СЯНГАН)","ГОНКОНГ","ГОНКОНГ / ГОНКОНГ (СЯНГАН) (344)",0,"(344)","344",0,null,96,"ГОНКОНГ (СЯНГАН)","ГОНКОНГ","0","344"]
[86,null,"ГРЕНАДА","ГРЕНАДА","ГРЕНАДА (308)",0,"(308)","308",0,null,86,"ГРЕНАДА","ГРЕНАДА","0","308"]
[85,null,"ГРЕНЛАНДИЯ (ДАНИЯ)","ГРЕНЛАНДИЯ","ГРЕНЛАНДИЯ / ГРЕНЛАНДИЯ (ДАНИЯ) (304)",0,"(304)","304",0,null,85,"ГРЕНЛАНДИЯ (ДАНИЯ)","ГРЕНЛАНДИЯ","0","304"]
[84,null,"ГРЕЦИЯ","ГРЕЦИЯ","ГРЕЦИЯ (300)",0,"(300)","300",0,null,84,"ГРЕЦИЯ","ГРЕЦИЯ","0","300"]
[77,null,"ГРУЗИЯ","ГРУЗИЯ","ГРУЗИЯ (268)",0,"(268)","268",0,null,77,"ГРУЗИЯ","ГРУЗИЯ","0","268"]
[88,null,"ГУАМ (США)","ГУАМ","ГУАМ / ГУАМ (США) (316)",0,"(316)","316",0,null,88,"ГУАМ (США)","ГУАМ","0","316"]
[58,null,"ДАНИЯ","ДАНИЯ","ДАНИЯ (208)",0,"(208)","208",0,null,58,"ДАНИЯ","ДАНИЯ","0","208"]
[75,null,"ДЖИБУТИ","ДЖИБУТИ","ДЖИБУТИ (262)",0,"(262)","262",0,null,75,"ДЖИБУТИ","ДЖИБУТИ","0","262"]
[59,null,"ДОМИНИКА","ДОМИНИКА","ДОМИНИКА (212)",0,"(212)","212",0,null,59,"ДОМИНИКА","ДОМИНИКА","0","212"]
[60,null,"ДОМИНИКАНСКАЯ РЕСПУБЛИКА","ДОМИНИКАН РЕСПУБЛИКАСЫ",{"$f":"CONCATENATE(IF(B176<>\"\",CONCATENATE(B176,\" \"),\"\"),IF(p_language_current_id=1,C176,IF(p_language_current_id=2,D176,IF(C176=D176,C176,CONCATENATE(D176,IF(F176=0,\" / \",CHAR(10)),C176)))),IF(G176<>\"\",CONCATENATE(\" \",G176),\"\"))","v":"ДОМИНИКАН РЕСПУБЛИКАСЫ / ДОМИНИКАНСКАЯ РЕСПУБЛИКА (214)"},0,{"$f":"IF(AND(H176<>\"\",H176<>\" \"),CONCATENATE(\"(\",H176,\")\"),\"\")","v":"(214)"},"214",0,null,60,"ДОМИНИКАНСКАЯ РЕСПУБЛИКА","ДОМИНИКАН РЕСПУБЛИКАСЫ","0","214"]
[243,null,"др.страны не СНГ","ТМД емес басқа елдер","ТМД емес басқа елдер / др.страны не СНГ",0,""," ",0,null,243,"др.страны не СНГ","ТМД емес басқа елдер","0"," "]
[225,null,"Египет  - Арабская Республика Египет","Египет  -  Египет Араб Республикасы","Египет  -  Египет Араб Республикасы / Египет  - Арабская Республика Египет (818)",0,"(818)","818",0,null,225,"Египет  - Арабская Республика Египет","Египет  -  Египет Араб Республикасы","0","818"]
[241,null,"ЗАМБИЯ","ЗАМБИЯ","ЗАМБИЯ (894)",0,"(894)","894",0,null,241,"ЗАМБИЯ","ЗАМБИЯ","0","894"]
[202,null,"ЗАПАДНАЯ САХАРА","ЗАПАДНАЯ САХАРА","ЗАПАДНАЯ САХАРА (732)",0,"(732)","732",0,null,202,"ЗАПАДНАЯ САХАРА","ЗАПАДНАЯ САХАРА","0","732"]
[238,null,"ЗАПАДНОЕ САМОА","САМОА","САМОА / ЗАПАДНОЕ САМОА (882)",0,"(882)","882",0,null,238,"ЗАПАДНОЕ САМОА","САМОА","0","882"]
[200,null,"ЗИМБАБВЕ","ЗИМБАБВЕ","ЗИМБАБВЕ (716)",0,"(716)","716",0,null,200,"ЗИМБАБВЕ","ЗИМБАБВЕ","0","716"]
[104,null,"ИЗРАИЛЬ","ИЗРАИЛЬ","ИЗРАИЛЬ (376)",0,"(376)","376",0,null,104,"ИЗРАИЛЬ","ИЗРАИЛЬ","0","376"]
[99,null,"ИНДИЯ","ИНДИЯ","ИНДИЯ (356)",0,"(356)","356",0,null,99,"ИНДИЯ","ИНДИЯ","0","356"]
[100,null,"ИНДОНЕЗИЯ","ИНДОНЕЗИЯ","ИНДОНЕЗИЯ (360)",0,"(360)","360",0,null,100,"ИНДОНЕЗИЯ","ИНДОНЕЗИЯ","0","360"]
[111,null,"ИОРДАНИЯ","ИОРДАНИЯ","ИОРДАНИЯ (400)",0,"(400)","400",0,null,111,"ИОРДАНИЯ","ИОРДАНИЯ","0","400"]
[102,null,"ИРАК","ИРАК","ИРАК (368)",0,"(368)","368",0,null,102,"ИРАК","ИРАК","0","368"]
[101,null,"ИРАН","ИРАН, ИСЛАМ РЕСПУБЛИКАСЫ","ИРАН, ИСЛАМ РЕСПУБЛИКАСЫ / ИРАН (364)",0,"(364)","364",0,null,101,"ИРАН","ИРАН, ИСЛАМ РЕСПУБЛИКАСЫ","0","364"]
[103,null,"ИРЛАНДИЯ","ИРЛАНДИЯ","ИРЛАНДИЯ (372)",0,"(372)","372",0,null,103,"ИРЛАНДИЯ","ИРЛАНДИЯ","0","372"]
[98,null,"ИСЛАНДИЯ","ИСЛАНДИЯ","ИСЛАНДИЯ (352)",0,"(352)","352",0,null,98,"ИСЛАНДИЯ","ИСЛАНДИЯ","0","352"]
[201,null,"ИСПАНИЯ","ИСПАНИЯ","ИСПАНИЯ (724)",0,"(724)","724",0,null,201,"ИСПАНИЯ","ИСПАНИЯ","0","724"]
[105,null,"ИТАЛИЯ","ИТАЛИЯ","ИТАЛИЯ (380)",0,"(380)","380",0,null,105,"ИТАЛИЯ","ИТАЛИЯ","0","380"]
[239,null,"ЙЕМЕН","ЙЕМЕН","ЙЕМЕН (887)",0,"(887)","887",0,null,239,"ЙЕМЕН","ЙЕМЕН","0","887"]
[37,null,"КАБО-ВЕРДЕ","КАБО-ВЕРДЕ","КАБО-ВЕРДЕ (132)",0,"(132)","132",0,null,37,"КАБО-ВЕРДЕ","КАБО-ВЕРДЕ","0","132"]
[110,null,"КАЗАХСТАН","КАЗАХСТАН","КАЗАХСТАН (398)",0,"(398)","398",1,null,110,"КАЗАХСТАН","КАЗАХСТАН","1","398"]
[34,null,"КАМБОДЖА","КАМБОДЖА","КАМБОДЖА (116)",0,"(116)","116",0,null,34,"КАМБОДЖА","КАМБОДЖА","0","116"]
[35,null,"КАМЕРУН","КАМЕРУН","КАМЕРУН (120)",0,"(120)","120",0,null,35,"КАМЕРУН","КАМЕРУН","0","120"]
[36,null,"КАНАДА","КАНАДА","КАНАДА (124)",0,"(124)","124",0,null,36,"КАНАДА","КАНАДА","0","124"]
[177,null,"КАТАР","КАТАР","КАТАР (634)",0,"(634)","634",0,null,177,"КАТАР","КАТАР","0","634"]
[112,null,"КЕНИЯ","КЕНИЯ","КЕНИЯ (404)",0,"(404)","404",0,null,112,"КЕНИЯ","КЕНИЯ","0","404"]
[55,null,"КИПР","КИПР","КИПР (196)",0,"(196)","196",0,null,55,"КИПР","КИПР","0","196"]
[83,null,"КИРИБАТИ","КИРИБАТИ","КИРИБАТИ (296)",0,"(296)","296",0,null,83,"КИРИБАТИ","КИРИБАТИ","0","296"]
[43,null,"КИТАЙ","ҚЫТАЙ","ҚЫТАЙ / КИТАЙ (156)",0,"(156)","156",0,null,43,"КИТАЙ","ҚЫТАЙ","0","156"]
[46,null,"Кокосовые (килинг) острова","Кокосовые (килинг) острова","Кокосовые (килинг) острова (166)",0,"(166)","166",0,null,46,"Кокосовые (килинг) острова","Кокосовые (килинг) острова","0","166"]
[47,null,"КОЛУМБИЯ","КОЛУМБИЯ","КОЛУМБИЯ (170)",0,"(170)","170",0,null,47,"КОЛУМБИЯ","КОЛУМБИЯ","0","170"]
[48,null,"Коморы","Комор","Комор / Коморы (174)",0,"(174)","174",0,null,48,"Коморы","Комор","0","174"]
[49,null,"КОНГО","КОНГО","КОНГО (178)",0,"(178)","178",0,null,49,"КОНГО","КОНГО","0","178"]
[50,null,"КОНГО,ДЕМОКРАТИЧЕСКАЯ РЕСПУБЛИКА (бывш. ЗАИР)","Конго, Демократиялық республика","Конго, Демократиялық республика / КОНГО,ДЕМОКРАТИЧЕСКАЯ РЕСПУБЛИКА (бывш. ЗАИР) (180)",0,"(180)","180",0,null,50,"КОНГО,ДЕМОКРАТИЧЕСКАЯ РЕСПУБЛИКА (бывш. ЗАИР)","Конго, Демократиялық республика","0","180"]
[113,null,"Корея, Народно-Демократическая  республика","Корея, Халықтық-Демократиялық республика","Корея, Халықтық-Демократиялық республика / Корея, Народно-Демократическая  республика (408)",0,"(408)","408",0,null,113,"Корея, Народно-Демократическая  республика","Корея, Халықтық-Демократиялық республика","0","408"]
[324,null,"Косово","Косово","Косово (373)",0,"(373)","373",0,null,324,"Косово","Косово","0","373"]
[52,null,"КОСТА-РИКА","КОСТА-РИКА","КОСТА-РИКА (188)",0,"(188)","188",0,null,52,"КОСТА-РИКА","КОСТА-РИКА","0","188"]
[106,null,"КОТ-Д ИВУАР","КОТ-Д ИВУАР","КОТ-Д ИВУАР (384)",0,"(384)","384",0,null,106,"КОТ-Д ИВУАР","КОТ-Д ИВУАР","0","384"]
[54,null,"КУБА","КУБА","КУБА (192)",0,"(192)","192",0,null,54,"КУБА","КУБА","0","192"]
[115,null,"КУВЕЙТ","КУВЕЙТ","КУВЕЙТ (414)",0,"(414)","414",0,null,115,"КУВЕЙТ","КУВЕЙТ","0","414"]
[116,null,"КЫРГЫЗСТАН","КЫРГЫЗСТАН","КЫРГЫЗСТАН (417)",0,"(417)","417",1,null,116,"КЫРГЫЗСТАН","КЫРГЫЗСТАН","1","417"]
[301,null,"Кюрасао","Кюрасао","Кюрасао (531)",0,"(531)","531",0,null,301,"Кюрасао","Кюрасао","0","531"]
[117,null,"Лаосская народно-демократическая  республика","Лаос халықтық-демократиялық  республикасы","Лаос халықтық-демократиялық  республикасы / Лаосская народно-демократическая  республика (418)",0,"(418)","418",0,null,117,"Лаосская народно-демократическая  республика","Лаос халықтық-демократиялық  республикасы","0","418"]
[120,null,"ЛАТВИЯ","ЛАТВИЯ","ЛАТВИЯ (428)",0,"(428)","428",0,null,120,"ЛАТВИЯ","ЛАТВИЯ","0","428"]
[119,null,"ЛЕСОТО","ЛЕСОТО","ЛЕСОТО (426)",0,"(426)","426",0,null,119,"ЛЕСОТО","ЛЕСОТО","0","426"]
[121,null,"ЛИБЕРИЯ","ЛИБЕРИЯ","ЛИБЕРИЯ (430)",0,"(430)","430",0,null,121,"ЛИБЕРИЯ","ЛИБЕРИЯ","0","430"]
[118,null,"ЛИВАН","ЛИВАН","ЛИВАН (422)",0,"(422)","422",0,null,118,"ЛИВАН","ЛИВАН","0","422"]
[122,null,"Ливийская Арабская Джамахирия","Ливия Араб Джамахириясы","Ливия Араб Джамахириясы / Ливийская Арабская Джамахирия (434)",0,"(434)","434",0,null,122,"Ливийская Арабская Джамахирия","Ливия Араб Джамахириясы","0","434"]
[124,null,"ЛИТВА","ЛИТВА","ЛИТВА (440)",0,"(440)","440",0,null,124,"ЛИТВА","ЛИТВА","0","440"]
[123,null,"ЛИХТЕНШТЕЙН","ЛИХТЕНШТЕЙН","ЛИХТЕНШТЕЙН (438)",0,"(438)","438",0,null,123,"ЛИХТЕНШТЕЙН","ЛИХТЕНШТЕЙН","0","438"]
[125,null,"ЛЮКСЕМБУРГ","ЛЮКСЕМБУРГ","ЛЮКСЕМБУРГ (442)",0,"(442)","442",0,null,125,"ЛЮКСЕМБУРГ","ЛЮКСЕМБУРГ","0","442"]
[135,null,"МАВРИКИЙ","МАВРИКИЙ","МАВРИКИЙ (480)",0,"(480)","480",0,null,135,"МАВРИКИЙ","МАВРИКИЙ","0","480"]
[134,null,"МАВРИТАНИЯ","МАВРИТАНИЯ","МАВРИТАНИЯ (478)",0,"(478)","478",0,null,134,"МАВРИТАНИЯ","МАВРИТАНИЯ","0","478"]
[127,null,"МАДАГАСКАР","МАДАГАСКАР","МАДАГАСКАР (450)",0,"(450)","450",0,null,127,"МАДАГАСКАР","МАДАГАСКАР","0","450"]
[293,null,"МАЙОТТА","МАЙОТТА","МАЙОТТА (175)",0,"(175)","175",0,null,293,"МАЙОТТА","МАЙОТТА","0","175"]
[126,null,"Макао - Специальный административный регион в Китае","Макао - Қытайдағы арнайы әкімшілік аймақ","Макао - Қытайдағы арнайы әкімшілік аймақ / Макао - Специальный административный регион в Китае (446)",0,"(446)","446",0,null,126,"Макао - Специальный административный регион в Китае","Макао - Қытайдағы арнайы әкімшілік аймақ","0","446"]
[224,null,"МАКЕДОНИЯ","МАКЕДОНИЯ, БҰРЫНҒЫ ЮГОСЛАВИЯ РЕСПУБЛИКАСЫ","МАКЕДОНИЯ, БҰРЫНҒЫ ЮГОСЛАВИЯ РЕСПУБЛИКАСЫ / МАКЕДОНИЯ (807)",0,"(807)","807",0,null,224,"МАКЕДОНИЯ","МАКЕДОНИЯ, БҰРЫНҒЫ ЮГОСЛАВИЯ РЕСПУБЛИКАСЫ","0","807"]
[128,null,"МАЛАВИ","МАЛАВИ","МАЛАВИ (454)",0,"(454)","454",0,null,128,"МАЛАВИ","МАЛАВИ","0","454"]
[129,null,"МАЛАЙЗИЯ","МАЛАЙЗИЯ","МАЛАЙЗИЯ (458)",0,"(458)","458",0,null,129,"МАЛАЙЗИЯ","МАЛАЙЗИЯ","0","458"]
[131,null,"МАЛИ","МАЛИ","МАЛИ (466)",0,"(466)","466",0,null,131,"МАЛИ","МАЛИ","0","466"]
[161,null,"Малые тихоокеанские отдаленные о-ва Соединенных Штатов","Малые тихоокеанские отдаленные о-ва Соединенных Штатов","Малые тихоокеанские отдаленные о-ва Соединенных Штатов (581)",0,"(581)","581",0,null,161,"Малые тихоокеанские отдаленные о-ва Соединенных Штатов","Малые тихоокеанские отдаленные о-ва Соединенных Штатов","0","581"]
[130,null,"МАЛЬДИВЫ","МАЛЬДИВЫ",{"$f":"CONCATENATE(IF(B236<>\"\",CONCATENATE(B236,\" \"),\"\"),IF(p_language_current_id=1,C236,IF(p_language_current_id=2,D236,IF(C236=D236,C236,CONCATENATE(D236,IF(F236=0,\" / \",CHAR(10)),C236)))),IF(G236<>\"\",CONCATENATE(\" \",G236),\"\"))","v":"МАЛЬДИВЫ (462)"},0,"(462)","462",0,null,130,"МАЛЬДИВЫ","МАЛЬДИВЫ","0","462"]
[132,null,"МАЛЬТА","МАЛЬТА","МАЛЬТА (470)",0,"(470)","470",0,null,132,"МАЛЬТА","МАЛЬТА","0","470"]
[142,null,"МАРОККО","МАРОККО","МАРОККО (504)",0,"(504)","504",0,null,142,"МАРОККО","МАРОККО","0","504"]
[133,null,"МАРТИНИКА","МАРТИНИКА","МАРТИНИКА (474)",0,"(474)","474",0,null,133,"МАРТИНИКА","МАРТИНИКА","0","474"]
[163,null,"Маршалловы острова","Маршал аралдары","Маршал аралдары / Маршалловы острова (584)",0,{"$f":"IF(AND(H240<>\"\",H240<>\" \"),CONCATENATE(\"(\",H240,\")\"),\"\")","v":"(584)"},"584",0,null,163,"Маршалловы острова","Маршал аралдары","0","584"]
[242,null,"МЕЖДУНАРОДНЫЕ ОРГАНИЗАЦИИ","ХАЛЫҚАРАЛЫҚ ҰЙЫМДАР","ХАЛЫҚАРАЛЫҚ ҰЙЫМДАР / МЕЖДУНАРОДНЫЕ ОРГАНИЗАЦИИ (999)",0,"(999)","999",0,null,242,"МЕЖДУНАРОДНЫЕ ОРГАНИЗАЦИИ","ХАЛЫҚАРАЛЫҚ ҰЙЫМДАР","0","999"]
[136,null,"МЕКСИКА","МЕКСИКА","МЕКСИКА (484)",0,"(484)","484",0,null,136,"МЕКСИКА","МЕКСИКА","0","484"]
[162,null,"Микронезия, Федеративные штаты","Микронезия, Федерациялық штаттар","Микронезия, Федерациялық штаттар / Микронезия, Федеративные штаты (583)",0,"(583)","583",0,null,162,"Микронезия, Федеративные штаты","Микронезия, Федерациялық штаттар","0","583"]
[143,null,"МОЗАМБИК","МОЗАМБИК","МОЗАМБИК (508)",0,"(508)","508",0,null,143,"МОЗАМБИК","МОЗАМБИК","0","508"]
[138,null,"МОНАКО","МОНАКО","МОНАКО (492)",0,"(492)","492",0,null,138,"МОНАКО","МОНАКО","0","492"]
[139,null,"МОНГОЛИЯ","МОНГОЛИЯ","МОНГОЛИЯ (496)",0,"(496)","496",0,null,139,"МОНГОЛИЯ","МОНГОЛИЯ","0","496"]
[141,null,"МОНТСЕРРАТ (БРИТ.)","МОНТСЕРРАТ","МОНТСЕРРАТ / МОНТСЕРРАТ (БРИТ.) (500)",0,"(500)","500",0,null,141,"МОНТСЕРРАТ (БРИТ.)","МОНТСЕРРАТ","0","500"]
[31,null,"МЬЯНМА","МЬЯНМА","МЬЯНМА (104)",0,"(104)","104",0,null,31,"МЬЯНМА","МЬЯНМА","0","104"]
[145,null,"НАМИБИЯ","НАМИБИЯ","НАМИБИЯ (516)",0,"(516)","516",0,null,145,"НАМИБИЯ","НАМИБИЯ","0","516"]
[146,null,"НАУРУ","НАУРУ","НАУРУ (520)",0,"(520)","520",0,null,146,"НАУРУ","НАУРУ","0","520"]
[147,null,"НЕПАЛ","НЕПАЛ","НЕПАЛ (524)",0,"(524)","524",0,null,147,"НЕПАЛ","НЕПАЛ","0","524"]
[155,null,"НИГЕР","НИГЕР","НИГЕР (562)",0,"(562)","562",0,null,155,"НИГЕР","НИГЕР","0","562"]
[156,null,"НИГЕРИЯ","НИГЕРИЯ","НИГЕРИЯ (566)",0,"(566)","566",0,null,156,"НИГЕРИЯ","НИГЕРИЯ","0","566"]
[148,null,"НИДЕРЛАНДЫ","НИДЕРЛАНД","НИДЕРЛАНД / НИДЕРЛАНДЫ (528)",0,"(528)","528",0,null,148,"НИДЕРЛАНДЫ","НИДЕРЛАНД","0","528"]
[154,null,"НИКАРАГУА","НИКАРАГУА","НИКАРАГУА (558)",0,"(558)","558",0,null,154,"НИКАРАГУА","НИКАРАГУА","0","558"]
[157,null,"НИУЭ (Н.ЗЕЛАНДИЯ)","НИУЭ","НИУЭ / НИУЭ (Н.ЗЕЛАНДИЯ) (570)",0,"(570)","570",0,null,157,"НИУЭ (Н.ЗЕЛАНДИЯ)","НИУЭ","0","570"]
[153,null,"НОВАЯ ЗЕЛАНДИЯ","ЖАҢА ЗЕЛАНДИЯ","ЖАҢА ЗЕЛАНДИЯ / НОВАЯ ЗЕЛАНДИЯ (554)",0,"(554)","554",0,null,153,"НОВАЯ ЗЕЛАНДИЯ","ЖАҢА ЗЕЛАНДИЯ","0","554"]
[151,null,"НОВАЯ КАЛЕДОНИЯ (ФРАНЦИЯ)","ЖАҢА КАЛЕДОНИЯ","ЖАҢА КАЛЕДОНИЯ / НОВАЯ КАЛЕДОНИЯ (ФРАНЦИЯ) (540)",0,"(540)","540",0,null,151,"НОВАЯ КАЛЕДОНИЯ (ФРАНЦИЯ)","ЖАҢА КАЛЕДОНИЯ","0","540"]
[159,null,"НОРВЕГИЯ","НОРВЕГИЯ","НОРВЕГИЯ (578)",0,"(578)","578",0,null,159,"НОРВЕГИЯ","НОРВЕГИЯ","0","578"]
[227,null,"НОРМАНДСКИЕ ОСТРОВА","НОРМАНДСКИЕ ОСТРОВА","НОРМАНДСКИЕ ОСТРОВА (830)",0,"(830)","830",0,null,227,"НОРМАНДСКИЕ ОСТРОВА","НОРМАНДСКИЕ ОСТРОВА","0","830"]
[216,null,"ОБЪЕДИНЕННЫЕ АРАБСКИЕ ЭМИРАТЫ","БІРІККЕН АРАБ ӘМІРЛІКТЕРІ","БІРІККЕН АРАБ ӘМІРЛІКТЕРІ / ОБЪЕДИНЕННЫЕ АРАБСКИЕ ЭМИРАТЫ (784)",0,"(784)","784",0,null,216,"ОБЪЕДИНЕННЫЕ АРАБСКИЕ ЭМИРАТЫ","БІРІККЕН АРАБ ӘМІРЛІКТЕРІ","0","784"]
[289,null,"О-в Гернси","Гернси аралы","Гернси аралы / О-в Гернси (831)",0,"(831)","831",0,null,289,"О-в Гернси","Гернси аралы","0","831"]
[244,null,"О-в Джерси","Джерси аралы","Джерси аралы / О-в Джерси (832)",0,"(832)","832",0,null,244,"О-в Джерси","Джерси аралы","0","832"]
[144,null,"ОМАН","ОМАН","ОМАН (512)",0,"(512)","512",0,null,144,"ОМАН","ОМАН","0","512"]
[23,null,"Остров Буве","Буве аралы","Буве аралы / Остров Буве (074)",0,"(074)","074",0,null,23,"Остров Буве","Буве аралы","0","074"]
[228,null,"Остров Мэн","Мэн аралы","Мэн аралы / Остров Мэн (833)",0,"(833)","833",0,null,228,"Остров Мэн","Мэн аралы","0","833"]
[158,null,"Остров Норфолк","Норфолк аралы","Норфолк аралы / Остров Норфолк (574)",0,"(574)","574",0,null,158,"Остров Норфолк","Норфолк аралы","0","574"]
[45,null,"Остров Рождества","Остров Рождества","Остров Рождества (162)",0,"(162)","162",0,null,45,"Остров Рождества","Остров Рождества","0","162"]
[283,null,"ОСТРОВ СВЯТОЙ ЕЛЕНЫ","ӘУЛИЕ ЕЛЕНА","ӘУЛИЕ ЕЛЕНА / ОСТРОВ СВЯТОЙ ЕЛЕНЫ (654)",0,"(654)","654",0,null,283,"ОСТРОВ СВЯТОЙ ЕЛЕНЫ","ӘУЛИЕ ЕЛЕНА","0","654"]
[93,null,"Остров Херд и острова Макдональд","Остров Херд и острова Макдональд","Остров Херд и острова Макдональд (334)",0,"(334)","334",0,null,93,"Остров Херд и острова Макдональд","Остров Херд и острова Макдональд","0","334"]
[38,null,"Острова Кайман","Кайман аралдары","Кайман аралдары / Острова Кайман (136)",0,"(136)","136",0,null,38,"Острова Кайман","Кайман аралдары","0","136"]
[51,null,"Острова Кука","Кук аралдары","Кук аралдары / Острова Кука (184)",0,"(184)","184",0,null,51,"Острова Кука","Кук аралдары","0","184"]
[137,null,"ОСТРОВА МИДУЭЙ","ОСТРОВА МИДУЭЙ","ОСТРОВА МИДУЭЙ",0,""," ",0,null,137,"ОСТРОВА МИДУЭЙ","ОСТРОВА МИДУЭЙ","0"," "]
[220,null,"Острова Теркс и Кайкос","Теркс пен Кайкос аралдары","Теркс пен Кайкос аралдары / Острова Теркс и Кайкос (796)",0,"(796)","796",0,null,220,"Острова Теркс и Кайкос","Теркс пен Кайкос аралдары","0","796"]
[165,null,"ПАКИСТАН","ПӘКСТАН","ПӘКСТАН / ПАКИСТАН (586)",0,"(586)","586",0,null,165,"ПАКИСТАН","ПӘКСТАН","0","586"]
[164,null,"ПАЛАУ (США)","ПАЛАУ","ПАЛАУ / ПАЛАУ (США) (585)",0,"(585)","585",0,null,164,"ПАЛАУ (США)","ПАЛАУ","0","585"]
[294,null,"ПАЛЕСТИНСКАЯ ТЕРРИТОРИЯ, ОККУПИРОВАННАЯ","ПАЛЕСТИНА АУМАҒЫ, БАСЫП АЛЫНҒАН","ПАЛЕСТИНА АУМАҒЫ, БАСЫП АЛЫНҒАН / ПАЛЕСТИНСКАЯ ТЕРРИТОРИЯ, ОККУПИРОВАННАЯ (275)",0,"(275)","275",0,null,294,"ПАЛЕСТИНСКАЯ ТЕРРИТОРИЯ, ОККУПИРОВАННАЯ","ПАЛЕСТИНА АУМАҒЫ, БАСЫП АЛЫНҒАН","0","275"]
[166,null,"ПАНАМА","ПАНАМА","ПАНАМА (591)",0,"(591)","591",0,null,166,"ПАНАМА","ПАНАМА","0","591"]
[94,null,"Папский престол (Государство-город Ватикан)","Папа престолы (Мемлекет-Ватикан қаласы)","Папа престолы (Мемлекет-Ватикан қаласы) / Папский престол (Государство-город Ватикан) (336)",0,"(336)","336",0,null,94,"Папский престол (Государство-город Ватикан)","Папа престолы (Мемлекет-Ватикан қаласы)","0","336"]
[167,null,"ПАПУА-НОВАЯ ГВИНЕЯ","ПАПУА-ЖАҢА ГВИНЕЯ","ПАПУА-ЖАҢА ГВИНЕЯ / ПАПУА-НОВАЯ ГВИНЕЯ (598)",0,"(598)","598",0,null,167,"ПАПУА-НОВАЯ ГВИНЕЯ","ПАПУА-ЖАҢА ГВИНЕЯ","0","598"]
[168,null,"ПАРАГВАЙ","ПАРАГВАЙ","ПАРАГВАЙ (600)",0,"(600)","600",0,null,168,"ПАРАГВАЙ","ПАРАГВАЙ","0","600"]
[169,null,"ПЕРУ","ПЕРУ","ПЕРУ (604)",0,"(604)","604",0,null,169,"ПЕРУ","ПЕРУ","0","604"]
[171,null,"ПИТКЭРН (БРИТ.)","ПИТКЭРН","ПИТКЭРН / ПИТКЭРН (БРИТ.) (612)",0,"(612)","612",0,null,171,"ПИТКЭРН (БРИТ.)","ПИТКЭРН","0","612"]
[172,null,"ПОЛЬША","ПОЛЬША","ПОЛЬША (616)",0,"(616)","616",0,null,172,"ПОЛЬША","ПОЛЬША","0","616"]
[173,null,"ПОРТУГАЛИЯ","ПОРТУГАЛИЯ","ПОРТУГАЛИЯ (620)",0,"(620)","620",0,null,173,"ПОРТУГАЛИЯ","ПОРТУГАЛИЯ","0","620"]
[176,null,"ПУЭРТО-РИКО","ПУЭРТО-РИКО","ПУЭРТО-РИКО (630)",0,"(630)","630",0,null,176,"ПУЭРТО-РИКО","ПУЭРТО-РИКО","0","630"]
[326,null,"Республика Абхазия","Республика Абхазия","Республика Абхазия (895)",0,"(895)","895",0,null,326,"Республика Абхазия","Республика Абхазия","0","895"]
[114,null,"РЕСПУБЛИКА КОРЕЯ (ЮЖНАЯ)","КОРЕЯ, РЕСПУБЛИКА","КОРЕЯ, РЕСПУБЛИКА / РЕСПУБЛИКА КОРЕЯ (ЮЖНАЯ) (410)",0,"(410)","410",0,null,114,"РЕСПУБЛИКА КОРЕЯ (ЮЖНАЯ)","КОРЕЯ, РЕСПУБЛИКА","0","410"]
[140,null,"РЕСПУБЛИКА МОЛДОВА","МОЛДОВА РЕСПУБЛИКАСЫ","МОЛДОВА РЕСПУБЛИКАСЫ / РЕСПУБЛИКА МОЛДОВА (498)",0,"(498)","498",1,null,140,"РЕСПУБЛИКА МОЛДОВА","МОЛДОВА РЕСПУБЛИКАСЫ","1","498"]
[178,null,"РЕЮНЬОН","РЕЮНЬОН","РЕЮНЬОН (638)",0,"(638)","638",0,null,178,"РЕЮНЬОН","РЕЮНЬОН","0","638"]
[180,null,"РОССИЙСКАЯ ФЕДЕРАЦИЯ","РЕСЕЙ ФЕДЕРАЦИЯСЫ","РЕСЕЙ ФЕДЕРАЦИЯСЫ / РОССИЙСКАЯ ФЕДЕРАЦИЯ (643)",0,"(643)","643",1,null,180,"РОССИЙСКАЯ ФЕДЕРАЦИЯ","РЕСЕЙ ФЕДЕРАЦИЯСЫ","1","643"]
[181,null,"РУАНДА","РУАНДА","РУАНДА (646)",0,"(646)","646",0,null,181,"РУАНДА","РУАНДА","0","646"]
[179,null,"РУМЫНИЯ","РУМЫНИЯ","РУМЫНИЯ (642)",0,"(642)","642",0,null,179,"РУМЫНИЯ","РУМЫНИЯ","0","642"]
[62,null,"САЛЬВАДОР","ЭЛЬ-САЛЬВАДОР","ЭЛЬ-САЛЬВАДОР / САЛЬВАДОР (222)",0,"(222)","222",0,null,62,"САЛЬВАДОР","ЭЛЬ-САЛЬВАДОР","0","222"]
[188,null,"САН-МАРИНО","САН-МАРИНО","САН-МАРИНО (674)",0,"(674)","674",0,null,188,"САН-МАРИНО","САН-МАРИНО","0","674"]
[189,null,"САН-ТОМЕ И ПРИНСИПИ","САН-ТОМЕ ЖӘНЕ ПРИНСИПИ","САН-ТОМЕ ЖӘНЕ ПРИНСИПИ / САН-ТОМЕ И ПРИНСИПИ (678)",0,"(678)","678",0,null,189,"САН-ТОМЕ И ПРИНСИПИ","САН-ТОМЕ ЖӘНЕ ПРИНСИПИ","0","678"]
[190,null,"САУДОВСКАЯ АРАВИЯ","САУД АРАВИЯСЫ","САУД АРАВИЯСЫ / САУДОВСКАЯ АРАВИЯ (682)",0,"(682)","682",0,null,190,"САУДОВСКАЯ АРАВИЯ","САУД АРАВИЯСЫ","0","682"]
[206,null,"СВАЗИЛЕНД","СВАЗИЛЕНД",{"$f":"CONCATENATE(IF(B298<>\"\",CONCATENATE(B298,\" \"),\"\"),IF(p_language_current_id=1,C298,IF(p_language_current_id=2,D298,IF(C298=D298,C298,CONCATENATE(D298,IF(F298=0,\" / \",CHAR(10)),C298)))),IF(G298<>\"\",CONCATENATE(\" \",G298),\"\"))","v":"СВАЗИЛЕНД (748)"},0,"(748)","748",0,null,206,"СВАЗИЛЕНД","СВАЗИЛЕНД","0","748"]
[160,null,"СЕВЕРНЫЕ МАРИАНСКИЕ ОСТРОВА (США)","СОЛТҮСТІК МАРИАНА АРАЛДАРЫ","СОЛТҮСТІК МАРИАНА АРАЛДАРЫ / СЕВЕРНЫЕ МАРИАНСКИЕ ОСТРОВА (США) (580)",0,"(580)","580",0,null,160,"СЕВЕРНЫЕ МАРИАНСКИЕ ОСТРОВА (США)","СОЛТҮСТІК МАРИАНА АРАЛДАРЫ","0","580"]
[192,null,"Сейшелы","Сейшель","Сейшель / Сейшелы (690)",0,"(690)","690",0,null,192,"Сейшелы","Сейшель","0","690"]
[284,null,"СЕКТОР ГАЗА (бывш. ПАЛЕСТИНСКИЕ ТЕРРИТОРИИ)","СЕКТОР ГАЗА (бывш. ПАЛЕСТИНСКИЕ ТЕРРИТОРИИ)","СЕКТОР ГАЗА (бывш. ПАЛЕСТИНСКИЕ ТЕРРИТОРИИ) (274)",0,"(274)","274",0,null,284,"СЕКТОР ГАЗА (бывш. ПАЛЕСТИНСКИЕ ТЕРРИТОРИИ)","СЕКТОР ГАЗА (бывш. ПАЛЕСТИНСКИЕ ТЕРРИТОРИИ)","0","274"]
[330,null,"Сен-Бартелеми","Сен-Бартелеми","Сен-Бартелеми (652)",0,"(652)","652",0,null,330,"Сен-Бартелеми","Сен-Бартелеми","0","652"]
[191,null,"СЕНЕГАЛ","СЕНЕГАЛ","СЕНЕГАЛ (686)",0,{"$f":"IF(AND(H303<>\"\",H303<>\" \"),CONCATENATE(\"(\",H303,\")\"),\"\")","v":"(686)"},"686",0,null,191,"СЕНЕГАЛ","СЕНЕГАЛ","0","686"]
[329,null,"Сен-Мартен (французская часть)","Сен-Мартен (франция бөлегі)","Сен-Мартен (франция бөлегі) / Сен-Мартен (французская часть) (663)",0,"(663)","663",0,null,329,"Сен-Мартен (французская часть)","Сен-Мартен (франция бөлегі)","0","663"]
[187,null,"СЕНТ-ВИНСЕНТ И ГРЕНАДИНЫ","СЕНТ-ВИНСЕНТ ЖӘНЕ ГРЕНАДИНДЕР","СЕНТ-ВИНСЕНТ ЖӘНЕ ГРЕНАДИНДЕР / СЕНТ-ВИНСЕНТ И ГРЕНАДИНЫ (670)",0,"(670)","670",0,null,187,"СЕНТ-ВИНСЕНТ И ГРЕНАДИНЫ","СЕНТ-ВИНСЕНТ ЖӘНЕ ГРЕНАДИНДЕР","0","670"]
[183,null,"СЕНТ-КИТС И НЕВИС","СЕНТ-КИТС ЖӘНЕ НЕВИС","СЕНТ-КИТС ЖӘНЕ НЕВИС / СЕНТ-КИТС И НЕВИС (659)",0,"(659)","659",0,null,183,"СЕНТ-КИТС И НЕВИС","СЕНТ-КИТС ЖӘНЕ НЕВИС","0","659"]
[185,null,"СЕНТ-ЛЮСИЯ","СЕНТ-ЛЮСИЯ","СЕНТ-ЛЮСИЯ (662)",0,"(662)","662",0,null,185,"СЕНТ-ЛЮСИЯ","СЕНТ-ЛЮСИЯ","0","662"]
[186,null,"Сент-Пьер и  Микелон","Сент-Пьер және  Микелон","Сент-Пьер және  Микелон / Сент-Пьер и  Микелон (666)",0,"(666)","666",0,null,186,"Сент-Пьер и  Микелон","Сент-Пьер және  Микелон","0","666"]
[296,null,"Сербия","Сербия","Сербия (688)",0,"(688)","688",0,null,296,"Сербия","Сербия","0","688"]
[240,null,"Сербия и Черногория","Сербия и Черногория","Сербия и Черногория (891)",0,"(891)","891",0,null,240,"Сербия и Черногория","Сербия и Черногория","0","891"]
[194,null,"Сингапур","Сингапур","Сингапур (702)",0,"(702)","702",0,null,194,"Сингапур","Сингапур","0","702"]
[302,null,"Синт-Мартен (нидерландская часть)","Синт-Мартен (нидерланд болігі)","Синт-Мартен (нидерланд болігі) / Синт-Мартен (нидерландская часть) (534)",0,"(534)","534",0,null,302,"Синт-Мартен (нидерландская часть)","Синт-Мартен (нидерланд болігі)","0","534"]
[209,null,"СИРИЯ","СИРИЯ АРАБ РЕСПУБЛИКАСЫ","СИРИЯ АРАБ РЕСПУБЛИКАСЫ / СИРИЯ (760)",0,"(760)","760",0,null,209,"СИРИЯ","СИРИЯ АРАБ РЕСПУБЛИКАСЫ","0","760"]
[195,null,"СЛОВАКИЯ","СЛОВАКИЯ","СЛОВАКИЯ (703)",0,"(703)","703",0,null,195,"СЛОВАКИЯ","СЛОВАКИЯ","0","703"]
[197,null,"СЛОВЕНИЯ","СЛОВЕНИЯ","СЛОВЕНИЯ (705)",0,"(705)","705",0,null,197,"СЛОВЕНИЯ","СЛОВЕНИЯ","0","705"]
[226,null,"Соединенное Королевство","Ќўрама Королдігі","Ќўрама Королдігі / Соединенное Королевство (826)",0,"(826)","826",0,null,226,"Соединенное Королевство","Ќўрама Королдігі","0","826"]
[230,null,"Соединенные Штаты","Құрама Штаттар","Құрама Штаттар / Соединенные Штаты (840)",0,"(840)","840",0,null,230,"Соединенные Штаты","Құрама Штаттар","0","840"]
[27,null,"СОЛОМОНОВЫ ОСТРОВА","СОЛОМОН АРАЛДАРЫ","СОЛОМОН АРАЛДАРЫ / СОЛОМОНОВЫ ОСТРОВА (090)",0,"(090)","090",0,null,27,"СОЛОМОНОВЫ ОСТРОВА","СОЛОМОН АРАЛДАРЫ","0","090"]
[198,null,"СОМАЛИ","СОМАЛИ","СОМАЛИ (706)",0,"(706)","706",0,null,198,"СОМАЛИ","СОМАЛИ","0","706"]
[203,null,"Судан","Судан","Судан (729)",0,"(729)","729",0,null,203,"Судан","Судан","0","729"]
[204,null,"СУРИНАМ","СУРИНАМ","СУРИНАМ (740)",0,"(740)","740",0,null,204,"СУРИНАМ","СУРИНАМ","0","740"]
[193,null,"СЬЕРРА-ЛЕОНЕ","СЬЕРРА-ЛЕОНЕ","СЬЕРРА-ЛЕОНЕ (694)",0,"(694)","694",0,null,193,"СЬЕРРА-ЛЕОНЕ","СЬЕРРА-ЛЕОНЕ","0","694"]
[210,null,"ТАДЖИКИСТАН","ТӘЖІКСТАН","ТӘЖІКСТАН / ТАДЖИКИСТАН (762)",0,"(762)","762",1,null,210,"ТАДЖИКИСТАН","ТӘЖІКСТАН","1","762"]
[211,null,"ТАИЛАНД","ТАИЛАНД","ТАИЛАНД (764)",0,"(764)","764",0,null,211,"ТАИЛАНД","ТАИЛАНД","0","764"]
[44,null,"Тайвань (в составе Китая)","Тайвань","Тайвань / Тайвань (в составе Китая) (158)",0,"(158)","158",0,null,44,"Тайвань (в составе Китая)","Тайвань","0","158"]
[229,null,"Танзания, объединенная республика","Танзания, құрама республикасы","Танзания, құрама республикасы / Танзания, объединенная республика (834)",0,"(834)","834",0,null,229,"Танзания, объединенная республика","Танзания, құрама республикасы","0","834"]
[175,null,"Тимор Лоросае","Тимор Лоросае","Тимор Лоросае (626)",0,"(626)","626",0,null,175,"Тимор Лоросае","Тимор Лоросае","0","626"]
[331,null,"Тимор-Лешти","Тимор-Лешти","Тимор-Лешти (626)",0,"(626)","626",0,null,331,"Тимор-Лешти","Тимор-Лешти","0","626"]
[212,null,"ТОГО","ТОГО","ТОГО (768)",0,"(768)","768",0,null,212,"ТОГО","ТОГО","0","768"]
[213,null,"ТОКЕЛАУ (ЮНИОН) (НОВАЯ ЗЕЛАНДИЯ)","ТОКЕЛАУ","ТОКЕЛАУ / ТОКЕЛАУ (ЮНИОН) (НОВАЯ ЗЕЛАНДИЯ) (772)",0,"(772)","772",0,null,213,"ТОКЕЛАУ (ЮНИОН) (НОВАЯ ЗЕЛАНДИЯ)","ТОКЕЛАУ","0","772"]
[214,null,"ТОНГА","ТОНГА","ТОНГА (776)",0,"(776)","776",0,null,214,"ТОНГА","ТОНГА","0","776"]
[215,null,"ТРИНИДАД И ТОБАГО","ТРИНИДАД ЖӘНЕ ТОБАГО","ТРИНИДАД ЖӘНЕ ТОБАГО / ТРИНИДАД И ТОБАГО (780)",0,"(780)","780",0,null,215,"ТРИНИДАД И ТОБАГО","ТРИНИДАД ЖӘНЕ ТОБАГО","0","780"]
[221,null,"ТУВАЛУ","ТУВАЛУ","ТУВАЛУ (798)",0,"(798)","798",0,null,221,"ТУВАЛУ","ТУВАЛУ","0","798"]
[217,null,"ТУНИС","ТУНИС","ТУНИС (788)",0,"(788)","788",0,null,217,"ТУНИС","ТУНИС","0","788"]
[219,null,"ТУРКМЕНИСТАН","ТҮРКМЕНСТАН","ТҮРКМЕНСТАН / ТУРКМЕНИСТАН (795)",0,"(795)","795",1,null,219,"ТУРКМЕНИСТАН","ТҮРКМЕНСТАН","1","795"]
[218,null,"ТУРЦИЯ","ТҮРКИЯ","ТҮРКИЯ / ТУРЦИЯ (792)",0,"(792)","792",0,null,218,"ТУРЦИЯ","ТҮРКИЯ","0","792"]
[222,null,"УГАНДА","УГАНДА","УГАНДА (800)",0,"(800)","800",0,null,222,"УГАНДА","УГАНДА","0","800"]
[234,null,"УЗБЕКИСТАН","ӨЗБЕКСТАН","ӨЗБЕКСТАН / УЗБЕКИСТАН (860)",0,"(860)","860",1,null,234,"УЗБЕКИСТАН","ӨЗБЕКСТАН","1","860"]
[223,null,"УКРАИНА","УКРАИНА","УКРАИНА (804)",0,"(804)","804",1,null,223,"УКРАИНА","УКРАИНА","1","804"]
[237,null,"Уоллис и Футуна","Уоллис пен Футуна","Уоллис пен Футуна / Уоллис и Футуна (876)",0,"(876)","876",0,null,237,"Уоллис и Футуна","Уоллис пен Футуна","0","876"]
[233,null,"УРУГВАЙ","УРУГВАЙ","УРУГВАЙ (858)",0,"(858)","858",0,null,233,"УРУГВАЙ","УРУГВАЙ","0","858"]
[236,null,"УЭЙК","УЭЙК","УЭЙК (872)",0,"(872)","872",0,null,236,"УЭЙК","УЭЙК","0","872"]
[67,null,"ФАРЕРСКИЕ ОСТРОВА (ДАНИЯ)","ФАРЕР АРАЛДАРЫ","ФАРЕР АРАЛДАРЫ / ФАРЕРСКИЕ ОСТРОВА (ДАНИЯ) (234)",0,"(234)","234",0,null,67,"ФАРЕРСКИЕ ОСТРОВА (ДАНИЯ)","ФАРЕР АРАЛДАРЫ","0","234"]
[69,null,"ФИДЖИ","ФИДЖИ","ФИДЖИ (242)",0,"(242)","242",0,null,69,"ФИДЖИ","ФИДЖИ","0","242"]
[170,null,"ФИЛИППИНЫ","ФИЛИППИН","ФИЛИППИН / ФИЛИППИНЫ (608)",0,"(608)","608",0,null,170,"ФИЛИППИНЫ","ФИЛИППИН","0","608"]
[70,null,"ФИНЛЯНДИЯ","ФИНЛЯНДИЯ","ФИНЛЯНДИЯ (246)",0,"(246)","246",0,null,70,"ФИНЛЯНДИЯ","ФИНЛЯНДИЯ","0","246"]
[68,null,"ФОЛКЛЕНДСКИЕ (Мальвинские) ОСТРОВА (Брит.)","Фолкленд (Мальвин) аралдары","Фолкленд (Мальвин) аралдары / ФОЛКЛЕНДСКИЕ (Мальвинские) ОСТРОВА (Брит.) (238)",0,"(238)","238",0,null,68,"ФОЛКЛЕНДСКИЕ (Мальвинские) ОСТРОВА (Брит.)","Фолкленд (Мальвин) аралдары","0","238"]
[71,null,"ФРАНЦИЯ","ФРАНЦИЯ","ФРАНЦИЯ (250)",0,"(250)","250",0,null,71,"ФРАНЦИЯ","ФРАНЦИЯ","0","250"]
[73,null,"ФРАНЦУЗСКАЯ ПОЛИНЕЗИЯ","ФРАНЦУЗ ПОЛИНЕЗИЯСЫ","ФРАНЦУЗ ПОЛИНЕЗИЯСЫ / ФРАНЦУЗСКАЯ ПОЛИНЕЗИЯ (258)",0,"(258)","258",0,null,73,"ФРАНЦУЗСКАЯ ПОЛИНЕЗИЯ","ФРАНЦУЗ ПОЛИНЕЗИЯСЫ","0","258"]
[74,null,"ФРАНЦУЗСКИЕ ЮЖНЫЕ ТЕРРИТОРИИ","ФРАНЦУЗСКИЕ ЮЖНЫЕ ТЕРРИТОРИИ","ФРАНЦУЗСКИЕ ЮЖНЫЕ ТЕРРИТОРИИ (260)",0,"(260)","260",0,null,74,"ФРАНЦУЗСКИЕ ЮЖНЫЕ ТЕРРИТОРИИ","ФРАНЦУЗСКИЕ ЮЖНЫЕ ТЕРРИТОРИИ","0","260"]
[53,null,"ХОРВАТИЯ","ХОРВАТИЯ","ХОРВАТИЯ (191)",0,"(191)","191",0,null,53,"ХОРВАТИЯ","ХОРВАТИЯ","0","191"]
[39,null,"Центрально-африканская республика","Орталық Африка республикасы","Орталық Африка республикасы / Центрально-африканская республика (140)",0,"(140)","140",0,null,39,"Центрально-африканская республика","Орталық Африка республикасы","0","140"]
[41,null,"ЧАД","ЧАД","ЧАД (148)",0,"(148)","148",0,null,41,"ЧАД","ЧАД","0","148"]
[297,null,"Черногория","Черногория","Черногория (499)",0,"(499)","499",0,null,297,"Черногория","Черногория","0","499"]
[56,null,"ЧЕХИЯ","ЧЕХ РЕСПУБЛИКАСЫ","ЧЕХ РЕСПУБЛИКАСЫ / ЧЕХИЯ (203)",0,"(203)","203",0,null,56,"ЧЕХИЯ","ЧЕХ РЕСПУБЛИКАСЫ","0","203"]
[42,null,"ЧИЛИ","ЧИЛИ","ЧИЛИ (152)",0,"(152)","152",0,null,42,"ЧИЛИ","ЧИЛИ","0","152"]
[208,null,"ШВЕЙЦАРИЯ","ШВЕЙЦАРИЯ","ШВЕЙЦАРИЯ (756)",0,"(756)","756",0,null,208,"ШВЕЙЦАРИЯ","ШВЕЙЦАРИЯ","0","756"]
[207,null,"ШВЕЦИЯ","ШВЕЦИЯ","ШВЕЦИЯ (752)",0,"(752)","752",0,null,207,"ШВЕЦИЯ","ШВЕЦИЯ","0","752"]
[205,null,"Шпицберген и Ян Майен","Шпицберген мен Ян Майен","Шпицберген мен Ян Майен / Шпицберген и Ян Майен (744)",0,"(744)","744",0,null,205,"Шпицберген и Ян Майен","Шпицберген мен Ян Майен","0","744"]
[40,null,"ШРИ-ЛАНКА","ШРИ-ЛАНКА","ШРИ-ЛАНКА (144)",0,"(144)","144",0,null,40,"ШРИ-ЛАНКА","ШРИ-ЛАНКА","0","144"]
[61,null,"ЭКВАДОР","ЭКВАДОР","ЭКВАДОР (218)",0,"(218)","218",0,null,61,"ЭКВАДОР","ЭКВАДОР","0","218"]
[63,null,"ЭКВАТОРИАЛЬНАЯ ГВИНЕЯ","ЭКВАТОРИАЛДЫҚ ГВИНЕЯ","ЭКВАТОРИАЛДЫҚ ГВИНЕЯ / ЭКВАТОРИАЛЬНАЯ ГВИНЕЯ (226)",0,"(226)","226",0,null,63,"ЭКВАТОРИАЛЬНАЯ ГВИНЕЯ","ЭКВАТОРИАЛДЫҚ ГВИНЕЯ","0","226"]
[292,null,"ЭЛАНДСКИЕ ОСТРОВА","АЛАНД АРАЛДАРЫ","АЛАНД АРАЛДАРЫ / ЭЛАНДСКИЕ ОСТРОВА (248)",0,"(248)","248",0,null,292,"ЭЛАНДСКИЕ ОСТРОВА","АЛАНД АРАЛДАРЫ","0","248"]
[65,null,"ЭРИТРЕЯ","ЭРИТРЕЯ","ЭРИТРЕЯ (232)",0,"(232)","232",0,null,65,"ЭРИТРЕЯ","ЭРИТРЕЯ","0","232"]
[66,null,"ЭСТОНИЯ","ЭСТОНИЯ","ЭСТОНИЯ (233)",0,"(233)","233",0,null,66,"ЭСТОНИЯ","ЭСТОНИЯ","0","233"]
[64,null,"ЭФИОПИЯ","ЭФИОПИЯ","ЭФИОПИЯ (231)",0,"(231)","231",0,null,64,"ЭФИОПИЯ","ЭФИОПИЯ","0","231"]
[199,null,"Южная Африка","Оңтүстік Африка","Оңтүстік Африка / Южная Африка (710)",0,{"$f":"IF(AND(H367<>\"\",H367<>\" \"),CONCATENATE(\"(\",H367,\")\"),\"\")","v":"(710)"},"710",0,null,199,"Южная Африка","Оңтүстік Африка","0","710"]
[295,null,"ЮЖНАЯ ДЖОРДЖИЯ И ЮЖНЫЕ САНДВИЧЕВЫ ОСТРОВА","ЮЖНАЯ ДЖОРДЖИЯ И ЮЖНЫЕ САНДВИЧЕВЫ ОСТРОВА","ЮЖНАЯ ДЖОРДЖИЯ И ЮЖНЫЕ САНДВИЧЕВЫ ОСТРОВА (239)",0,{"$f":"IF(AND(H368<>\"\",H368<>\" \"),CONCATENATE(\"(\",H368,\")\"),\"\")","v":"(239)"},"239",0,null,295,"ЮЖНАЯ ДЖОРДЖИЯ И ЮЖНЫЕ САНДВИЧЕВЫ ОСТРОВА","ЮЖНАЯ ДЖОРДЖИЯ И ЮЖНЫЕ САНДВИЧЕВЫ ОСТРОВА","0","239"]
[327,null,"Южный Судан","Оңтүстік Судан",{"$f":"CONCATENATE(IF(B369<>\"\",CONCATENATE(B369,\" \"),\"\"),IF(p_language_current_id=1,C369,IF(p_language_current_id=2,D369,IF(C369=D369,C369,CONCATENATE(D369,IF(F369=0,\" / \",CHAR(10)),C369)))),IF(G369<>\"\",CONCATENATE(\" \",G369),\"\"))","v":"Оңтүстік Судан / Южный Судан (728)"},0,{"$f":"IF(AND(H369<>\"\",H369<>\" \"),CONCATENATE(\"(\",H369,\")\"),\"\")","v":"(728)"},"728",0,null,327,"Южный Судан","Оңтүстік Судан","0","728"]
[107,null,"ЯМАЙКА","ЯМАЙКА",{"$f":"CONCATENATE(IF(B370<>\"\",CONCATENATE(B370,\" \"),\"\"),IF(p_language_current_id=1,C370,IF(p_language_current_id=2,D370,IF(C370=D370,C370,CONCATENATE(D370,IF(F370=0,\" / \",CHAR(10)),C370)))),IF(G370<>\"\",CONCATENATE(\" \",G370),\"\"))","v":"ЯМАЙКА (388)"},0,{"$f":"IF(AND(H370<>\"\",H370<>\" \"),CONCATENATE(\"(\",H370,\")\"),\"\")","v":"(388)"},"388",0,null,107,"ЯМАЙКА","ЯМАЙКА","0","388"]
[108,null,"ЯПОНИЯ","ЖАПОНИЯ",{"$f":"CONCATENATE(IF(B371<>\"\",CONCATENATE(B371,\" \"),\"\"),IF(p_language_current_id=1,C371,IF(p_language_current_id=2,D371,IF(C371=D371,C371,CONCATENATE(D371,IF(F371=0,\" / \",CHAR(10)),C371)))),IF(G371<>\"\",CONCATENATE(\" \",G371),\"\"))","v":"ЖАПОНИЯ / ЯПОНИЯ (392)"},0,{"$f":"IF(AND(H371<>\"\",H371<>\" \"),CONCATENATE(\"(\",H371,\")\"),\"\")","v":"(392)"},"392",0,null,108,"ЯПОНИЯ","ЖАПОНИЯ","0","392"]
[]
["Справочник типов разделов"]
["ID","Код слева","Наименование на русском языке","Наименование на казахском языке","Наименование","Перенос текста","Код справа","Код"]
[1,null,"С разбивкой по графам","Бағандар бойынша бөле отырып",{"$f":"CONCATENATE(IF(B375<>\"\",CONCATENATE(B375,\" \"),\"\"),IF(p_language_current_id=1,C375,IF(p_language_current_id=2,D375,IF(C375=D375,C375,CONCATENATE(D375,IF(F375=0,\" / \",CHAR(10)),C375)))),IF(G375<>\"\",CONCATENATE(\" \",G375),\"\"))","v":"Бағандар бойынша бөле отырып\nС разбивкой по графам"},1,null,"NotCountry"]
[2,null,"С разбивкой по странам","Елдер бойынша бөле отырып","Елдер бойынша бөле отырып\nС разбивкой по странам",1,null,"Country"]
[3,null,"С разбивкой по странам и объектам инвестирования","Инвестициялау объектісі және елдер бойынша бөле отырып","Инвестициялау объектісі және елдер бойынша бөле отырып\nС разбивкой по странам и объектам инвестирования",1,null,"InvObj"]
[4,null,"С разбивкой по предприятиям","Кәсіпорындар бойынша бөле отырып","Кәсіпорындар бойынша бөле отырып\nС разбивкой по предприятиям",1,null,"Enterprise"]
[5,null,"Без показателей","Без показателей","Без показателей",1,null,"Empty"]
[6,null,"С разбивкой по вкладам","С разбивкой по вкладам","С разбивкой по вкладам",1]
[7,null,"Специальный","Специальный","Специальный",1]
[8,null,"С разбивкой по инвесторам","С разбивкой по инвесторам","С разбивкой по инвесторам",1]
[9,null,"С разбивкой по периодам","С разбивкой по периодам","С разбивкой по периодам",1]
[10,null,"С разбивкой по агентам","С разбивкой по агентам","С разбивкой по агентам",1]
[11,null,"С разбивкой по столбцам","С разбивкой по столбцам","С разбивкой по столбцам",1,null,"ByStrAsCol"]
[12,null,"С разбивкой по показателям","С разбивкой по показателям","С разбивкой по показателям",1,null,"ByPbStr"]
[]
["Справочник разделов"]
["ID","Код слева","Наименование на русском языке","Наименование на казахском языке","Наименование","Перенос текста","Код справа","Код","Раздел","Тип раздела","Подтип раздела","Галочка содержания","Уровень содержания","Лист","Код слева","Наименование на русском языке","Наименование на казахском языке","Наименование","Перенос текста","Код справа","Код слева","Наименование на русском языке","Наименование на казахском языке","Наименование","Перенос текста","Код справа","Примечание","Валюта раздела (ID из справочника переводов)","1 графа раздела","2 графа раздела","3 графа раздела","Показывать заголовки","1 название столбца","2 название столбца"]
["A",null,null,null,{"$f":"CONCATENATE(IF(B390<>\"\",CONCATENATE(B390,\" \"),\"\"),IF(p_language_current_id=1,C390,IF(p_language_current_id=2,D390,IF(C390=D390,C390,CONCATENATE(D390,IF(F390=0,\" / \",CHAR(10)),C390)))),IF(G390<>\"\",CONCATENATE(\" \",G390),\"\"))","v":""},1,null,null,0,5,0,null,0,null,null,null,null,{"$f":"CONCATENATE(IF(O390<>\"\",CONCATENATE(O390,\" \"),\"\"),IF(p_language_current_id=1,P390,IF(p_language_current_id=2,Q390,IF(P390=Q390,P390,CONCATENATE(Q390,IF(S390=0,\" / \",CHAR(10)),P390)))),IF(T390<>\"\",CONCATENATE(\" \",T390),\"\"))","v":""},1,null,null,{"$f":"IF(OR(ISERROR(FIND(P390,C390,1)),P390=\"\"),CONCATENATE(C390),REPLACE(C390,1,LEN(P390)+1,\"\"))","v":""},{"$f":"IF(OR(ISERROR(FIND(Q390,D390,1)),Q390=\"\"),CONCATENATE(D390),REPLACE(D390,1,LEN(Q390)+1,\"\"))","v":""},{"$f":"CONCATENATE(IF(U390<>\"\",CONCATENATE(U390,\" \"),\"\"),IF(p_language_current_id=1,V390,IF(p_language_current_id=2,W390,IF(V390=W390,V390,CONCATENATE(W390,IF(Y390=0,\" / \",CHAR(10)),V390)))),IF(Z390<>\"\",CONCATENATE(\" \",Z390),\"\"))","v":""},1]
[205,null,"Раздел 1. Общая информация о Вашей организации","1 - бөлім. Сіздің ұйымыңыз туралы жалпы ақпарат","1 - бөлім. Сіздің ұйымыңыз туралы жалпы ақпарат\nРаздел 1. Общая информация о Вашей организации",1,null,"1",0,1,1,1,1,5,null,"Раздел 1.","1 - бөлім.","1 - бөлім.\nРаздел 1.",1,null,null,"Общая информация о Вашей организации","Сіздің ұйымыңыз туралы жалпы ақпарат","Сіздің ұйымыңыз туралы жалпы ақпарат\nОбщая информация о Вашей организации",1,null,null,null,{"$f":"$A$57","v":"indicator_code"},{"$f":"$A$56","v":"indicator_name"}]
[206,null,"Раздел 2. Информация об инвесторах и объектах инвестирования, филиалах, представительствах и сестринских организациях Вашей организации","2 - бөлім. Сіздің ұйымыңыздың инвесторлары және инвестициялау объектілері, филиалдары, өкілдіктері мен тел ұйымдары туралы ақпарат","2 - бөлім. Сіздің ұйымыңыздың инвесторлары және инвестициялау объектілері, филиалдары, өкілдіктері мен тел ұйымдары туралы ақпарат\nРаздел 2. Информация об инвесторах и объектах инвестирования, филиалах, представительствах и сестринских организациях Вашей организации",1,null,"2",0,5,0,1,1,6,null,"Раздел 2.","2 - бөлім.","2 - бөлім.\nРаздел 2.",1,null,null,"Информация об инвесторах и объектах инвестирования, филиалах, представительствах и сестринских организациях Вашей организации","Сіздің ұйымыңыздың инвесторлары және инвестициялау объектілері, филиалдары, өкілдіктері мен тел ұйымдары туралы ақпарат","Сіздің ұйымыңыздың инвесторлары және инвестициялау объектілері, филиалдары, өкілдіктері мен тел ұйымдары туралы ақпарат\nИнформация об инвесторах и объектах инвестирования, филиалах, представительствах и сестринских организациях Вашей организации",1]
[223,null,"2.1 Информация о непосредственных инвесторах Вашей организации","2.1 Сіздің ұйымыңыздың тура инвесторлары туралы ақпарат","2.1 Сіздің ұйымыңыздың тура инвесторлары туралы ақпарат\n2.1 Информация о непосредственных инвесторах Вашей организации",1,null,"2.1",206,5,0,null,2,6,null,"2.1","2.1","2.1",1,null,null,"Информация о непосредственных инвесторах Вашей организации","Сіздің ұйымыңыздың тура инвесторлары туралы ақпарат","Сіздің ұйымыңыздың тура инвесторлары туралы ақпарат\nИнформация о непосредственных инвесторах Вашей организации",1]
[219,null,"2.1.1 Перечислите всех инвесторов-акционеров/участников, непосредственно владеющих долей в Вашей организации по состоянию на дату заполнения анкеты","2.1.1 Сауалнаманы толтыру күнінің жағдайы бойынша Сіздің ұйымыңыздағы үлеске тура ие болып табылатын бар акционер инвесторларды/қатысушыларды атап шығыңыз","2.1.1 Сауалнаманы толтыру күнінің жағдайы бойынша Сіздің ұйымыңыздағы үлеске тура ие болып табылатын бар акционер инвесторларды/қатысушыларды атап шығыңыз\n2.1.1 Перечислите всех инвесторов-акционеров/участников, непосредственно владеющих долей в Вашей организации по состоянию на дату заполнения анкеты",1,null,"2.1.1",223,11,1,null,-1,6,null,"2.1.1","2.1.1","2.1.1",1,null,null,"Перечислите всех инвесторов-акционеров/участников, непосредственно владеющих долей в Вашей организации по состоянию на дату заполнения анкеты","Сауалнаманы толтыру күнінің жағдайы бойынша Сіздің ұйымыңыздағы үлеске тура ие болып табылатын бар акционер инвесторларды/қатысушыларды атап шығыңыз","Сауалнаманы толтыру күнінің жағдайы бойынша Сіздің ұйымыңыздағы үлеске тура ие болып табылатын бар акционер инвесторларды/қатысушыларды атап шығыңыз\nПеречислите всех инвесторов-акционеров/участников, непосредственно владеющих долей в Вашей организации по состоянию на дату заполнения анкеты",1,null,null,null,{"$f":"$A$62","v":"c_0"},{"$f":"$A$51","v":"cols_num"},null,1]
[227,null,"2.2 Информация о непосредственных объектах инвестирования Вашей организации","2.2 Сіздің ұйымыңыздың тура инвестициялау объектілері туралы ақпарат","2.2 Сіздің ұйымыңыздың тура инвестициялау объектілері туралы ақпарат\n2.2 Информация о непосредственных объектах инвестирования Вашей организации",1,null,"2.2",206,5,0,null,2,6,null,"2.2","2.2","2.2",1,null,null,"Информация о непосредственных объектах инвестирования Вашей организации","Сіздің ұйымыңыздың тура инвестициялау объектілері туралы ақпарат","Сіздің ұйымыңыздың тура инвестициялау объектілері туралы ақпарат\nИнформация о непосредственных объектах инвестирования Вашей организации",1]
[228,null,"2.2.1 Владеет ли Ваша организация акциями (долями участия) других организаций по состоянию на дату заполнения анкеты?","2.2.1 Сіздің ұйымыңыз сауалнаманы толтыру күнінің жағдайы бойынша басқа ұйымдардың акцияларына (қатысу үлестеріне) ие болады ма?","2.2.1 Сіздің ұйымыңыз сауалнаманы толтыру күнінің жағдайы бойынша басқа ұйымдардың акцияларына (қатысу үлестеріне) ие болады ма?\n2.2.1 Владеет ли Ваша организация акциями (долями участия) других организаций по состоянию на дату заполнения анкеты?",1,null,"2.2.1",227,1,0,null,-1,6,null,"2.2.1","2.2.1","2.2.1",1,null,null,"Владеет ли Ваша организация акциями (долями участия) других организаций по состоянию на дату заполнения анкеты?","Сіздің ұйымыңыз сауалнаманы толтыру күнінің жағдайы бойынша басқа ұйымдардың акцияларына (қатысу үлестеріне) ие болады ма?","Сіздің ұйымыңыз сауалнаманы толтыру күнінің жағдайы бойынша басқа ұйымдардың акцияларына (қатысу үлестеріне) ие болады ма?\nВладеет ли Ваша организация акциями (долями участия) других организаций по состоянию на дату заполнения анкеты?",1,null,null,null,{"$f":"$A$57","v":"indicator_code"},{"$f":"$A$56","v":"indicator_name"}]
[220,null,"2.2.2 Перечислите все объекты инвестирования-организации, доля в которых непосредственно принадлежит Вашей организации по состоянию на дату заполнения анкеты","2.2.2 Сауалнаманы толтыру күнінің жағдайы бойынша Сіздің ұйымыңыз үлесіне тура ие болып табылатын бар ұйымдар - инвестициялау объектілерін атап шығыңыз","2.2.2 Сауалнаманы толтыру күнінің жағдайы бойынша Сіздің ұйымыңыз үлесіне тура ие болып табылатын бар ұйымдар - инвестициялау объектілерін атап шығыңыз\n2.2.2 Перечислите все объекты инвестирования-организации, доля в которых непосредственно принадлежит Вашей организации по состоянию на дату заполнения анкеты",1,null,"2.2.2",227,11,0,null,-1,6,null,"2.2.2","2.2.2","2.2.2",1,null,null,"Перечислите все объекты инвестирования-организации, доля в которых непосредственно принадлежит Вашей организации по состоянию на дату заполнения анкеты","Сауалнаманы толтыру күнінің жағдайы бойынша Сіздің ұйымыңыз үлесіне тура ие болып табылатын бар ұйымдар - инвестициялау объектілерін атап шығыңыз","Сауалнаманы толтыру күнінің жағдайы бойынша Сіздің ұйымыңыз үлесіне тура ие болып табылатын бар ұйымдар - инвестициялау объектілерін атап шығыңыз\nПеречислите все объекты инвестирования-организации, доля в которых непосредственно принадлежит Вашей организации по состоянию на дату заполнения анкеты",1,null,null,null,{"$f":"$A$62","v":"c_0"},{"$f":"$A$51","v":"cols_num"},null,1]
[221,null,"2.3 Информация о филиалах и представительствах Вашей организации","2.3 Сіздің ұйымыңыздың филиалдар мен өкілдіктер туралы ақпарат","2.3 Сіздің ұйымыңыздың филиалдар мен өкілдіктер туралы ақпарат\n2.3 Информация о филиалах и представительствах Вашей организации",1,null,"2.3",206,5,0,null,2,6,null,"2.3","2.3","2.3",1,null,null,"Информация о филиалах и представительствах Вашей организации","Сіздің ұйымыңыздың филиалдар мен өкілдіктер туралы ақпарат","Сіздің ұйымыңыздың филиалдар мен өкілдіктер туралы ақпарат\nИнформация о филиалах и представительствах Вашей организации",1]
[229,null,"2.3.1 Имеет ли Ваша организация филиалы, представительства за рубежом по состоянию на дату заполнения анкеты?","2.3.1 Сіздің ұйымыңыз сауалнаманы толтыру күнінің жағдайы бойынша филиалдар мен өкілдіктерге ие болады ма?","2.3.1 Сіздің ұйымыңыз сауалнаманы толтыру күнінің жағдайы бойынша филиалдар мен өкілдіктерге ие болады ма?\n2.3.1 Имеет ли Ваша организация филиалы, представительства за рубежом по состоянию на дату заполнения анкеты?",1,null,"2.3.1",221,1,0,null,-1,6,null,"2.3.1","2.3.1","2.3.1",1,null,null,"Имеет ли Ваша организация филиалы, представительства за рубежом по состоянию на дату заполнения анкеты?","Сіздің ұйымыңыз сауалнаманы толтыру күнінің жағдайы бойынша филиалдар мен өкілдіктерге ие болады ма?","Сіздің ұйымыңыз сауалнаманы толтыру күнінің жағдайы бойынша филиалдар мен өкілдіктерге ие болады ма?\nИмеет ли Ваша организация филиалы, представительства за рубежом по состоянию на дату заполнения анкеты?",1,null,null,null,{"$f":"$A$57","v":"indicator_code"},{"$f":"$A$56","v":"indicator_name"}]
[230,null,"2.3.2 Перечислите филиалы и представительства Вашей организации за рубежом по состоянию на дату заполнения анкеты","2.3.2 Сауалнаманы толтыру күнінің жағдайы бойынша Сіздің ұйымыңыз ие болып табылатын бар филиалдар мен өкілдіктерді атап шығыңыз","2.3.2 Сауалнаманы толтыру күнінің жағдайы бойынша Сіздің ұйымыңыз ие болып табылатын бар филиалдар мен өкілдіктерді атап шығыңыз\n2.3.2 Перечислите филиалы и представительства Вашей организации за рубежом по состоянию на дату заполнения анкеты",1,null,"2.3.2",221,11,0,null,-1,6,null,"2.3.2","2.3.2","2.3.2",1,null,null,"Перечислите филиалы и представительства Вашей организации за рубежом по состоянию на дату заполнения анкеты","Сауалнаманы толтыру күнінің жағдайы бойынша Сіздің ұйымыңыз ие болып табылатын бар филиалдар мен өкілдіктерді атап шығыңыз","Сауалнаманы толтыру күнінің жағдайы бойынша Сіздің ұйымыңыз ие болып табылатын бар филиалдар мен өкілдіктерді атап шығыңыз\nПеречислите филиалы и представительства Вашей организации за рубежом по состоянию на дату заполнения анкеты",1,null,null,null,{"$f":"$A$62","v":"c_0"},{"$f":"$A$51","v":"cols_num"},null,1]
[222,null,"2.4 Общая схема связей Вашей организации","2.4 Сіздің ұйымыңыздың байланыстарының жалпы схемасы","2.4 Сіздің ұйымыңыздың байланыстарының жалпы схемасы\n2.4 Общая схема связей Вашей организации",1,null,"2.4",206,5,0,null,2,6,null,"2.4","2.4","2.4",1,null,null,"Общая схема связей Вашей организации","Сіздің ұйымыңыздың байланыстарының жалпы схемасы","Сіздің ұйымыңыздың байланыстарының жалпы схемасы\nОбщая схема связей Вашей организации",1]
[231,null,"2.4.1 Заполните таблицу по общей схеме связей Вашей организации (по Группе, в которую входит Ваша организация) в соответствии с иерархией владения по состоянию на дату заполнения анкеты. Пример для заполнения таблицы приведен в пункте 6 Инструкции по заполнению настоящей формы","2.4.1 Сауалнаманы толтыру күнінің жағдайы бойынша иелік иерархияға сәйкес Сіздің ұйымыңыздың байланыстар жалпы тәсімі бойынша (Сіздің ұйымыңыз ұйымыңыз кіретін Топ бойынша) кестені толтырыңыз. Кестені толтыру үшін үлгісі осы нысанды толтыру бойынша Нұсқаулықтың 6-тармағынды келтірген","2.4.1 Сауалнаманы толтыру күнінің жағдайы бойынша иелік иерархияға сәйкес Сіздің ұйымыңыздың байланыстар жалпы тәсімі бойынша (Сіздің ұйымыңыз ұйымыңыз кіретін Топ бойынша) кестені толтырыңыз. Кестені толтыру үшін үлгісі осы нысанды толтыру бойынша Нұсқаулықтың 6-тармағынды келтірген\n2.4.1 Заполните таблицу по общей схеме связей Вашей организации (по Группе, в которую входит Ваша организация) в соответствии с иерархией владения по состоянию на дату заполнения анкеты. Пример для заполнения таблицы приведен в пункте 6 Инструкции по заполнению настоящей формы",1,null,"2.4.1",222,11,0,null,-1,6,null,"2.4.1","2.4.1","2.4.1",1,null,null,"Заполните таблицу по общей схеме связей Вашей организации (по Группе, в которую входит Ваша организация) в соответствии с иерархией владения по состоянию на дату заполнения анкеты. Пример для заполнения таблицы приведен в пункте 6 Инструкции по заполнению настоящей формы","Сауалнаманы толтыру күнінің жағдайы бойынша иелік иерархияға сәйкес Сіздің ұйымыңыздың байланыстар жалпы тәсімі бойынша (Сіздің ұйымыңыз ұйымыңыз кіретін Топ бойынша) кестені толтырыңыз. Кестені толтыру үшін үлгісі осы нысанды толтыру бойынша Нұсқаулықтың 6-тармағынды келтірген","Сауалнаманы толтыру күнінің жағдайы бойынша иелік иерархияға сәйкес Сіздің ұйымыңыздың байланыстар жалпы тәсімі бойынша (Сіздің ұйымыңыз ұйымыңыз кіретін Топ бойынша) кестені толтырыңыз. Кестені толтыру үшін үлгісі осы нысанды толтыру бойынша Нұсқаулықтың 6-тармағынды келтірген\nЗаполните таблицу по общей схеме связей Вашей организации (по Группе, в которую входит Ваша организация) в соответствии с иерархией владения по состоянию на дату заполнения анкеты. Пример для заполнения таблицы приведен в пункте 6 Инструкции по заполнению настоящей формы",1,null,null,null,{"$f":"$A$51","v":"cols_num"},null,null,1]
[177,null,"2.5 Информация о первичном(-ых) инвесторе(-ах)","2.5 Бастапқы инвестор(-лар) туралы ақпарат",{"$f":"CONCATENATE(IF(B403<>\"\",CONCATENATE(B403,\" \"),\"\"),IF(p_language_current_id=1,C403,IF(p_language_current_id=2,D403,IF(C403=D403,C403,CONCATENATE(D403,IF(F403=0,\" / \",CHAR(10)),C403)))),IF(G403<>\"\",CONCATENATE(\" \",G403),\"\"))","v":"2.5 Бастапқы инвестор(-лар) туралы ақпарат\n2.5 Информация о первичном(-ых) инвесторе(-ах)"},1,null,"2.5",206,11,0,null,2,6,null,"2.5","2.5","2.5",1,null,null,"Информация о первичном(-ых) инвесторе(-ах)","Бастапқы инвестор(-лар) туралы ақпарат","Бастапқы инвестор(-лар) туралы ақпарат\nИнформация о первичном(-ых) инвесторе(-ах)",1,null,null,null,{"$f":"$A$62","v":"c_0"},{"$f":"$A$51","v":"cols_num"},null,1]
[215,null,"Раздел 3. Информация о требованиях, обязательствах и капитале Вашей организации","3 - бөлім. Сіздің ұйымыңыздың талаптары, міндеттемелері және капиталы туралы ақпарат","3 - бөлім. Сіздің ұйымыңыздың талаптары, міндеттемелері және капиталы туралы ақпарат\nРаздел 3. Информация о требованиях, обязательствах и капитале Вашей организации",1,null,"3",0,5,0,1,1,7,null,"Раздел 3.","3 - бөлім.","3 - бөлім.\nРаздел 3.",1,null,null,"Информация о требованиях, обязательствах и капитале Вашей организации","Сіздің ұйымыңыздың талаптары, міндеттемелері және капиталы туралы ақпарат","Сіздің ұйымыңыздың талаптары, міндеттемелері және капиталы туралы ақпарат\nИнформация о требованиях, обязательствах и капитале Вашей организации",1]
[232,null,"3.1 Укажите размер уставного капитала Вашей организации по состоянию на дату заполнения анкеты","3.1 Сіздің ұйымыңыздың сауалнаманы толтыру күнінің жағдайы бойынша  жарғы капиталдың мөлшерін көрсетіңіз","3.1 Сіздің ұйымыңыздың сауалнаманы толтыру күнінің жағдайы бойынша  жарғы капиталдың мөлшерін көрсетіңіз\n3.1 Укажите размер уставного капитала Вашей организации по состоянию на дату заполнения анкеты",1,null,"3.1",215,1,0,null,2,7,null,"3.1","3.1","3.1",1,null,null,"Укажите размер уставного капитала Вашей организации по состоянию на дату заполнения анкеты","Сіздің ұйымыңыздың сауалнаманы толтыру күнінің жағдайы бойынша  жарғы капиталдың мөлшерін көрсетіңіз","Сіздің ұйымыңыздың сауалнаманы толтыру күнінің жағдайы бойынша  жарғы капиталдың мөлшерін көрсетіңіз\nУкажите размер уставного капитала Вашей организации по состоянию на дату заполнения анкеты",1,null,null,null,{"$f":"$A$57","v":"indicator_code"},{"$f":"$A$56","v":"indicator_name"}]
[233,null,"3.2 Отметьте, по каким из перечисленных ниже видов финансовых инструментов объемы требований к нерезидентам и (или) обязательств перед нерезидентами по состоянию на дату заполнения анкеты превышают эквивалент 50 000 000 тенге","3.2 Сауалнаманы толтыру күнінің жағдайы бойынша төменде тізімделген қаржылық құралдардың қай түрі бойынша бейрезиденттерге талаптардың және (немесе) бейрезиденттердің алдындағы міндеттемелердің көлемі 50 000 000 теңгенің баламасын асатынын белгілеңіз","3.2 Сауалнаманы толтыру күнінің жағдайы бойынша төменде тізімделген қаржылық құралдардың қай түрі бойынша бейрезиденттерге талаптардың және (немесе) бейрезиденттердің алдындағы міндеттемелердің көлемі 50 000 000 теңгенің баламасын асатынын белгілеңіз\n3.2 Отметьте, по каким из перечисленных ниже видов финансовых инструментов объемы требований к нерезидентам и (или) обязательств перед нерезидентами по состоянию на дату заполнения анкеты превышают эквивалент 50 000 000 тенге",1,null,"3.2",215,1,0,null,2,7,null,"3.2","3.2","3.2",1,null,null,"Отметьте, по каким из перечисленных ниже видов финансовых инструментов объемы требований к нерезидентам и (или) обязательств перед нерезидентами по состоянию на дату заполнения анкеты превышают эквивалент 50 000 000 тенге","Сауалнаманы толтыру күнінің жағдайы бойынша төменде тізімделген қаржылық құралдардың қай түрі бойынша бейрезиденттерге талаптардың және (немесе) бейрезиденттердің алдындағы міндеттемелердің көлемі 50 000 000 теңгенің баламасын асатынын белгілеңіз","Сауалнаманы толтыру күнінің жағдайы бойынша төменде тізімделген қаржылық құралдардың қай түрі бойынша бейрезиденттерге талаптардың және (немесе) бейрезиденттердің алдындағы міндеттемелердің көлемі 50 000 000 теңгенің баламасын асатынын белгілеңіз\nОтметьте, по каким из перечисленных ниже видов финансовых инструментов объемы требований к нерезидентам и (или) обязательств перед нерезидентами по состоянию на дату заполнения анкеты превышают эквивалент 50 000 000 тенге",1,null,null,null,{"$f":"$A$57","v":"indicator_code"},{"$f":"$A$50","v":"indicator_name_2"},null,1]
[234,null,"3.3 Договоры о совместной деятельности","3.3 Бірлескен қызмет туралы шарттар","3.3 Бірлескен қызмет туралы шарттар\n3.3 Договоры о совместной деятельности",1,null,"3.3",215,1,0,null,2,7,null,"3.3","3.3","3.3",1,null,null,"Договоры о совместной деятельности","Бірлескен қызмет туралы шарттар","Бірлескен қызмет туралы шарттар\nДоговоры о совместной деятельности",1,null,null,null,{"$f":"$A$57","v":"indicator_code"},{"$f":"$A$56","v":"indicator_name"}]
[235,null,"3.4 Опционы сотрудникам на акции головной компании-нерезидента. Заполняется в случае наличия инвесторов-нерезидентов, указанных в пункте 2.1.","3.4 Қызметкерлерге берілетін бейрезидент бас компанияның акцияларына опциондар. 2.1-тармағында көрсетілген бейрезидент инвесторлар бар болса, толтырылады","3.4 Қызметкерлерге берілетін бейрезидент бас компанияның акцияларына опциондар. 2.1-тармағында көрсетілген бейрезидент инвесторлар бар болса, толтырылады\n3.4 Опционы сотрудникам на акции головной компании-нерезидента. Заполняется в случае наличия инвесторов-нерезидентов, указанных в пункте 2.1.",1,null,"3.4",215,1,0,null,2,7,null,"3.4","3.4","3.4",1,null,null,"Опционы сотрудникам на акции головной компании-нерезидента. Заполняется в случае наличия инвесторов-нерезидентов, указанных в пункте 2.1.","Қызметкерлерге берілетін бейрезидент бас компанияның акцияларына опциондар. 2.1-тармағында көрсетілген бейрезидент инвесторлар бар болса, толтырылады","Қызметкерлерге берілетін бейрезидент бас компанияның акцияларына опциондар. 2.1-тармағында көрсетілген бейрезидент инвесторлар бар болса, толтырылады\nОпционы сотрудникам на акции головной компании-нерезидента. Заполняется в случае наличия инвесторов-нерезидентов, указанных в пункте 2.1.",1,null,null,null,{"$f":"$A$57","v":"indicator_code"},{"$f":"$A$56","v":"indicator_name"}]
[216,null,"Раздел 4. Информация об операциях Вашей организации с нерезидентами","4 - бөлім. Сіздің ұйымыңыздың бейрезиденттермен операциялары туралы ақпарат","4 - бөлім. Сіздің ұйымыңыздың бейрезиденттермен операциялары туралы ақпарат\nРаздел 4. Информация об операциях Вашей организации с нерезидентами",1,null,"4",0,5,0,1,1,8,null,"Раздел 4.","4 - бөлім.","4 - бөлім.\nРаздел 4.",1,null,null,"Информация об операциях Вашей организации с нерезидентами","Сіздің ұйымыңыздың бейрезиденттермен операциялары туралы ақпарат","Сіздің ұйымыңыздың бейрезиденттермен операциялары туралы ақпарат\nИнформация об операциях Вашей организации с нерезидентами",1]
[236,null,"4.1 Внешняя торговля товарами в 20___г.","4.1 20___ж. тауарлармен сыртқы сауда","4.1 20___ж. тауарлармен сыртқы сауда\n4.1 Внешняя торговля товарами в 20___г.",1,null,"4.1",216,1,0,null,2,8,null,"4.1","4.1","4.1",1,null,null,"Внешняя торговля товарами в 20___г.","20___ж. тауарлармен сыртқы сауда","20___ж. тауарлармен сыртқы сауда\nВнешняя торговля товарами в 20___г.",1,null,null,null,{"$f":"$A$57","v":"indicator_code"},{"$f":"$A$56","v":"indicator_name"}]
[237,null,"4.2 Внешняя торговля услугами в 20___г.","4.2 20___ж. қызметтермен сыртқы сауда","4.2 20___ж. қызметтермен сыртқы сауда\n4.2 Внешняя торговля услугами в 20___г.",1,null,"4.2",216,1,0,null,2,8,null,"4.2","4.2","4.2",1,null,null,"Внешняя торговля услугами в 20___г.","20___ж. қызметтермен сыртқы сауда","20___ж. қызметтермен сыртқы сауда\nВнешняя торговля услугами в 20___г.",1,null,null,null,{"$f":"$A$57","v":"indicator_code"},{"$f":"$A$56","v":"indicator_name"}]
[238,null,"4.2.3 Укажите, пожалуйста, виды услуг, по которым объем экспорта или импорта превысил 5 000 000 тенге","4.2.3 Экспорттың немесе импорттың көлемі 5 000 000 теңгеден асқан қызметтер түрлерін көрсетіңіз","4.2.3 Экспорттың немесе импорттың көлемі 5 000 000 теңгеден асқан қызметтер түрлерін көрсетіңіз\n4.2.3 Укажите, пожалуйста, виды услуг, по которым объем экспорта или импорта превысил 5 000 000 тенге",1,null,"4.2.3",216,1,0,null,2,8,null,"4.2.3","4.2.3","4.2.3",1,null,null,"Укажите, пожалуйста, виды услуг, по которым объем экспорта или импорта превысил 5 000 000 тенге","Экспорттың немесе импорттың көлемі 5 000 000 теңгеден асқан қызметтер түрлерін көрсетіңіз","Экспорттың немесе импорттың көлемі 5 000 000 теңгеден асқан қызметтер түрлерін көрсетіңіз\nУкажите, пожалуйста, виды услуг, по которым объем экспорта или импорта превысил 5 000 000 тенге",1,null,null,null,{"$f":"$A$57","v":"indicator_code"},{"$f":"$A$49","v":"indicator_name_1"},null,1]
[239,null,"4.3 Использование иностранной рабочей силы","4.3 Шетелдік жұмыс күшін пайдалану","4.3 Шетелдік жұмыс күшін пайдалану\n4.3 Использование иностранной рабочей силы",1,null,"4.3",216,1,0,null,2,8,null,"4.3","4.3","4.3",1,null,null,"Использование иностранной рабочей силы","Шетелдік жұмыс күшін пайдалану","Шетелдік жұмыс күшін пайдалану\nИспользование иностранной рабочей силы",1,null,null,null,{"$f":"$A$57","v":"indicator_code"},{"$f":"$A$56","v":"indicator_name"}]
["B",null,null,null,null,1,null,null,0,5,0,null,0,null,null,null,null,null,null,null,null,"",""]
[217,null,"Раздел 5. График погашения задолженности","5 - бөлім. Берешекті өтеу графигі",{"$f":"CONCATENATE(IF(B415<>\"\",CONCATENATE(B415,\" \"),\"\"),IF(p_language_current_id=1,C415,IF(p_language_current_id=2,D415,IF(C415=D415,C415,CONCATENATE(D415,IF(F415=0,\" / \",CHAR(10)),C415)))),IF(G415<>\"\",CONCATENATE(\" \",G415),\"\"))","v":"5 - бөлім. Берешекті өтеу графигі\nРаздел 5. График погашения задолженности"},1,null,"5",0,5,0,1,1,9,null,"Раздел 5.","5 - бөлім.",{"$f":"CONCATENATE(IF(O415<>\"\",CONCATENATE(O415,\" \"),\"\"),IF(p_language_current_id=1,P415,IF(p_language_current_id=2,Q415,IF(P415=Q415,P415,CONCATENATE(Q415,IF(S415=0,\" / \",CHAR(10)),P415)))),IF(T415<>\"\",CONCATENATE(\" \",T415),\"\"))","v":"5 - бөлім.\nРаздел 5."},1,null,null,"График погашения задолженности","Берешекті өтеу графигі",{"$f":"CONCATENATE(IF(U415<>\"\",CONCATENATE(U415,\" \"),\"\"),IF(p_language_current_id=1,V415,IF(p_language_current_id=2,W415,IF(V415=W415,V415,CONCATENATE(W415,IF(Y415=0,\" / \",CHAR(10)),V415)))),IF(Z415<>\"\",CONCATENATE(\" \",Z415),\"\"))","v":"Берешекті өтеу графигі\nГрафик погашения задолженности"},1]
[240,null,"5.1 Информация о задолженности, отраженной в «Отчете о финансовых требованиях к нерезидентам и обязательствах перед ними» (индекс 1-ПБ, периодичность квартальная) (далее – 1-ПБ), по которой необходимо представить график погашения (заполняется Национальным Банком)","5.1 «Бейрезиденттерге қойылатын қаржылық талаптар және олардың алдындағы міндеттемелер туралы есепте» (индексі 1-ТБ, кезеңділігі тоқсандық) (бұдан әрі – 1-ТБ) көрсетілген берешек туралы ақпарат, өтеу графигін осы есеп бойынша ұсыну қажет (Ұлттық Банк толтырады)","5.1 «Бейрезиденттерге қойылатын қаржылық талаптар және олардың алдындағы міндеттемелер туралы есепте» (индексі 1-ТБ, кезеңділігі тоқсандық) (бұдан әрі – 1-ТБ) көрсетілген берешек туралы ақпарат, өтеу графигін осы есеп бойынша ұсыну қажет (Ұлттық Банк толтырады)\n5.1 Информация о задолженности, отраженной в «Отчете о финансовых требованиях к нерезидентам и обязательствах перед ними» (индекс 1-ПБ, периодичность квартальная) (далее – 1-ПБ), по которой необходимо представить график погашения (заполняется Национальным Банком)",1,null,"5.1",217,1,0,null,2,9,null,"5.1","5.1","5.1",1,null,null,"Информация о задолженности, отраженной в «Отчете о финансовых требованиях к нерезидентам и обязательствах перед ними» (индекс 1-ПБ, периодичность квартальная) (далее – 1-ПБ), по которой необходимо представить график погашения (заполняется Национальным Банком)","«Бейрезиденттерге қойылатын қаржылық талаптар және олардың алдындағы міндеттемелер туралы есепте» (индексі 1-ТБ, кезеңділігі тоқсандық) (бұдан әрі – 1-ТБ) көрсетілген берешек туралы ақпарат, өтеу графигін осы есеп бойынша ұсыну қажет (Ұлттық Банк толтырады)","«Бейрезиденттерге қойылатын қаржылық талаптар және олардың алдындағы міндеттемелер туралы есепте» (индексі 1-ТБ, кезеңділігі тоқсандық) (бұдан әрі – 1-ТБ) көрсетілген берешек туралы ақпарат, өтеу графигін осы есеп бойынша ұсыну қажет (Ұлттық Банк толтырады)\nИнформация о задолженности, отраженной в «Отчете о финансовых требованиях к нерезидентам и обязательствах перед ними» (индекс 1-ПБ, периодичность квартальная) (далее – 1-ПБ), по которой необходимо представить график погашения (заполняется Национальным Банком)",1,null,null,null,{"$f":"$A$57","v":"indicator_code"},{"$f":"$A$56","v":"indicator_name"}]
[241,null,"5.2 График погашения задолженности (в тыс. долл. США)","5.2 Берешекті өтеу графигі (мың АҚШ долл.)","5.2 Берешекті өтеу графигі (мың АҚШ долл.)\n5.2 График погашения задолженности (в тыс. долл. США)",1,null,"5.2",217,12,0,null,2,9,null,"5.2","5.2","5.2",1,null,null,"График погашения задолженности (в тыс. долл. США)","Берешекті өтеу графигі (мың АҚШ долл.)","Берешекті өтеу графигі (мың АҚШ долл.)\nГрафик погашения задолженности (в тыс. долл. США)",1,null,{"$f":"$A$61","v":"c_3"},{"$f":"$A$64","v":"currency_1"},{"$f":"$A$51","v":"cols_num"},{"$f":"$A$52","v":"pb_str_1"},{"$f":"$A$53","v":"pb_value_1"},1,{"$f":"$A$66","v":"col_name_1"}]
[218,null,"Раздел 6. Валютная структура задолженности","6 - бөлім. Берешектің валюталық құрылымы","6 - бөлім. Берешектің валюталық құрылымы\nРаздел 6. Валютная структура задолженности",1,null,"6",0,5,0,1,1,10,null,"Раздел 6.","6 - бөлім.","6 - бөлім.\nРаздел 6.",1,null,null,"Валютная структура задолженности","Берешектің валюталық құрылымы","Берешектің валюталық құрылымы\nВалютная структура задолженности",1]
[242,null,"6.1 Информация о задолженности, отраженной в «Отчете о финансовых требованиях к нерезидентам и обязательствах перед ними» (индекс 1-ПБ, периодичность квартальная), по которой представляется валютная структура (заполняется Национальным Банком)","6.1 «Бейрезиденттерге қойылатын қаржылық талаптар және олардың алдындағы міндеттемелер туралы есепте» (индексі 1-ТБ, кезеңділігі тоқсандық) көрсетілген берешек туралы ақпарат, валюталық құрылымды осы есеп бойынша ұсыну қажет (Ұлттық Банк толтырады)","6.1 «Бейрезиденттерге қойылатын қаржылық талаптар және олардың алдындағы міндеттемелер туралы есепте» (индексі 1-ТБ, кезеңділігі тоқсандық) көрсетілген берешек туралы ақпарат, валюталық құрылымды осы есеп бойынша ұсыну қажет (Ұлттық Банк толтырады)\n6.1 Информация о задолженности, отраженной в «Отчете о финансовых требованиях к нерезидентам и обязательствах перед ними» (индекс 1-ПБ, периодичность квартальная), по которой представляется валютная структура (заполняется Национальным Банком)",1,null,"6.1",218,1,0,null,2,10,null,"6.1","6.1","6.1",1,null,null,"Информация о задолженности, отраженной в «Отчете о финансовых требованиях к нерезидентам и обязательствах перед ними» (индекс 1-ПБ, периодичность квартальная), по которой представляется валютная структура (заполняется Национальным Банком)","«Бейрезиденттерге қойылатын қаржылық талаптар және олардың алдындағы міндеттемелер туралы есепте» (индексі 1-ТБ, кезеңділігі тоқсандық) көрсетілген берешек туралы ақпарат, валюталық құрылымды осы есеп бойынша ұсыну қажет (Ұлттық Банк толтырады)","«Бейрезиденттерге қойылатын қаржылық талаптар және олардың алдындағы міндеттемелер туралы есепте» (индексі 1-ТБ, кезеңділігі тоқсандық) көрсетілген берешек туралы ақпарат, валюталық құрылымды осы есеп бойынша ұсыну қажет (Ұлттық Банк толтырады)\nИнформация о задолженности, отраженной в «Отчете о финансовых требованиях к нерезидентам и обязательствах перед ними» (индекс 1-ПБ, периодичность квартальная), по которой представляется валютная структура (заполняется Национальным Банком)",1,null,null,null,{"$f":"$A$57","v":"indicator_code"},{"$f":"$A$56","v":"indicator_name"}]
[243,null,"6.2 Валютная структура задолженности (в тыс. долл. США)","6.2 Берешектің валюталық құрылымы (мың АҚШ долл.)","6.2 Берешектің валюталық құрылымы (мың АҚШ долл.)\n6.2 Валютная структура задолженности (в тыс. долл. США)",1,null,"6.2",218,12,0,null,2,10,null,"6.2","6.2","6.2",1,null,null,"Валютная структура задолженности (в тыс. долл. США)","Берешектің валюталық құрылымы (мың АҚШ долл.)","Берешектің валюталық құрылымы (мың АҚШ долл.)\nВалютная структура задолженности (в тыс. долл. США)",1,null,{"$f":"$A$61","v":"c_3"},{"$f":"$A$64","v":"currency_1"},{"$f":"$A$51","v":"cols_num"},{"$f":"$A$54","v":"pb_str_2"},{"$f":"$A$55","v":"pb_value_2"},1,{"$f":"$A$68","v":"col_name_3"}]
[]
["Справочник строк"]
["ID","Код слева","Наименование на русском языке","Наименование на казахском языке","Наименование","Перенос текста","Код справа","Код","Раздел","Стиль заголовков","Стиль данных","Тип данных","Примечание","Строка родитель",null,"select t.id_pb_str, h.id_pb_part, h.code, h.name, h.name_kz, t.id_index_type_measure, decode(h.is_editable, 1, 0, 2) from s_pb_str t join s_pb_str_his h on t.id_pb_str = h.id_pb_str and is_last = 1 where id_report = 47 and code not like '%-%' and date_end is null order by num_order;"]
[3650,null,"1.1. Укажите следующие данные","1.1. Келесі мәліметтерді көрсетіңіз",{"$f":"CONCATENATE(IF(B424<>\"\",CONCATENATE(B424,\" \"),\"\"),IF(p_language_current_id=1,C424,IF(p_language_current_id=2,D424,IF(C424=D424,C424,CONCATENATE(D424,IF(F424=0,\" / \",CHAR(10)),C424)))),IF(G424<>\"\",CONCATENATE(\" \",G424),\"\"))","v":"1.1. Келесі мәліметтерді көрсетіңіз\n1.1. Укажите следующие данные"},1,null,"11000",205,null,2,null,null,null,null,3650,205,"11000","1.1. Укажите следующие данные","1.1. Келесі мәліметтерді көрсетіңіз",null,2]
[3651,null,"     Почтовый индекс","     Пошталық индексі","     Пошталық индексі\n     Почтовый индекс",1,null,"11001",205,null,0,6,null,null,null,3651,205,"11001","     Почтовый индекс","     Пошталық индексі",6,0]
[3652,null,"     Область","     Облысы","     Облысы\n     Область",1,null,"11002",205,null,0,6,null,null,null,3652,205,"11002","     Область","     Облысы",6,0]
[3653,null,"     Город, район (или район города)","     Қаласы, ауданы (немесе қаланың ауданы)","     Қаласы, ауданы (немесе қаланың ауданы)\n     Город, район (или район города)",1,null,"11003",205,null,0,6,null,null,null,3653,205,"11003","     Город, район (или район города)","     Қаласы, ауданы (немесе қаланың ауданы)",6,0]
[3654,null,"     Населенный пункт (село)","     Елді мекен (ауыл)","     Елді мекен (ауыл)\n     Населенный пункт (село)",1,null,"11004",205,null,0,6,null,null,null,3654,205,"11004","     Населенный пункт (село)","     Елді мекен (ауыл)",6,0]
[3655,null,"     Местонахождение (улица, проспект)","     Мекенжайы (көшесі, даңғылы)","     Мекенжайы (көшесі, даңғылы)\n     Местонахождение (улица, проспект)",1,null,"11005",205,null,0,6,null,null,null,3655,205,"11005","     Местонахождение (улица, проспект)","     Мекенжайы (көшесі, даңғылы)",6,0]
[3656,null,"     Номер дома и офиса (квартиры)","     Үйдің және офистің (пәтердің) номері","     Үйдің және офистің (пәтердің) номері\n     Номер дома и офиса (квартиры)",1,null,"11006",205,null,0,6,null,null,null,3656,205,"11006","     Номер дома и офиса (квартиры)","     Үйдің және офистің (пәтердің) номері",6,0]
[3657,null,"     Телефон","     Телефоны","     Телефоны\n     Телефон",1,null,"11007",205,null,0,6,null,null,null,3657,205,"11007","     Телефон","     Телефон",6,0]
[3658,null,"     Факс","     Факс","     Факс",1,null,"11008",205,null,0,6,null,null,null,3658,205,"11008","     Факс","     Факс",6,0]
[3659,null,"     Почтовый электронный адрес","     Электрондық поштаның мекенжайы","     Электрондық поштаның мекенжайы\n     Почтовый электронный адрес",1,null,"11009",205,null,0,6,null,null,null,3659,205,"11009","     Почтовый электронный адрес","     Электрондық поштаның мекенжайы",6,0]
[3670,null,"     Официальный сайт организации (при наличии)","     Ұйымның ресми сайты (бар болған жағдайда)","     Ұйымның ресми сайты (бар болған жағдайда)\n     Официальный сайт организации (при наличии)",1,null,"11010",205,null,0,6,null,null,null,3670,205,"11010","     Официальный сайт организации (при наличии)","     Ұйымның ресми сайты (бар болған жағдайда)",6,0]
[3671,null,"1.2. Представление отчетности в Национальный Банк","1.2. Есептілікті Қазақстан Республикасы Ұлттық Банке ұсыну","1.2. Есептілікті Қазақстан Республикасы Ұлттық Банке ұсыну\n1.2. Представление отчетности в Национальный Банк",1,null,"12000",205,null,2,null,null,null,null,3671,205,"12000","1.2. Представление отчетности в Национальный Банк Республики Казахстан","1.2. Есептілікті Қазақстан Республикасы Ұлттық Банкіне ұсыну",null,2]
[3672,null,"     1.2.1. Укажите, пожалуйста, удобные варианты представления отчетности (можно выбрать несколько ответов)","     1.2.1. Сізге ыңғайлы есептілікті ұсыну тәсілдерін көрсетуді сұраймыз (бірнеше жауаптарды таңдауға болады)","     1.2.1. Сізге ыңғайлы есептілікті ұсыну тәсілдерін көрсетуді сұраймыз (бірнеше жауаптарды таңдауға болады)\n     1.2.1. Укажите, пожалуйста, удобные варианты представления отчетности (можно выбрать несколько ответов)",1,null,"12100",205,null,2,null,null,null,null,3672,205,"12100","     1.2.1. Укажите, пожалуйста, удобные варианты представления отчетности (можно выбрать несколько ответов)","     1.2.1. Сізге ыңғайлы есептілікті ұсыну тәсілдерін көрсетуді сұраймыз (бірнеше жауаптарды таңдауға болады)",null,2]
[3690,null,"          В электронном виде посредством сети Интернет с подтверждением электронно-цифровой подписью (ЭЦП)","          Электрондық цифрлық қолтаңбамен (ЭЦҚ) растау рәсімдерін сақтай отырып,  Интернет желісі арқылы электрондық түрде","          Электрондық цифрлық қолтаңбамен (ЭЦҚ) растау рәсімдерін сақтай отырып,  Интернет желісі арқылы электрондық түрде\n          В электронном виде посредством сети Интернет с подтверждением электронно-цифровой подписью (ЭЦП)",1,null,"12101",205,null,0,4,null,null,null,3690,205,"12101","          В электронном виде посредством сети Internet с подтверждением электронно-цифровой подписью (ЭЦП)","          Электрондық цифрлық қолтаңбамен (ЭЦҚ) растау рәсімдерін сақтай отырып,  Internet торы арқылы электрондық түрде",4,0]
[3691,null,"          На бумажном носителе","          Қағаз тасығышта","          Қағаз тасығышта\n          На бумажном носителе",1,null,"12102",205,null,0,4,null,null,null,3691,205,"12102","          На бумажном носителе","          Қағаз тасығышта",4,0]
[3692,null,"          Иное (укажите)","          Басқа (көрсетіңіз)","          Басқа (көрсетіңіз)\n          Иное (укажите)",1,null,"12103",205,null,0,4,null,null,null,3692,205,"12103","          Иное (укажите)","          Басқа (көрсетіңіз)",4,0]
[3693,null,"               (укажите)","               (көрсетіңіз)","               (көрсетіңіз)\n               (укажите)",1,null,"12104",205,null,0,6,null,null,null,3693,205,"12104","               (укажите)","               (көрсетіңіз)",6,0]
[3694,null,"     1.2.2. Имеет ли Ваша организация доступ к сети Интернет?","     1.2.2. Сіздің ұйымыңыздың Интернет желісіне шығу мүмкіндігі бар ма?","     1.2.2. Сіздің ұйымыңыздың Интернет желісіне шығу мүмкіндігі бар ма?\n     1.2.2. Имеет ли Ваша организация доступ к сети Интернет?",1,null,"12200",205,null,2,null,null,null,null,3694,205,"12200","     1.2.2. Имеет ли Ваша организация доступ к сети Internet?","     1.2.2. Сіздің ұйымыңыз Internet торына қол жеткізеді ме?",null,2]
[3695,null,"          Да","          Иә","          Иә\n          Да",1,null,"12201",205,null,0,4,null,null,null,3695,205,"12201","          Да","          Иә",4,0]
[3696,null,"          Нет","          Жоқ","          Жоқ\n          Нет",1,null,"12202",205,null,0,4,null,null,null,3696,205,"12202","          Нет","          Жоқ",4,0]
[3697,null,"     1.2.3. Имеет ли Ваша организация ЭЦП?","     1.2.3. Сіздің ұйымыңыздың ЭЦҚ-сы бар ма?","     1.2.3. Сіздің ұйымыңыздың ЭЦҚ-сы бар ма?\n     1.2.3. Имеет ли Ваша организация ЭЦП?",1,null,"12300",205,null,2,null,null,null,null,3697,205,"12300","     1.2.3. Имеет ли Ваша организация электронно-цифровую подпись?","     1.2.3. Сіздің ұйымыңызды электрондық цифрлық қолтаңбасы бар ма?",null,2]
[3698,null,"          Да","          Иә","          Иә\n          Да",1,null,"12301",205,null,0,4,null,null,null,3698,205,"12301","          Да","          Иә",4,0]
[3699,null,"          Нет","          Жоқ","          Жоқ\n          Нет",1,null,"12302",205,null,0,4,null,null,null,3699,205,"12302","          Нет","          Жоқ",4,0]
[3450,null,"     1.2.4. Представление отчетов посредством ЭЦП какого органа для Вашей организации более удобно?","     1.2.4. Сіздің ұйымыңыз үшін қай органның ЭЦҚ-сы арқылы есепті ұсыну ыңғайлы?","     1.2.4. Сіздің ұйымыңыз үшін қай органның ЭЦҚ-сы арқылы есепті ұсыну ыңғайлы?\n     1.2.4. Представление отчетов посредством ЭЦП какого органа для Вашей организации более удобно?",1,null,"12400",205,null,2,null,null,null,null,3450,205,"12400","     1.2.4. Представление отчетов посредством ЭЦП какого органа для Вашей организации более удобно?","     1.2.4. Сіздің ұйымыңыз үшін қай органның ЭЦҚ-сы арқылы есепті ұсыну ыңғайлы?",null,2]
[3451,null,"          ЭЦП Национального удостоверяющего центра Республики Казахстан (НУЦ)","          Қазақстан Республикасы Ұлттық куәландырушы орталығының (ҰКО) ЭЦҚ-сы","          Қазақстан Республикасы Ұлттық куәландырушы орталығының (ҰКО) ЭЦҚ-сы\n          ЭЦП Национального удостоверяющего центра Республики Казахстан (НУЦ)",1,null,"12401",205,null,0,4,null,null,null,3451,205,"12401","          ЭЦП Национального удостоверяющего центра Республики Казахстан (НУЦ)","          Қазақстан Республикасы Ұлттық куәландырушы орталығының (ҰКО) ЭЦҚ-сы",4,0]
[3452,null,"          ЭЦП РГП «Казахстанский центр межбанковских расчетов Национального Банка Республики Казахстан» (КЦМР)","          «Қазақстан Республикасы Ұлттық Банкінің Қазақстан Банкаралық Есеп Айырысу Орталығы» МРК-ның  (ҚБЕО) ЭЦҚ-сы","          «Қазақстан Республикасы Ұлттық Банкінің Қазақстан Банкаралық Есеп Айырысу Орталығы» МРК-ның  (ҚБЕО) ЭЦҚ-сы\n          ЭЦП РГП «Казахстанский центр межбанковских расчетов Национального Банка Республики Казахстан» (КЦМР)",1,null,"12402",205,null,0,4,null,null,null,3452,205,"12402","          ЭЦП РГП «Казахстанский центр межбанковских расчетов Национального Банка Республики Казахстан» (КЦМР)","          «Қазақстан Республикасы Ұлттық Банкінің Қазақстан Банкаралық Есеп Айырысу Орталығы» МРК-ның  (ҚБЕО) ЭЦҚ-сы",4,0]
[3453,null,"          Иное (укажите)","          Басқа (көрсетіңіз)","          Басқа (көрсетіңіз)\n          Иное (укажите)",1,null,"12403",205,null,0,4,null,null,null,3453,205,"12403","          Иное (укажите)","          Басқа (көрсетіңіз)",4,0]
[3454,null,"               (укажите)","               (көрсетіңіз)","               (көрсетіңіз)\n               (укажите)",1,null,"12404",205,null,0,6,null,null,null,3454,205,"12404","               (укажите)","               (көрсетіңіз)",6,0]
[3458,null,"Наименование/Фамилия, имя, отчество (при наличии) (далее – Ф.И.О.) инвестора","Инвестордың атауы/Тегі, аты, әкесінің аты (бар болған жағдайда) (бұдан әрі – Т.А.Ә.)","Инвестордың атауы/Тегі, аты, әкесінің аты (бар болған жағдайда) (бұдан әрі – Т.А.Ә.)\nНаименование/Фамилия, имя, отчество (при наличии) (далее – Ф.И.О.) инвестора",1,null,"2110Б",219,null,0,6,null,null,null,3458,219,"2110Б","Наименование/Фамилия, имя, отчество (при наличии) (далее – Ф.И.О.) инвестора","Инвестордың атауы/Тегі, аты, әкесінің аты (бар болған жағдайда) (бұдан әрі – Т.А.Ә.)",6,0]
[3459,null,"Страна регистрации юридического лица/ гражданства физического лица","Заңды тұлғаның тіркеу елі/ жеке тұлғаның азаматтығы","Заңды тұлғаның тіркеу елі/ жеке тұлғаның азаматтығы\nСтрана регистрации юридического лица/ гражданства физического лица",1,null,"21101",219,null,0,7,null,null,null,3459,219,"21101","Страна регистрации юридического лица/ гражданства физического лица","Заңды тұлғаның тіркеу елі/ жеке тұлғаның азаматтығы",7,0]
[3460,null,"БИН/ИИН/ идентификационный номеррегистрации, присваиваемый в соответствии с законодательством иностранного государства (далее – ИНР) (при наличииинформации об ИНР)","БСН/ЖСН/шет елдердің заңнамасына тіркеусәйкестендіру нөмері (бұдан әрі – ТСН) (ТСН туралы ақпарат бар болған жағдайда)","БСН/ЖСН/шет елдердің заңнамасына тіркеусәйкестендіру нөмері (бұдан әрі – ТСН) (ТСН туралы ақпарат бар болған жағдайда)\nБИН/ИИН/ идентификационный номеррегистрации, присваиваемый в соответствии с законодательством иностранного государства (далее – ИНР) (при наличииинформации об ИНР)",1,null,"21102",219,null,0,6,null,null,null,3460,219,"21102","БИН/ИИН/ идентификационный номеррегистрации, присваиваемый в соответствии с законодательством иностранного государства (далее – ИНР) (при наличииинформации об ИНР)","БСН/ЖСН/шет елдердің заңнамасына тіркеусәйкестендіру нөмері (бұдан әрі – ТСН) (ТСН туралы ақпарат бар болған жағдайда)",6,0]
[3461,null,"Адрес местонахождения юридического лица/ страна и адрес проживания физического лица","Заңды тұлға орналасқан мекенжай/ жеке тұлға тұратын мекенжай","Заңды тұлға орналасқан мекенжай/ жеке тұлға тұратын мекенжай\nАдрес местонахождения юридического лица/ страна и адрес проживания физического лица",1,null,"21103",219,null,0,6,null,null,null,3461,219,"21103","Адрес местонахождения юридического лица/ страна и адрес проживания физического лица","Заңды тұлға орналасқан мекенжай/ жеке тұлға тұратын мекенжай",6,0]
[3462,null,"Доля инвестора в уставном капитале Вашей организации (%)","Инвестордың Сіздің ұйымыңыздың жарғы капиталындағы үлесі (%)",{"$f":"CONCATENATE(IF(B456<>\"\",CONCATENATE(B456,\" \"),\"\"),IF(p_language_current_id=1,C456,IF(p_language_current_id=2,D456,IF(C456=D456,C456,CONCATENATE(D456,IF(F456=0,\" / \",CHAR(10)),C456)))),IF(G456<>\"\",CONCATENATE(\" \",G456),\"\"))","v":"Инвестордың Сіздің ұйымыңыздың жарғы капиталындағы үлесі (%)\nДоля инвестора в уставном капитале Вашей организации (%)"},1,null,"21104",219,null,0,3,null,null,null,3462,219,"21104","Доля инвестора в уставном капитале Вашей организации (%)","Инвестордың Сіздің ұйымыңыздың жарғы капиталындағы үлесі (%)",3,0]
[3463,null,"Дата начала владения инвестором","Инвестор ие болуға бастайтын күн","Инвестор ие болуға бастайтын күн\nДата начала владения инвестором",1,null,"21105",219,null,0,5,null,null,null,3463,219,"21105","Дата начала владения инвестором","Инвестор ие болуға бастайтын күн",5,0]
[3465,null,"2.2.1. Владеет ли Ваша организация акциями (долями участия) других организаций по состоянию на дату заполнения анкеты?","2.2.1. Сіздің ұйымыңыз сауалнаманы толтыру күнінің жағдайы бойынша басқа ұйымдардың акцияларына (қатысу үлестеріне) ие болады ма?","2.2.1. Сіздің ұйымыңыз сауалнаманы толтыру күнінің жағдайы бойынша басқа ұйымдардың акцияларына (қатысу үлестеріне) ие болады ма?\n2.2.1. Владеет ли Ваша организация акциями (долями участия) других организаций по состоянию на дату заполнения анкеты?",1,null,"22110",null,null,2,null,null,null,null,3465,228,"22110","2.2.1. Владеет ли Ваша организация акциями (долями участия) других организаций по состоянию на дату заполнения анкеты?","2.2.1. Сіздің ұйымыңыз сауалнаманы толтыру күнінің жағдайы бойынша басқа ұйымдардың акцияларына (қатысу үлестеріне) ие болады ма?",null,2]
[3466,null,"     Да","     Иә","     Иә\n     Да",1,null,"22111",228,null,0,4,null,null,null,3466,228,"22111","     Да","     Иә",4,0]
[3467,null,"     Нет","     Жоқ","     Жоқ\n     Нет",1,null,"22112",228,null,0,4,null,null,null,3467,228,"22112","     Нет","     Жоқ",4,0]
[3468,null,"Если ответ «Да», перейдите к заполнению пункта 2.2.2, если ответ «Нет» - к заполнению пункта 2.3.","Егер жауабыңыз «Иә» болса, 2.2.2-тармақты толтыруға көшіңіз, жауабыңыз «Жоқ» болса - 2.3-тармақты толтыруға көшіңіз.","Егер жауабыңыз «Иә» болса, 2.2.2-тармақты толтыруға көшіңіз, жауабыңыз «Жоқ» болса - 2.3-тармақты толтыруға көшіңіз.\nЕсли ответ «Да», перейдите к заполнению пункта 2.2.2, если ответ «Нет» - к заполнению пункта 2.3.",1,null,"22120",228,null,2,null,null,null,null,3468,228,"22120","Если ответ «Да», перейдите к заполнению пункта 2.2.2, если ответ «Нет» - к заполнению пункта 2.3.","Егер жауабыңыз «Иә» болса, 2.2.2-тармақты толтыруға көшіңіз, жауабыңыз «Жоқ» болса - 2.3-тармақты толтыруға көшіңіз.",null,2]
[3472,null,"Наименование объекта инвестирования","Инвестициялау объектісінің атауы","Инвестициялау объектісінің атауы\nНаименование объекта инвестирования",1,null,"2220Б",220,null,0,6,null,null,null,3472,220,"2220Б","Наименование объекта инвестирования","Инвестициялау объектісінің атауы",6,0]
[3473,null,"Страна регистрации объекта инвестирования","Инвестициялау объектісінің тіркеу елі","Инвестициялау объектісінің тіркеу елі\nСтрана регистрации объекта инвестирования",1,null,"22201",220,null,0,7,null,null,null,3473,220,"22201","Страна регистрации объекта инвестирования","Инвестициялау объектісінің тіркеу елі",7,0]
[3474,null,"БИН/ ИНР","БСН/ ТСН","БСН/ ТСН\nБИН/ ИНР",1,null,"22202",220,null,0,6,null,null,null,3474,220,"22202","БИН/ ИНР","БСН/ ТСН",6,0]
[3475,null,"Адрес местонахождения объекта инвестирования","Инвестициялау объектісі орналасқан мекенжай","Инвестициялау объектісі орналасқан мекенжай\nАдрес местонахождения объекта инвестирования",1,null,"22203",220,null,0,6,null,null,null,3475,220,"22203","Адрес местонахождения объекта инвестирования","Инвестициялау объектісі орналасқан мекенжай",6,0]
[3476,null,"Доля Вашей организации в капитале объекте инвестирования (%)","Сіздің ұйымыңыздың инвестициялау объектісінің жарғы капиталындағы үлесі (%)","Сіздің ұйымыңыздың инвестициялау объектісінің жарғы капиталындағы үлесі (%)\nДоля Вашей организации в капитале объекте инвестирования (%)",1,null,"22204",220,null,0,3,null,null,null,3476,220,"22204","Доля Вашей организации в капитале объекте инвестирования (%)","Сіздің ұйымыңыздың инвестициялау объектісінің жарғы капиталындағы үлесі (%)",3,0]
[3477,null,"Дата начала владения объектом инвестирования","Инвестициялау объектісіне ие болуға бастайтын күн","Инвестициялау объектісіне ие болуға бастайтын күн\nДата начала владения объектом инвестирования",1,null,"22205",220,null,0,5,null,null,null,3477,220,"22205","Дата начала владения объектом инвестирования","Инвестициялау объектісіне ие болуға бастайтын күн",5,0]
[3479,null,"2.3.1. Имеет ли Ваша организация филиалы, представительства за рубежом по состоянию на дату заполнения анкеты?","2.3.1. Сіздің ұйымыңыз сауалнаманы толтыру күнінің жағдайы бойынша филиалдар мен өкілдіктерге ие болады ма?","2.3.1. Сіздің ұйымыңыз сауалнаманы толтыру күнінің жағдайы бойынша филиалдар мен өкілдіктерге ие болады ма?\n2.3.1. Имеет ли Ваша организация филиалы, представительства за рубежом по состоянию на дату заполнения анкеты?",1,null,"23110",null,null,2,null,null,null,null,3479,229,"23110","2.3.1. Имеет ли Ваша организация филиалы, представительства за рубежом по состоянию на дату заполнения анкеты?","2.3.1. Сіздің ұйымыңыз сауалнаманы толтыру күнінің жағдайы бойынша филиалдар мен өкілдіктерге ие болады ма?",null,2]
[3480,null,"     Да","     Иә","     Иә\n     Да",1,null,"23111",229,null,0,4,null,null,null,3480,229,"23111","     Да","     Иә",4,0]
[3481,null,"     Нет","     Жоқ","     Жоқ\n     Нет",1,null,"23112",229,null,0,4,null,null,null,3481,229,"23112","     Нет","     Жоқ",4,0]
[3482,null,"Если ответ «Да» перейдите к заполнению пункта 2.3.2, если ответ «Нет» - к заполнению пункта 2.4.","Егер жауабыңыз «Иә» болса, 2.3.2-тармақты толтыруға көшіңіз, жауабыңыз «Жоқ» болса - 2.4-тармақты толтыруға көшіңіз","Егер жауабыңыз «Иә» болса, 2.3.2-тармақты толтыруға көшіңіз, жауабыңыз «Жоқ» болса - 2.4-тармақты толтыруға көшіңіз\nЕсли ответ «Да» перейдите к заполнению пункта 2.3.2, если ответ «Нет» - к заполнению пункта 2.4.",1,null,"23120",229,null,2,null,null,null,null,3482,229,"23120","Если ответ «Да» перейдите к заполнению пункта 2.3.2, если ответ «Нет» - к заполнению пункта 2.4.","Егер жауабыңыз «Иә» болса, 2.3.2-тармақты толтыруға көшіңіз, жауабыңыз «Жоқ» болса - 2.4-тармақты толтыруға көшіңіз",null,2]
[3485,null,"Наименование филиала, представительства","Филиалың, өкілдіктің атауы","Филиалың, өкілдіктің атауы\nНаименование филиала, представительства",1,null,"2320Б",230,null,0,6,null,null,null,3485,230,"2320Б","Наименование филиала, представительства","Филиалың, өкілдіктің атауы",6,0]
[3486,null,"Страна регистрации филиала, представительства","Филиалың, өкілдіктің тіркеу елі","Филиалың, өкілдіктің тіркеу елі\nСтрана регистрации филиала, представительства",1,null,"23201",230,null,0,7,null,null,null,3486,230,"23201","Страна регистрации филиала, представительства","Филиалың, өкілдіктің тіркеу елі",7,0]
[3487,null,"ИНР","ТСН","ТСН\nИНР",1,null,"23202",230,null,0,6,null,null,null,3487,230,"23202","ИНР","ТСН",6,0]
[3488,null,"Адрес местонахождения филиала, представительства","Филиал, өкілдік орналасқан мекенжай","Филиал, өкілдік орналасқан мекенжай\nАдрес местонахождения филиала, представительства",1,null,"23203",230,null,0,6,null,null,null,3488,230,"23203","Адрес местонахождения филиала, представительства","Филиал, өкілдік орналасқан мекенжай",6,0]
[3489,null,"Дата создания филиала, представительства","Филиал, өкілдік құрылған күні","Филиал, өкілдік құрылған күні\nДата создания филиала, представительства",1,null,"23204",230,null,0,5,null,null,null,3489,230,"23204","Дата создания филиала, представительства","Филиал, өкілдік құрылған күні",5,0]
[3495,null,"Наименование юридического лица/ Ф.И.О физического лица, находящегося в Группе","Топқа кіретін заңды тұлғаның атауы/ жеке тұлғаның Т.А.Ә.","Топқа кіретін заңды тұлғаның атауы/ жеке тұлғаның Т.А.Ә.\nНаименование юридического лица/ Ф.И.О физического лица, находящегося в Группе",1,null,"2410А",231,null,0,6,null,null,null,3495,231,"2410А","Наименование юридического лица/ Ф.И.О физического лица, находящегося в Группе","Топқа кіретін заңды тұлғаның атауы/ жеке тұлғаның Т.А.Ә.",6,0]
[3496,null,"Страна регистрации юридического лица/ гражданства физического лица","Заңды тұлғаның тіркеу елі/ жеке тұлғаның азаматтығы","Заңды тұлғаның тіркеу елі/ жеке тұлғаның азаматтығы\nСтрана регистрации юридического лица/ гражданства физического лица",1,null,"2410Б",231,null,0,7,null,null,null,3496,231,"2410Б","Страна регистрации юридического лица/ гражданства физического лица","Заңды тұлғаның тіркеу елі/ жеке тұлғаның азаматтығы",7,0]
[3497,null,"БИН/ ИИН/ ИНР (при наличии информации об ИНР)","БСН/ ЖСН/ ТСН (ТСН туралы ақпараттың бар болған жағдайында)","БСН/ ЖСН/ ТСН (ТСН туралы ақпараттың бар болған жағдайында)\nБИН/ ИИН/ ИНР (при наличии информации об ИНР)",1,null,"2410В",231,null,0,6,null,null,null,3497,231,"2410В","БИН/ ИИН/ ИНР (при наличии информации об ИНР)","БСН/ ЖСН/ ТСН (ТСН туралы ақпараттың бар болған жағдайында)",6,0]
[3498,null,"Порядковый номер, присваиваемый юридическим лицам, указанным в столбцах А – В","А – В-бағандарда көрсетілген заңды тұлғаларға берілетін реттік номер","А – В-бағандарда көрсетілген заңды тұлғаларға берілетін реттік номер\nПорядковый номер, присваиваемый юридическим лицам, указанным в столбцах А – В",1,null,"24101",231,null,0,2,null,null,null,3498,231,"24101","Порядковый номер, присваиваемый юридическим лицам, указанным в столбцах А – В","А – В-бағандарда көрсетілген заңды тұлғаларға берілетін реттік номер",2,0]
[3500,null,"Наименование инвестора из столбца А и (или) номер инвестора из столбца 1","А-бағандағы инвестордың атауы және (немесе) 1-бағандағы инвестордың номері","А-бағандағы инвестордың атауы және (немесе) 1-бағандағы инвестордың номері\nНаименование инвестора из столбца А и (или) номер инвестора из столбца 1",1,null,"24112",231,null,0,6,null,3499,null,3500,231,"24112","Наименование инвестора из столбца А и (или) номер инвестора из столбца 1","А-бағандағы инвестордың атауы және (немесе) 1-бағандағы инвестордың номері",6,0]
[3501,null,"доля инвестора (%)","инвестордың үлесі (%)","инвестордың үлесі (%)\nдоля инвестора (%)",1,null,"24113",231,null,0,3,null,3499,null,3501,231,"24113","доля инвестора (%)","инвестордың үлесі (%)",3,0]
[3674,null,"Наименование/ Ф.И.О. первичного инвестора","Бастапқы инвестордың атауы/ Т.А.Ә.","Бастапқы инвестордың атауы/ Т.А.Ә.\nНаименование/ Ф.И.О. первичного инвестора",1,null,"2500Б",177,null,0,6,null,null,null,3674,177,"2500Б","Наименование/ Ф.И.О. первичного инвестора","Бастапқы инвестордың атауы/ Т.А.Ә.",6,0]
[3675,null,"Страна регистрации юридического лица/ гражданства физического лица","Заңды тұлғаның тіркеу елі/ жеке тұлғаның азаматтығы","Заңды тұлғаның тіркеу елі/ жеке тұлғаның азаматтығы\nСтрана регистрации юридического лица/ гражданства физического лица",1,null,"25001",177,null,0,7,null,null,null,3675,177,"25001","Страна регистрации юридического лица/ гражданства физического лица","Заңды тұлғаның тіркеу елі/ жеке тұлғаның азаматтығы",7,0]
[3676,null,"БИН/ ИИН/ ИНР (при наличии информации об ИНР)","БСН/ ЖСН/ ТСН","БСН/ ЖСН/ ТСН\nБИН/ ИИН/ ИНР (при наличии информации об ИНР)",1,null,"25002",177,null,0,6,null,null,null,3676,177,"25002","БИН/ ИИН/ ИНР (при наличии информации об ИНР)","БСН/ ЖСН/ ТСН",6,0]
[3503,null,"Всего, уставный капитал (тенге)","Барлығы, жарғы капитал (теңге)","Барлығы, жарғы капитал (теңге)\nВсего, уставный капитал (тенге)",1,null,"31100",232,null,0,1,null,null,null,3503,232,"31100","Всего, уставный капитал (тенге)","Барлығы, жарғы капитал (теңге)",1,0]
[3504,null,"в том числе оплаченный (тенге)","оның ішінде төленген (теңге)","оның ішінде төленген (теңге)\nв том числе оплаченный (тенге)",1,null,"31110",232,null,0,1,null,null,null,3504,232,"31110","в том числе оплаченный (тенге)","оның ішінде төленген (теңге)",1,0]
[3506,null,"Наличная иностранная валюта в кассе","Кассадағы қолма-қол шетелдік валюта",{"$f":"CONCATENATE(IF(B488<>\"\",CONCATENATE(B488,\" \"),\"\"),IF(p_language_current_id=1,C488,IF(p_language_current_id=2,D488,IF(C488=D488,C488,CONCATENATE(D488,IF(F488=0,\" / \",CHAR(10)),C488)))),IF(G488<>\"\",CONCATENATE(\" \",G488),\"\"))","v":"Кассадағы қолма-қол шетелдік валюта\nНаличная иностранная валюта в кассе"},1,null,"32100",233,null,0,4,null,null,null,3506,233,"32100","Наличная иностранная валюта в кассе","Кассадағы қолма-қол шетелдік валюта",4,0]
[3510,null,"Депозиты, текущие счета и вклады","Депозиттер, ағымдағы шоттар және түсімдер","Депозиттер, ағымдағы шоттар және түсімдер\nДепозиты, текущие счета и вклады",1,null,"32200",233,null,0,4,null,null,null,3510,233,"32200","Депозиты, текущие счета и вклады","Депозиттер, ағымдағы шоттар және түсімдер",4,0]
[3511,null,"Долевые инструменты (акции, доли участия, паи)","Үлестік құралдар (акциялар, қатысу үлестер, үлеспұлдар)","Үлестік құралдар (акциялар, қатысу үлестер, үлеспұлдар)\nДолевые инструменты (акции, доли участия, паи)",1,null,"32300",233,null,0,4,null,null,null,3511,233,"32300","Долевые инструменты (акции, доли участия, паи)","Үлестік құралдар (акциялар, қатысу үлестер, үлеспұлдар)",4,0]
[3512,null,"Долговые ценные бумаги","Борыштық бағалы қағаздар","Борыштық бағалы қағаздар\nДолговые ценные бумаги",1,null,"32400",233,null,0,4,null,null,null,3512,233,"32400","Долговые ценные бумаги","Борыштық бағалы қағаздар",4,0]
[3513,null,"Торговые (коммерческие) кредиты и авансы","Сауда (коммерциялық) кредиттер мен аванстар","Сауда (коммерциялық) кредиттер мен аванстар\nТорговые (коммерческие) кредиты и авансы",1,null,"32500",233,null,0,4,null,null,null,3513,233,"32500","Торговые (коммерческие) кредиты и авансы","Сауда (коммерциялық) кредиттер мен аванстар",4,0]
[3514,null,"Займы","Заемдар","Заемдар\nЗаймы",1,null,"32600",233,null,0,4,null,null,null,3514,233,"32600","Займы","Заемдар",4,0]
[3515,null,"Прочая кредиторская/ дебиторская задолженность","Басқа кредиторлық/ дебиторлық берешек","Басқа кредиторлық/ дебиторлық берешек\nПрочая кредиторская/ дебиторская задолженность",1,null,"32700",233,null,0,4,null,null,null,3515,233,"32700","Прочая кредиторская/ дебиторская задолженность","Басқа кредиторлық/ дебиторлық берешек",4,0]
[3516,null,"Прочее (укажите)","Басқа (көрсетіңіз)","Басқа (көрсетіңіз)\nПрочее (укажите)",1,null,"32800",233,null,0,4,null,null,null,3516,233,"32800","Прочее (укажите)","Басқа (көрсетіңіз)",4,0]
[3517,null,"     (укажите)","     (көрсетіңіз)","     (көрсетіңіз)\n     (укажите)",1,null,"32810",233,null,0,6,null,null,null,3517,233,"32810","     (укажите)","     (көрсетіңіз)",6,0]
[3519,null,"3.3.1. Имеет ли Ваша организация действующие договоры о совместной деятельности с нерезидентами (без образования юридического лица) на дату заполнения анкеты?","3.3.1. Сіздің ұйымыңызда сауалнаманы толтыру күнінің жағдайы бойынша бейрезиденттермен қолданыстағы бірлескен қызмет туралы шарттар (заңды тұлғаны құруысыз) бар ма?","3.3.1. Сіздің ұйымыңызда сауалнаманы толтыру күнінің жағдайы бойынша бейрезиденттермен қолданыстағы бірлескен қызмет туралы шарттар (заңды тұлғаны құруысыз) бар ма?\n3.3.1. Имеет ли Ваша организация действующие договоры о совместной деятельности с нерезидентами (без образования юридического лица) на дату заполнения анкеты?",1,null,"33110",234,null,2,null,null,null,null,3519,234,"33110","3.3.1. Имеет ли Ваша организация действующие договоры о совместной деятельности с нерезидентами (без образования юридического лица) на дату заполнения анкеты?","3.3.1. Сіздің ұйымыңызда сауалнаманы толтыру күнінің жағдайы бойынша резидент еместермен қолданыстағы бірлескен қызмет туралы шарттар (заңды тұлғаны құруысыз) бар ма?",null,2]
[3520,null,"     Да","     Иә","     Иә\n     Да",1,null,"33111",234,null,0,4,null,null,null,3520,234,"33111","     Да","     Иә",4,0]
[3521,null,"     Нет","     Жоқ","     Жоқ\n     Нет",1,null,"33112",234,null,0,4,null,null,null,3521,234,"33112","     Нет","     Жоқ",4,0]
[3522,null,"Если ответ «Да» перейдите к заполнению пункта 3.3.2, если ответ «Нет» - к заполнению пункта 3.4.","Егер жауабыңыз «Иә» болса, 3.3.2-тармақты толтыруға көшіңіз, жауабыңыз «Жоқ» болса - 3.4-тармақты толтыруға көшіңіз.","Егер жауабыңыз «Иә» болса, 3.3.2-тармақты толтыруға көшіңіз, жауабыңыз «Жоқ» болса - 3.4-тармақты толтыруға көшіңіз.\nЕсли ответ «Да» перейдите к заполнению пункта 3.3.2, если ответ «Нет» - к заполнению пункта 3.4.",1,null,"33113",234,null,2,null,null,null,null,3522,234,"33113","Если ответ «Да» перейдите к заполнению пункта 3.3.2, если ответ «Нет» - к заполнению пункта 3.4.","Егер жауабыңыз «Иә» болса, 3.3.2-тармақты толтыруға көшіңіз, жауабыңыз «Жоқ» болса - 3.4-тармақты толтыруға көшіңіз.",null,2]
[3523,null,"3.3.2. Укажите предмет (сферу осуществления) совместной деятельности","3.3.2. Бірлескен қызметтің затын (іске асыру саласын) көрсетіңіз","3.3.2. Бірлескен қызметтің затын (іске асыру саласын) көрсетіңіз\n3.3.2. Укажите предмет (сферу осуществления) совместной деятельности",1,null,"33210",234,null,0,6,null,null,null,3523,234,"33210","3.3.2. Укажите предмет (сферу осуществления) совместной деятельности","3.3.2. Бірлескен қызметтің затын (іске асыру саласын) көрсетіңіз",6,0]
[3525,null,"Существует ли в Вашей организации практика поощрения своих сотрудников в виде представления опционов на акции головной компании-нерезидента?","Сіздің ұйымыңызда бейрезидент бас компанияның акцияларына опциондарды ұсыну түрінде өз қызметкерлерін көтермелеу тәжірибесі бар ма?","Сіздің ұйымыңызда бейрезидент бас компанияның акцияларына опциондарды ұсыну түрінде өз қызметкерлерін көтермелеу тәжірибесі бар ма?\nСуществует ли в Вашей организации практика поощрения своих сотрудников в виде представления опционов на акции головной компании-нерезидента?",1,null,"34100",235,null,2,null,null,null,null,3525,235,"34100","Существует ли в Вашей организации практика поощрения своих сотрудников в виде представления опционов на акции головной компании-нерезидента?","Сіздің ұйымыңызда резидент емес бас компанияның акцияларына опциондарды ұсыну түрінде өз қызметкерлерін көтермелеу тәжірибесі бар ма?",null,2]
[3526,null,"     Да","     Иә","     Иә\n     Да",1,null,"34110",235,null,0,4,null,null,null,3526,235,"34110","     Да","     Иә",4,0]
[3527,null,"     Нет","     Жоқ","     Жоқ\n     Нет",1,null,"34120",235,null,0,4,null,null,null,3527,235,"34120","     Нет","     Жоқ",4,0]
[3528,null,"4.1. Внешняя торговля товарами в 20___г.","4.1. 20___ж. тауарлармен сыртқы сауда.","4.1. 20___ж. тауарлармен сыртқы сауда.\n4.1. Внешняя торговля товарами в 20___г.",1,null,"4100-2",236,null,0,2,null,null,null,3528,236,"4100-2","4.1. Внешняя торговля товарами в 20___г.","4.1. 20___ж. тауарлармен сыртқы сауда.",2,0]
[3529,null,"4.1.1. Занималась ли Ваша организация экспортом или импортом товаров в рассматриваемом периоде?","4.1.1. Сіздің ұйымыңыз тауар экспортымен немесе импортымен қарастырылған кезеңде айналысты ма?","4.1.1. Сіздің ұйымыңыз тауар экспортымен немесе импортымен қарастырылған кезеңде айналысты ма?\n4.1.1. Занималась ли Ваша организация экспортом или импортом товаров в рассматриваемом периоде?",1,null,"411000",236,null,2,null,null,null,null,3529,236,"411000","4.1.1. Занималась ли Ваша организация экспортом или импортом товаров в рассматриваемом периоде?","4.1.1. Сіздің ұйымыңыз тауар экспортымен немесе импортымен қарастырылған кезеңде айналысты ма?",null,2]
[3530,null,"     Да","     Иә","     Иә\n     Да",1,null,"411010",236,null,0,4,null,null,null,3530,236,"411010","     Да","     Иә",4,0]
[3531,null,"     Нет","     Жоқ","     Жоқ\n     Нет",1,null,"411020",236,null,0,4,null,null,null,3531,236,"411020","     Нет","     Жоқ",4,0]
[3532,null,"Если ответ «Да» перейдите к заполнению пункта 4.1.1.1, если ответ «Нет» - к заполнению пункта 4.1.2.","Егер жауабыңыз «Иә» болса  4.1.1.1-тармақты толтыруға көшіңіз, егер жауабыңыз  «Жоқ» болса - 4.1.2- тармақты толтыруға көшіңіз.","Егер жауабыңыз «Иә» болса  4.1.1.1-тармақты толтыруға көшіңіз, егер жауабыңыз  «Жоқ» болса - 4.1.2- тармақты толтыруға көшіңіз.\nЕсли ответ «Да» перейдите к заполнению пункта 4.1.1.1, если ответ «Нет» - к заполнению пункта 4.1.2.",1,null,"411030",236,null,2,null,null,null,null,3532,236,"411030","Если ответ «Да» перейдите к заполнению пункта 4.1.1.1, если ответ «Нет» - к заполнению пункта 4.1.2.","Егер жауабыңыз «Иә» болса  4.1.1.1-тармақты толтыруға көшіңіз, егер жауабыңыз  «Жоқ» болса - 4.1.2- тармақты толтыруға көшіңіз.",null,2]
[3533,null,"4.1.1.1. Пожалуйста, укажите соответствующий объем (тенге)","4.1.1.1. Өтінеміз, тиісті көлемін көрсетіңіз (теңге)","4.1.1.1. Өтінеміз, тиісті көлемін көрсетіңіз (теңге)\n4.1.1.1. Пожалуйста, укажите соответствующий объем (тенге)",1,null,"411100",236,null,2,null,null,null,null,3533,236,"411100","4.1.1.1. Пожалуйста, укажите соответствующий объем (тенге)","4.1.1.1. Өтінеміз, тиісті көлемін көрсетіңіз (теңге)",null,2]
[3534,null,"     Экспорт товаров","     Тауар экспорты","     Тауар экспорты\n     Экспорт товаров",1,null,"411110",236,null,2,6,null,null,null,3534,236,"411110","     Экспорт товаров","     Тауар экспорты",6,2]
[3535,null,"          менее 5 000 000","          5 000 000 - нан аз","          5 000 000 - нан аз\n          менее 5 000 000",1,null,"411111",236,null,0,4,null,null,null,3535,236,"411111","          менее 5 000 000","          5 000 000 - нан аз",4,0]
[3536,null,"          от 5 000 000 до 50 000 000","          5 000 000 - нан  50 000 000 дейін","          5 000 000 - нан  50 000 000 дейін\n          от 5 000 000 до 50 000 000",1,null,"411112",236,null,0,4,null,null,null,3536,236,"411112","          от 5 000 000 до 50 000 000","          5 000 000 - нан  50 000 000 дейін",4,0]
[3537,null,"          от 50 000 000 до 500 000 000","          50 000 000 - нан  500 000 000 дейін","          50 000 000 - нан  500 000 000 дейін\n          от 50 000 000 до 500 000 000",1,null,"411113",236,null,0,4,null,null,null,3537,236,"411113","          от 50 000 000 до 500 000 000","          50 000 000 - нан  500 000 000 дейін",4,0]
[3538,null,"          500 000 000 и более","          500 000 000 және одан көп","          500 000 000 және одан көп\n          500 000 000 и более",1,null,"411114",236,null,0,4,null,null,null,3538,236,"411114","          500 000 000 и более","          500 000 000 және одан көп",4,0]
[3539,null,"     Импорт товаров","     Тауар импорты","     Тауар импорты\n     Импорт товаров",1,null,"411120",236,null,2,6,null,null,null,3539,236,"411120","     Импорт товаров","     Тауар импорты",6,2]
[3540,null,"          менее 5 000 000","          5 000 000 - нан аз","          5 000 000 - нан аз\n          менее 5 000 000",1,null,"411121",236,null,0,4,null,null,null,3540,236,"411121","          менее 5 000 000","          5 000 000 - нан аз",4,0]
[3541,null,"          от 5 000 000 до 50 000 000","          5 000 000 - нан  50 000 000 дейін","          5 000 000 - нан  50 000 000 дейін\n          от 5 000 000 до 50 000 000",1,null,"411122",236,null,0,4,null,null,null,3541,236,"411122","          от 5 000 000 до 50 000 000","          5 000 000 - нан  50 000 000 дейін",4,0]
[3542,null,"          от 50 000 000 до 500 000 000","          50 000 000 - нан  500 000 000 дейін","          50 000 000 - нан  500 000 000 дейін\n          от 50 000 000 до 500 000 000",1,null,"411123",236,null,0,4,null,null,null,3542,236,"411123","          от 50 000 000 до 500 000 000","          50 000 000 - нан  500 000 000 дейін",4,0]
[3543,null,"          500 000 000 и более","          500 000 000 және одан көп","          500 000 000 және одан көп\n          500 000 000 и более",1,null,"411124",236,null,0,4,null,null,null,3543,236,"411124","          500 000 000 и более","          500 000 000 және одан көп",4,0]
[3544,null,"4.1.2. Занималась ли Ваша организация переработкой или ремонтом товаров, полученных от нерезидентов, в рассматриваемом периоде?","4.1.2. Сіздің ұйымыңыз қарастырылған кезеңде бейрезиденттерден алынған тауарларды қайта өңдеумен немесе жөндеумен айналысты ма?",{"$f":"CONCATENATE(IF(B521<>\"\",CONCATENATE(B521,\" \"),\"\"),IF(p_language_current_id=1,C521,IF(p_language_current_id=2,D521,IF(C521=D521,C521,CONCATENATE(D521,IF(F521=0,\" / \",CHAR(10)),C521)))),IF(G521<>\"\",CONCATENATE(\" \",G521),\"\"))","v":"4.1.2. Сіздің ұйымыңыз қарастырылған кезеңде бейрезиденттерден алынған тауарларды қайта өңдеумен немесе жөндеумен айналысты ма?\n4.1.2. Занималась ли Ваша организация переработкой или ремонтом товаров, полученных от нерезидентов, в рассматриваемом периоде?"},1,null,"412000",236,null,2,null,null,null,null,3544,236,"412000","4.1.2. Занималась ли Ваша организация переработкой или ремонтом товаров, полученных от нерезидентов, в рассматриваемом периоде?","4.1.2. Сіздің ұйымыңыз қарастырылған кезеңде резидент еместерден алынған тауарларды қайта өңдеумен немесе жөндеумен айналысты ма?",null,2]
[3545,null,"     Да","     Иә","     Иә\n     Да",1,null,"412010",236,null,0,4,null,null,null,3545,236,"412010","     Да","     Иә",4,0]
[3546,null,"     Нет","     Жоқ","     Жоқ\n     Нет",1,null,"412020",236,null,0,4,null,null,null,3546,236,"412020","     Нет","     Жоқ",4,0]
[3547,null,"4.1.3. Направляла ли Ваша организация за рубеж товары на переработку или на ремонт в рассматриваемом периоде?","4.1.3. Сіздің ұйымыңыз қарастырылған кезеңде тауарларды қайта өңдеуге немесе жөндеуге шетелге жіберді ме?","4.1.3. Сіздің ұйымыңыз қарастырылған кезеңде тауарларды қайта өңдеуге немесе жөндеуге шетелге жіберді ме?\n4.1.3. Направляла ли Ваша организация за рубеж товары на переработку или на ремонт в рассматриваемом периоде?",1,null,"413000",236,null,2,null,null,null,null,3547,236,"413000","4.1.3. Направляла ли Ваша организация за рубеж товары на переработку или на ремонт в рассматриваемом периоде?","4.1.3. Сіздің ұйымыңыз қарастырылған кезеңде тауарларды қайта өңдеуге немесе жөндеуге шетелге жіберді ме?",null,2]
[3548,null,"     Да","     Иә","     Иә\n     Да",1,null,"413010",236,null,0,4,null,null,null,3548,236,"413010","     Да","     Иә",4,0]
[3549,null,"     Нет","     Жоқ","     Жоқ\n     Нет",1,null,"413020",236,null,0,4,null,null,null,3549,236,"413020","     Нет","     Жоқ",4,0]
[3550,null,"4.1.4. Занималась ли Ваша организация перепродажей товаров за рубежом без их ввоза в Республику Казахстан в рассматриваемом периоде?","4.1.4. Сіздің ұйымыңыз қарастырылған кезеңде тауарларды Қазақстан Республикасына әкелместен шетелде қайта сатумен айналысты ма?","4.1.4. Сіздің ұйымыңыз қарастырылған кезеңде тауарларды Қазақстан Республикасына әкелместен шетелде қайта сатумен айналысты ма?\n4.1.4. Занималась ли Ваша организация перепродажей товаров за рубежом без их ввоза в Республику Казахстан в рассматриваемом периоде?",1,null,"414000",236,null,2,null,null,null,null,3550,236,"414000","4.1.4. Занималась ли Ваша организация перепродажей товаров за рубежом без их ввоза в Республику Казахстан в рассматриваемом периоде?","4.1.4. Сіздің ұйымыңыз қарастырылған кезеңде тауарларды Қазақстан Республикасына әкелместен шетелде қайта сатумен айналысты ма?",null,2]
[3551,null,"     Да","     Иә","     Иә\n     Да",1,null,"414010",236,null,0,4,null,null,null,3551,236,"414010","     Да","     Иә",4,0]
[3552,null,"     Нет","     Жоқ","     Жоқ\n     Нет",1,null,"414020",236,null,0,4,null,null,null,3552,236,"414020","     Нет","     Жоқ",4,0]
[3553,null,"4.2. Внешняя торговля услугами в 20___г.","4.2. 20___ж.қызметтермен сыртқы сауда.","4.2. 20___ж.қызметтермен сыртқы сауда.\n4.2. Внешняя торговля услугами в 20___г.",1,null,"420-2",237,null,0,2,null,null,null,3553,237,"420-2","4.2. Внешняя торговля услугами в 20___г.","4.2. 20___ж.қызметтермен сыртқы сауда.",2,0]
[3554,null,"4.2.1. Представляла ли Ваша организация услуги нерезидентам или приобретала ли она услуги от нерезидентов?","4.2.1. Сіздің ұйымыңыз бейрезиденттерге қызмет көрсетті ме немесе бейрезиденттерден қызметін пайдаланды ма?","4.2.1. Сіздің ұйымыңыз бейрезиденттерге қызмет көрсетті ме немесе бейрезиденттерден қызметін пайдаланды ма?\n4.2.1. Представляла ли Ваша организация услуги нерезидентам или приобретала ли она услуги от нерезидентов?",1,null,"42100",237,null,2,null,null,null,null,3554,237,"42100","4.2.1. Представляла ли Ваша организация услуги нерезидентам или приобретала ли она услуги от нерезидентов?","4.2.1. Сіздің ұйымыңыз резидент еместерге қызмет көрсетті ме немесе резидент еместерден қызметін пайдаланды ма?",null,2]
[3555,null,"     Да","     Иә","     Иә\n     Да",1,null,"42110",237,null,0,4,null,null,null,3555,237,"42110","     Да","     Иә",4,0]
[3556,null,"     Нет","     Жоқ","     Жоқ\n     Нет",1,null,"42120",237,null,0,4,null,null,null,3556,237,"42120","     Нет","     Жоқ",4,0]
[3557,null,"Если ответ «Да» перейдите к заполнению пункта 4.2.2., если ответ «Нет» - к заполнению пункта 4.3.","Егер жауабыңыз «Иә» болса  4.2.2-тармағын толтыруға көшіңіз, егер жауабыңыз «Жоқ» болса- 4.3-тармағын толтырыңыз.","Егер жауабыңыз «Иә» болса  4.2.2-тармағын толтыруға көшіңіз, егер жауабыңыз «Жоқ» болса- 4.3-тармағын толтырыңыз.\nЕсли ответ «Да» перейдите к заполнению пункта 4.2.2., если ответ «Нет» - к заполнению пункта 4.3.",1,null,"42130",237,null,2,null,null,null,null,3557,237,"42130","Если ответ «Да» перейдите к заполнению пункта 4.2.2., если ответ «Нет» - к заполнению пункта 4.3.","Егер жауабыңыз «Иә» болса  4.2.2-тармағын толтыруға көшіңіз, егер жауабыңыз «Жоқ» болса- 4.3-тармағын толтырыңыз.",null,2]
[3558,null,"4.2.2. Пожалуйста, укажите соответствующий объем (тенге)","4.2.2. Өтінеміз, тиісті көлемін көрсетіңіз (теңге)","4.2.2. Өтінеміз, тиісті көлемін көрсетіңіз (теңге)\n4.2.2. Пожалуйста, укажите соответствующий объем (тенге)",1,null,"42200",237,null,2,null,null,null,null,3558,237,"42200","4.2.2. Пожалуйста, укажите соответствующий объем (тенге)","4.2.2. Өтінеміз, тиісті көлемін көрсетіңіз (теңге)",null,2]
[3559,null,"     Экспорт услуг (Объемы услуг, оказанные Вашей организацией нерезидентам)","     Қызметтер экспорты (Сіздің ұйымыңыздың бейрезиденттерге көрсеткен қызметтерінің көлемі)","     Қызметтер экспорты (Сіздің ұйымыңыздың бейрезиденттерге көрсеткен қызметтерінің көлемі)\n     Экспорт услуг (Объемы услуг, оказанные Вашей организацией нерезидентам)",1,null,"42210",237,null,2,6,null,null,null,3559,237,"42210","     Экспорт услуг (Объемы услуг, оказанные Вашей организацией нерезидентам)","     Қызметтер экспорты (Сіздің ұйымыңыздың резидент еместерге көрсеткен қызметтерінің көлемі)",6,2]
[3560,null,"          менее 5 000 000","          5 000 000 - нан аз","          5 000 000 - нан аз\n          менее 5 000 000",1,null,"42211",237,null,0,4,null,null,null,3560,237,"42211","          менее 5 000 000","          5 000 000 - нан аз",4,0]
[3561,null,"          от 5 000 000 до 50 000 000","          5 000 000 - нан  50 000 000 дейін","          5 000 000 - нан  50 000 000 дейін\n          от 5 000 000 до 50 000 000",1,null,"42212",237,null,0,4,null,null,null,3561,237,"42212","          от 5 000 000 до 50 000 000","          5 000 000 - нан  50 000 000 дейін",4,0]
[3562,null,"          от 50 000 000 до 500 000 000","          50 000 000 - нан  500 000 000 дейін","          50 000 000 - нан  500 000 000 дейін\n          от 50 000 000 до 500 000 000",1,null,"42213",237,null,0,4,null,null,null,3562,237,"42213","          от 50 000 000 до 500 000 000","          50 000 000 - нан  500 000 000 дейін",4,0]
[3563,null,"          500 000 000 и более","          500 000 000 және одан көп","          500 000 000 және одан көп\n          500 000 000 и более",1,null,"42214",237,null,0,4,null,null,null,3563,237,"42214","          500 000 000 и более","          500 000 000 және одан көп",4,0]
[3564,null,"     Импорт услуг (Объемы услуг, оказанные Вашей организации нерезидентами)","     Қызметтер импорты (Сіздің ұйымыңызға бейрезиденттердің көрсеткен қызметтерінің көлемі)","     Қызметтер импорты (Сіздің ұйымыңызға бейрезиденттердің көрсеткен қызметтерінің көлемі)\n     Импорт услуг (Объемы услуг, оказанные Вашей организации нерезидентами)",1,null,"42220",237,null,2,6,null,null,null,3564,237,"42220","     Импорт услуг (Объемы услуг, оказанные Вашей организации нерезидентами)","     Қызметтер импорты (Сіздің ұйымыңызға резидент еместердің көрсеткен қызметтерінің көлемі)",6,2]
[3565,null,"          менее 5 000 000","          5 000 000 - нан аз","          5 000 000 - нан аз\n          менее 5 000 000",1,null,"42221",237,null,0,4,null,null,null,3565,237,"42221","          менее 5 000 000","          5 000 000 - нан аз",4,0]
[3566,null,"          от 5 000 000 до 50 000 000","          5 000 000 - нан  50 000 000 дейін","          5 000 000 - нан  50 000 000 дейін\n          от 5 000 000 до 50 000 000",1,null,"42222",237,null,0,4,null,null,null,3566,237,"42222","          от 5 000 000 до 50 000 000","          5 000 000 - нан  50 000 000 дейін",4,0]
[3567,null,"          от 50 000 000 до 500 000 000","          50 000 000 - нан  500 000 000 дейін","          50 000 000 - нан  500 000 000 дейін\n          от 50 000 000 до 500 000 000",1,null,"42223",237,null,0,4,null,null,null,3567,237,"42223","          от 50 000 000 до 500 000 000","          50 000 000 - нан  500 000 000 дейін",4,0]
[3568,null,"          500 000 000 и более","          500 000 000 және одан көп","          500 000 000 және одан көп\n          500 000 000 и более",1,null,"42224",237,null,0,4,null,null,null,3568,237,"42224","          500 000 000 и более","          500 000 000 және одан көп",4,0]
[3573,null,"Транспортные услуги (перевозка грузов, перевозка пассажиров, вспомогательная транспортная деятельность)","Көлік қызметі (жүк тасымалдау, жолаушылар тасымалдау, қосалқы көлік қызметі)","Көлік қызметі (жүк тасымалдау, жолаушылар тасымалдау, қосалқы көлік қызметі)\nТранспортные услуги (перевозка грузов, перевозка пассажиров, вспомогательная транспортная деятельность)",1,null,"423010",238,null,0,4,null,null,null,3573,238,"423010","Транспортные услуги (перевозка грузов, перевозка пассажиров, вспомогательная транспортная деятельность)","Көлік қызметі (жүк тасымалдау, жолаушылар тасымалдау, қосалқы көлік қызметі)",4,0]
[3574,null,"Почтовые услуги и услуги курьерской связи","Пошта қызметтері және курьерлік байланыс қызметтері","Пошта қызметтері және курьерлік байланыс қызметтері\nПочтовые услуги и услуги курьерской связи",1,null,"423020",238,null,0,4,null,null,null,3574,238,"423020","Почтовые услуги и услуги курьерской связи","Пошта қызметтері және курьерлік байланыс қызметтері",4,0]
[3575,null,"Компьютерные услуги","Компьютерлік қызметтер","Компьютерлік қызметтер\nКомпьютерные услуги",1,null,"423030",238,null,0,4,null,null,null,3575,238,"423030","Компьютерные услуги","Компьютерлік қызметтер",4,0]
[3576,null,"Информационные услуги","Ақпараттық қызметтер","Ақпараттық қызметтер\nИнформационные услуги",1,null,"423040",238,null,0,4,null,null,null,3576,238,"423040","Информационные услуги","Ақпараттық қызметтер",4,0]
[3577,null,"Телекоммуникационные услуги","Телекоммуникациялық қызметтер","Телекоммуникациялық қызметтер\nТелекоммуникационные услуги",1,null,"423050",238,null,0,4,null,null,null,3577,238,"423050","Телекоммуникационные услуги","Телекоммуникациялық қызметтер",4,0]
[3584,null,"Плата за использование интеллектуальной собственности за пользование правами собственности (такими как патенты, авторские права, торговые марки, технологические процессы, дизайн и так далее), а также плату за лицензии  на воспроизводство и (или) распространение произведенных оригиналов и прототипов (таких как книги и рукописи, компьютерное программное обеспечение, кинематографические работы, звукозаписи и так далее)","Зияткерлік меншікті пайдаланғаны үшін ақы төлеуге меншік құқықтарын (патенттер, авторлық құқықтар, сауда белгілері, технологиялық процестер, дизайн сияқты тағы басқалар) пайдаланғаны үшін ақы төлеу, сондай-ақ  жасалынған түпнұсқаларды және прототиптерді (кітаптар және қолжазбалар, компьютерлік бағдарламалық қамтамасыз етулер, кинематографиялық жұмыстар, дыбыстық жазбалар және сияқты тағы басқалар) жасауға және (немесе) таратуға арналған лицензиялар үшін ақы","Зияткерлік меншікті пайдаланғаны үшін ақы төлеуге меншік құқықтарын (патенттер, авторлық құқықтар, сауда белгілері, технологиялық процестер, дизайн сияқты тағы басқалар) пайдаланғаны үшін ақы төлеу, сондай-ақ  жасалынған түпнұсқаларды және прототиптерді (кітаптар және қолжазбалар, компьютерлік бағдарламалық қамтамасыз етулер, кинематографиялық жұмыстар, дыбыстық жазбалар және сияқты тағы басқалар) жасауға және (немесе) таратуға арналған лицензиялар үшін ақы\nПлата за использование интеллектуальной собственности за пользование правами собственности (такими как патенты, авторские права, торговые марки, технологические процессы, дизайн и так далее), а также плату за лицензии  на воспроизводство и (или) распространение произведенных оригиналов и прототипов (таких как книги и рукописи, компьютерное программное обеспечение, кинематографические работы, звукозаписи и так далее)",1,null,"423060",238,null,0,4,null,null,null,3584,238,"423060","Плата за использование интеллектуальной собственности за пользование правами собственности (такими как патенты, авторские права, торговые марки, технологические процессы, дизайн и так далее), а также плату за лицензии  на воспроизводство и (или) распространение произведенных оригиналов и прототипов (таких как книги и рукописи, компьютерное программное обеспечение, кинематографические работы, звукозаписи и так далее)","Зияткерлік меншікті пайдаланғаны үшін ақы төлеуге меншік құқықтарын (патенттер, авторлық құқықтар, сауда белгілері, технологиялық процестер, дизайн сияқты тағы басқалар) пайдаланғаны үшін ақы төлеу, сондай-ақ  жасалынған түпнұсқаларды және прототиптерді (кітаптар және қолжазбалар, компьютерлік бағдарламалық қамтамасыз етулер, кинематографиялық жұмыстар, дыбыстық жазбалар және сияқты тағы басқалар) жасауға және (немесе) таратуға арналған лицензиялар үшін ақы",4,0]
[3585,null,"Строительные услуги","Құрылыс қызметтері","Құрылыс қызметтері\nСтроительные услуги",1,null,"423070",238,null,0,4,null,null,null,3585,238,"423070","Строительные услуги","Құрылыс қызметтері",4,0]
[3586,null,"Архитектурные, инженерные и прочие технические услуги (включая геофизические услуги)","Архитектуралық, инженерлік және басқа да техникалық қызметтер (геофизикалық қызметтерді қоса алғанда)","Архитектуралық, инженерлік және басқа да техникалық қызметтер (геофизикалық қызметтерді қоса алғанда)\nАрхитектурные, инженерные и прочие технические услуги (включая геофизические услуги)",1,null,"423080",238,null,0,4,null,null,null,3586,238,"423080","Архитектурные, инженерные и прочие технические услуги (включая геофизические услуги)","Архитектуралық, инженерлік және басқа да техникалық қызметтер (геофизикалық қызметтерді қоса алғанда)",4,0]
[3587,null,"Услуги в области добычи полезных ископаемых (включая буровые работы)","Пайдалы қазбаларды өндіру саласындағы қызметтер (бұрғылау жұмыстарын қоса алғанда)",{"$f":"CONCATENATE(IF(B554<>\"\",CONCATENATE(B554,\" \"),\"\"),IF(p_language_current_id=1,C554,IF(p_language_current_id=2,D554,IF(C554=D554,C554,CONCATENATE(D554,IF(F554=0,\" / \",CHAR(10)),C554)))),IF(G554<>\"\",CONCATENATE(\" \",G554),\"\"))","v":"Пайдалы қазбаларды өндіру саласындағы қызметтер (бұрғылау жұмыстарын қоса алғанда)\nУслуги в области добычи полезных ископаемых (включая буровые работы)"},1,null,"423090",238,null,0,4,null,null,null,3587,238,"423090","Услуги в области добычи полезных ископаемых (включая буровые работы)","Пайдалы қазбаларды өндіру саласындағы қызметтер (бұрғылау жұмыстарын қоса алғанда)",4,0]
[3588,null,"Аренда оборудования без персонала, аренда недвижимости, аренда транспортных средств без экипажа","Жабдықты қызметкерлерсіз жалдау, жылжымайтын мүлікті жалдау, көлік құралдарын экипажсыз жалдау","Жабдықты қызметкерлерсіз жалдау, жылжымайтын мүлікті жалдау, көлік құралдарын экипажсыз жалдау\nАренда оборудования без персонала, аренда недвижимости, аренда транспортных средств без экипажа",1,null,"423100",238,null,0,4,null,null,null,3588,238,"423100","Аренда оборудования без персонала, аренда недвижимости, аренда транспортных средств без экипажа","Жабдықты қызметкерлерсіз жалдау, жылжымайтын мүлікті жалдау, көлік құралдарын экипажсыз жалдау",4,0]
[3589,null,"Реклама, маркетинг","Жарнама, маркетинг","Жарнама, маркетинг\nРеклама, маркетинг",1,null,"423110",238,null,0,4,null,null,null,3589,238,"423110","Реклама, маркетинг","Жарнама, маркетинг",4,0]
[3590,null,"Юридические, бухгалтерские, аудиторские, консультационные услуги","Заң, бухгалтерлік, аудиторлық, консультациялық қызметтер","Заң, бухгалтерлік, аудиторлық, консультациялық қызметтер\nЮридические, бухгалтерские, аудиторские, консультационные услуги",1,null,"423120",238,null,0,4,null,null,null,3590,238,"423120","Юридические, бухгалтерские, аудиторские, консультационные услуги","Заң, бухгалтерлік, аудиторлық, консультациялық қызметтер",4,0]
[3591,null,"Прочие (пожалуйста, укажите)","Басқалары (өтінеміз, көрсетіңіз)","Басқалары (өтінеміз, көрсетіңіз)\nПрочие (пожалуйста, укажите)",1,null,"423130",238,null,0,4,null,null,null,3591,238,"423130","Прочие (пожалуйста, укажите)","Басқалары (өтінеміз, көрсетіңіз)",4,0]
[3592,null,"     (пожалуйста, укажите)","     (өтінеміз, көрсетіңіз)","     (өтінеміз, көрсетіңіз)\n     (пожалуйста, укажите)",1,null,"423131",238,null,0,6,null,null,null,3592,238,"423131","     (пожалуйста, укажите)","     (өтінеміз, көрсетіңіз)",6,0]
[3597,null,"Работают ли в Вашей организации иностранные служащие? (к иностранным служащим относятся иностранные граждане, нанятые на работу на срок менее года, и иностранные граждане, привлеченные на работу вахтовым методом)","Сіздің ұйымыңызда шетелдік қызметкерлер жұмыс істейді ме? (шетелдік қызметкерлерге бір жылдан аз мерзімге жұмысқа жалданған шетелдік азаматтар және вахталық әдіспен жұмысқа тартылған шетелдік азаматтар жатады)","Сіздің ұйымыңызда шетелдік қызметкерлер жұмыс істейді ме? (шетелдік қызметкерлерге бір жылдан аз мерзімге жұмысқа жалданған шетелдік азаматтар және вахталық әдіспен жұмысқа тартылған шетелдік азаматтар жатады)\nРаботают ли в Вашей организации иностранные служащие? (к иностранным служащим относятся иностранные граждане, нанятые на работу на срок менее года, и иностранные граждане, привлеченные на работу вахтовым методом)",1,null,"43100",239,null,2,null,null,null,null,3597,239,"43100","Работают ли в Вашей организации иностранные служащие? (к иностранным служащим относятся иностранные граждане, нанятые на работу на срок менее года, и иностранные граждане, привлеченные на работу вахтовым методом)","Сіздің ұйымыңызда шетелдік қызметкерлер жұмыс істейді ме? (шетелдік қызметкерлерге бір жылдан аз мерзімге жұмысқа жалданған шетелдік азаматтар және вахталық әдіспен жұмысқа тартылған шетелдік азаматтар жатады)",null,2]
[3598,null,"     Да","     Иә","     Иә\n     Да",1,null,"43110",239,null,0,4,null,null,null,3598,239,"43110","     Да","     Иә",4,0]
[3599,null,"     Нет","     Жоқ","     Жоқ\n     Нет",1,null,"43120",239,null,0,4,null,null,null,3599,239,"43120","     Нет","     Жоқ",4,0]
[3600,null,"Какое количество иностранных служащих работает в Вашей организации на дату заполнения анкеты?","Сіздің ұйымыңызда сауалнаманы толтыру уақытында шетелдік қызметкерлердің қандай саны жұмыс істеді?","Сіздің ұйымыңызда сауалнаманы толтыру уақытында шетелдік қызметкерлердің қандай саны жұмыс істеді?\nКакое количество иностранных служащих работает в Вашей организации на дату заполнения анкеты?",1,null,"43200",239,null,0,2,null,null,null,3600,239,"43200","Какое количество иностранных служащих работает в Вашей организации на дату заполнения анкеты?","Сіздің ұйымыңызда сауалнаманы толтыру уақытында шетелдік қызметкерлердің қандай саны жұмыс істеді?",2,0]
[3601,null,"Какова средняя заработная  плата, выплачиваемая иностранным служащим (в тенге)?","Шетелдік қызметкерлерге төленетін орташа еңбекақы қандай (теңгемен)?","Шетелдік қызметкерлерге төленетін орташа еңбекақы қандай (теңгемен)?\nКакова средняя заработная  плата, выплачиваемая иностранным служащим (в тенге)?",1,null,"43300",239,null,0,2,null,null,null,3601,239,"43300","Какова средняя заработная  плата, выплачиваемая иностранным служащим (в тенге)?","Шетелдік қызметкерлерге төленетін орташа еңбекақы қандай (теңгемен)?",2,0]
[3603,null,"Категория запрашиваемой информации, по которой следует представить график","Сұралған ақпараттың санаты, осы санат бойынша графикті ұсыну қажет","Сұралған ақпараттың санаты, осы санат бойынша графикті ұсыну қажет\nКатегория запрашиваемой информации, по которой следует представить график",1,null,"51010",240,null,2,null,null,null,null,3603,240,"51010","Категория запрашиваемой информации, по которой следует представить график","Сұралған ақпараттың санаты, осы санат бойынша графикті ұсыну қажет",null,2]
[3604,null,"     Требования к нерезидентам","     Бейрезиденттерге талаптар","     Бейрезиденттерге талаптар\n     Требования к нерезидентам",1,null,"51011",240,null,0,4,null,null,null,3604,240,"51011","     Требования к нерезидентам","     Резидент еместерге талаптар",4,0]
[3605,null,"     Обязательства перед нерезидентами","     Бейрезиденттердің алдындағы міндеттемелер","     Бейрезиденттердің алдындағы міндеттемелер\n     Обязательства перед нерезидентами",1,null,"51012",240,null,0,4,null,null,null,3605,240,"51012","     Обязательства перед нерезидентами","     Резидент еместердің алдындағы міндеттемелер",4,0]
[3606,null,"Финансовый инструмент, по которому следует представить график","Қаржылық құрал, осы құрал бойынша графикті ұсыну қажет","Қаржылық құрал, осы құрал бойынша графикті ұсыну қажет\nФинансовый инструмент, по которому следует представить график",1,null,"51020",240,null,2,null,null,null,null,3606,240,"51020","Финансовый инструмент, по которому следует представить график","Қаржылық құрал, осы құрал бойынша графикті ұсыну қажет",null,2]
[3700,null,"     Наличная иностранная валюта и депозиты","     Колма-қол шетел валютасы мен депозиттер","     Колма-қол шетел валютасы мен депозиттер\n     Наличная иностранная валюта и депозиты",1,null,"51024",240,null,0,4,null,null,null,3700,240,"51024","     Наличная иностранная валюта и депозиты","     Колма-қол шетел валютасы мен депозиттер",4,0]
[3607,null,"     Ссуды и займы","     Несиелер және заемдар","     Несиелер және заемдар\n     Ссуды и займы",1,null,"51021",240,null,0,4,null,null,null,3607,240,"51021","     Ссуды и займы","     Несиелер және заемдар",4,0]
[3608,null,"     Торговые (коммерческие) кредиты","     Саудалық (коммерциялық) кредиттер","     Саудалық (коммерциялық) кредиттер\n     Торговые (коммерческие) кредиты",1,null,"51022",240,null,0,4,null,null,null,3608,240,"51022","     Торговые (коммерческие) кредиты","     Саудалық (коммерциялық) кредиттер",4,0]
[3609,null,"     Прочая задолженность","     Басқа берешек","     Басқа берешек\n     Прочая задолженность",1,null,"51023",240,null,0,4,null,null,null,3609,240,"51023","     Прочая задолженность","     Басқа берешек",4,0]
[3611,null,"Задолженность на _ (указать дату) (далее - отчетная дата) (в тыс. долл. США)","жағдайы бойынша берешек _ (күнін көрсетіңіз) (бұдан әрі – есепті күн) (мың АҚШ долл.)","жағдайы бойынша берешек _ (күнін көрсетіңіз) (бұдан әрі – есепті күн) (мың АҚШ долл.)\nЗадолженность на _ (указать дату) (далее - отчетная дата) (в тыс. долл. США)",1,null,"51032",240,null,2,1,null,null,null,3611,240,"51032","Задолженность на _ (указать дату) (далее - отчетная дата) (в тыс. долл. США)","жағдайы бойынша берешек _ (күнін көрсетіңіз) (бұдан әрі – есепті күн) (мың АҚШ долл.)",1,2]
[3615,"","до востребования","талап етілетін","талап етілетін\nдо востребования",1,null,"52002",241,null,0,1,null,null,null,3615,241,"52002","до востребования","талап етілетін",1,0]
[3618,"","0-3","0-3","0-3",1,null,"52003",241,null,0,1,null,3617,null,3618,241,"52003","0-3","0-3",1,0]
[3619,"","4-6","4-6","4-6",1,null,"52004",241,null,0,1,null,3617,null,3619,241,"52004","4-6","4-6",1,0]
[3620,"","7-9","7-9","7-9",1,null,"52005",241,null,0,1,null,3617,null,3620,241,"52005","7-9","7-9",1,0]
[3621,null,"10-12","10-12","10-12",1,null,"52006",241,null,0,1,null,3617,null,3621,241,"52006","10-12","10-12",1,0]
[3622,null,"13-15","13-15","13-15",1,null,"52007",241,null,0,1,null,3617,null,3622,241,"52007","13-15","13-15",1,0]
[3623,null,"16-18","16-18","16-18",1,null,"52008",241,null,0,1,null,3617,null,3623,241,"52008","16-18","16-18",1,0]
[3624,null,"19-21","19-21","19-21",1,null,"52009",241,null,0,1,null,3617,null,3624,241,"52009","19-21","19-21",1,0]
[3625,null,"22-24","22-24","22-24",1,null,"52010",241,null,0,1,null,3617,null,3625,241,"52010","22-24","22-24",1,0]
[3626,null,"после 24 месяца","24 айдан кейін","24 айдан кейін\nпосле 24 месяца",1,null,"52011",241,null,0,1,null,3617,null,3626,241,"52011","после 24 месяца","24 айдан кейін",1,0]
[3628,null,"Категория запрашиваемой информации, по которой следует представить валютную структуру","Сұралған ақпараттың санаты, осы санат бойынша валюталық құрылымды ұсыну қажет","Сұралған ақпараттың санаты, осы санат бойынша валюталық құрылымды ұсыну қажет\nКатегория запрашиваемой информации, по которой следует представить валютную структуру",1,null,"61010",242,null,2,null,null,null,null,3628,242,"61010","Категория запрашиваемой информации, по которой следует представить валютную структуру","Сұралған ақпараттың санаты, осы санат бойынша валюталық құрылымды ұсыну қажет",null,2]
[3629,null,"     Требования к нерезидентам","     Бейрезиденттерге талаптар","     Бейрезиденттерге талаптар\n     Требования к нерезидентам",1,null,"61011",242,null,0,4,null,null,null,3629,242,"61011","     Требования к нерезидентам","     Резидент еместерге талаптар",4,0]
[3630,null,"     Обязательства перед нерезидентами","     Бейрезиденттердің алдындағы міндеттемелер",{"$f":"CONCATENATE(IF(B586<>\"\",CONCATENATE(B586,\" \"),\"\"),IF(p_language_current_id=1,C586,IF(p_language_current_id=2,D586,IF(C586=D586,C586,CONCATENATE(D586,IF(F586=0,\" / \",CHAR(10)),C586)))),IF(G586<>\"\",CONCATENATE(\" \",G586),\"\"))","v":"     Бейрезиденттердің алдындағы міндеттемелер\n     Обязательства перед нерезидентами"},1,null,"61012",242,null,0,4,null,null,null,3630,242,"61012","     Обязательства перед нерезидентами","     Резидент еместердің алдындағы міндеттемелер",4,0]
[3631,null,"Финансовый инструмент, по которому следует представить валютную структуру","Қаржылық құрал, осы құрал бойынша валюталық құрылымды ұсыну қажет","Қаржылық құрал, осы құрал бойынша валюталық құрылымды ұсыну қажет\nФинансовый инструмент, по которому следует представить валютную структуру",1,null,"61020",242,null,2,null,null,null,null,3631,242,"61020","Финансовый инструмент, по которому следует представить валютную структуру","Қаржылық құрал, осы құрал бойынша валюталық құрылымды ұсыну қажет",null,2]
[3701,null,"     Наличная иностранная валюта и депозиты","     Колма-қол шетел валютасы мен депозиттер","     Колма-қол шетел валютасы мен депозиттер\n     Наличная иностранная валюта и депозиты",1,null,"61024",242,null,0,4,null,null,null,3701,242,"61024","     Наличная иностранная валюта и депозиты","     Колма-қол шетел валютасы мен депозиттер",4,0]
[3632,null,"     Ссуды и займы","     Несиелер және заемдар","     Несиелер және заемдар\n     Ссуды и займы",1,null,"61021",242,null,0,4,null,null,null,3632,242,"61021","     Ссуды и займы","     Несиелер және заемдар",4,0]
[3633,null,"     Торговые (коммерческие) кредиты","     Саудалық (коммерциялық) кредиттер","     Саудалық (коммерциялық) кредиттер\n     Торговые (коммерческие) кредиты",1,null,"61022",242,null,0,4,null,null,null,3633,242,"61022","     Торговые (коммерческие) кредиты","     Саудалық (коммерциялық) кредиттер",4,0]
[3634,null,"     Прочая задолженность","     Басқа берешек","     Басқа берешек\n     Прочая задолженность",1,null,"61023",242,null,0,4,null,null,null,3634,242,"61023","     Прочая задолженность","     Басқа берешек",4,0]
[3636,null,"Задолженность на _ (указать дату) (далее - отчетная дата) (в тыс. долл. США)","жағдайы бойынша берешек _ (күнін көрсетіңіз) (бұдан әрі – есепті күн) (мың АҚШ долл.)","жағдайы бойынша берешек _ (күнін көрсетіңіз) (бұдан әрі – есепті күн) (мың АҚШ долл.)\nЗадолженность на _ (указать дату) (далее - отчетная дата) (в тыс. долл. США)",1,null,"61040",242,null,2,1,null,null,null,3636,242,"61040","Задолженность на _ (указать дату) (далее - отчетная дата) (в тыс. долл. США)","жағдайы бойынша берешек _ (күнін көрсетіңіз) (бұдан әрі – есепті күн) (мың АҚШ долл.)",1,2]
[3641,null,"тенге","теңге","теңге\nтенге",1,null,"62002",243,null,0,1,null,null,null,3641,243,"62002","тенге","теңге",1,0]
[3642,null,"доллар США","АҚШ доллары","АҚШ доллары\nдоллар США",1,null,"62003",243,null,0,1,null,null,null,3642,243,"62003","доллар США","АҚШ доллары",1,0]
[3643,null,"евро","еуро","еуро\nевро",1,null,"62004",243,null,0,1,null,null,null,3643,243,"62004","евро","еуро",1,0]
[3644,null,"Российский рубль","Ресей рублі","Ресей рублі\nРоссийский рубль",1,null,"62005",243,null,0,1,null,null,null,3644,243,"62005","Российский рубль","Ресей рублі",1,0]
[3645,null,"Швейцарский франк","Швейцар франкі","Швейцар франкі\nШвейцарский франк",1,null,"62006",243,null,0,1,null,null,null,3645,243,"62006","Швейцарский франк","Швейцар франкі",1,0]
[3646,null,"Специальные права заимствования","Арнайы қарыз алу құқықтары","Арнайы қарыз алу құқықтары\nСпециальные права заимствования",1,null,"62007",243,null,0,1,null,null,null,3646,243,"62007","Специальные права заимствования","Арнайы қарыз алу құқықтары",1,0]
[3647,null,"Канадский доллар","Канада доллары","Канада доллары\nКанадский доллар",1,null,"62008",243,null,0,1,null,null,null,3647,243,"62008","Канадский доллар","Канада доллары",1,0]
[3648,null,"Китайский юань","Қытай юаньі",{"$f":"CONCATENATE(IF(B600<>\"\",CONCATENATE(B600,\" \"),\"\"),IF(p_language_current_id=1,C600,IF(p_language_current_id=2,D600,IF(C600=D600,C600,CONCATENATE(D600,IF(F600=0,\" / \",CHAR(10)),C600)))),IF(G600<>\"\",CONCATENATE(\" \",G600),\"\"))","v":"Қытай юаньі\nКитайский юань"},1,null,"62009",243,null,0,1,null,null,null,3648,243,"62009","Китайский юань","Қытай юаньі",1,0]
[3649,null,"Другие виды валют","Басқа валюта түрлері",{"$f":"CONCATENATE(IF(B601<>\"\",CONCATENATE(B601,\" \"),\"\"),IF(p_language_current_id=1,C601,IF(p_language_current_id=2,D601,IF(C601=D601,C601,CONCATENATE(D601,IF(F601=0,\" / \",CHAR(10)),C601)))),IF(G601<>\"\",CONCATENATE(\" \",G601),\"\"))","v":"Басқа валюта түрлері\nДругие виды валют"},1,null,"62010",243,null,0,1,null,null,null,3649,243,"62010","Другие виды валют","Басқа валюта түрлері",1,0]
[3499,null,"Инвесторы, непосредственно владеющие долями в юридических лицах, указанных в столбцах А – В","А – В-бағандарда көрсетілген заңды тұлғаларда үлестерге тура ие болатын инвесторлар","А – В-бағандарда көрсетілген заңды тұлғаларда үлестерге тура ие болатын инвесторлар\nИнвесторы, непосредственно владеющие долями в юридических лицах, указанных в столбцах А – В",1,null,null,null,null,0,1]
[3617,null,"подлежит погашению в течение (месяцев), начиная с отчетной даты, указанной в части 5.1","5.1-бөлігінде көрсетілген есепті күннен бастап мерзімнің ішінде (айлармен) өтеуге тиіс","5.1-бөлігінде көрсетілген есепті күннен бастап мерзімнің ішінде (айлармен) өтеуге тиіс\nподлежит погашению в течение (месяцев), начиная с отчетной даты, указанной в части 5.1",1,null,null,null,null,0,1]
[]
["Справочник графов"]
["ID","Код слева","Наименование на русском языке","Наименование на казахском языке","Наименование","Перенос текста","Код справа","Код","Раздел","Стиль заголовков","Стиль данных","Тип данных","Примечание","Строка родитель","Запрос","select t.id_pb_col, th.name, th.name_kz, th.code, t.id_index_type_measure, th.id_pb_part from s_pb_col t join s_pb_col_his th on t.id_pb_col = th.id_pb_col where id_report = 47 and th.is_last = 1 and date_end is null order by num_order;"]
[55,null,"Значение","Мәні",{"$f":"CONCATENATE(IF(B607<>\"\",CONCATENATE(B607,\" \"),\"\"),IF(p_language_current_id=1,C607,IF(p_language_current_id=2,D607,IF(C607=D607,C607,CONCATENATE(D607,IF(F607=0,\" / \",CHAR(10)),C607)))),IF(G607<>\"\",CONCATENATE(\" \",G607),\"\"))","v":"Мәні\nЗначение"},1,null,"10001",205,null,null,null,null,null,null,55,"Значение","Мәні","10001",null,205]
[84,null,"№","№","№",1,null,"21110А",219,null,null,null,null,null,null,84,"№","№","21110А",null,219]
[56,null,"Значение","Мәні","Мәні\nЗначение",1,null,"22001",228,null,null,null,null,null,null,56,"Значение","Мәні","22001",null,228]
[85,null,"№","№","№",1,null,"22210А",220,null,null,null,null,null,null,85,"№","№","22210А",null,220]
[57,null,"Значение","Мәні","Мәні\nЗначение",1,null,"23001",229,null,null,null,null,null,null,57,"Значение","Мәні","23001",null,229]
[86,null,"№","№","№",1,null,"23210А",230,null,null,null,null,null,null,86,"№","№","23210А",null,230]
[87,null,"№","№","№",1,null,"2510А",117,null,null,null,null,null,null,87,"№","№","2510А",null,117]
[58,null,"Значение","Мәні","Мәні\nЗначение",1,null,"31001",232,null,null,null,null,null,null,58,"Значение","Мәні","31001",null,232]
[59,null,"Требования к нерезидентам","Бейрезиденттерге талаптар","Бейрезиденттерге талаптар\nТребования к нерезидентам",1,null,"32001",233,null,null,null,null,null,null,59,"Требования к нерезидентам","Резидент еместерге талаптар","32001",null,233]
[60,null,"Обязательства перед нерезидентами","Бейрезиденттердің алдындағы міндеттемелер","Бейрезиденттердің алдындағы міндеттемелер\nОбязательства перед нерезидентами",1,null,"32002",233,null,null,null,null,null,null,60,"Обязательства перед нерезидентами","Резидент еместердің алдындағы міндеттемелер","32002",null,233]
[61,null,"Примечание","Ескертпе","Ескертпе\nПримечание",1,null,"32003",233,null,null,6,null,null,null,61,"Примечание","Ескертпе","32003",6,233]
[62,null,"Значение","Мәні","Мәні\nЗначение",1,null,"33001",234,null,null,null,null,null,null,62,"Значение","Мәні","33001",null,234]
[63,null,"Значение","Мәні","Мәні\nЗначение",1,null,"34001",235,null,null,null,null,null,null,63,"Значение","Мәні","34001",null,235]
[64,null,"Значение","Мәні","Мәні\nЗначение",1,null,"41001",236,null,null,null,null,null,null,64,"Значение","Мәні","41001",null,236]
[65,null,"Значение","Мәні","Мәні\nЗначение",1,null,"42001",237,null,null,null,null,null,null,65,"Значение","Мәні","42001",null,237]
[66,null,"Экспорт","Экспорт","Экспорт",1,null,"43001",238,null,null,null,null,null,null,66,"Экспорт","Экспорт","43001",null,238]
[67,null,"Импорт","Импорт","Импорт",1,null,"43002",238,null,null,null,null,null,null,67,"Импорт","Импорт","43002",null,238]
[68,null,"Значение","Мәні","Мәні\nЗначение",1,null,"44001",239,null,null,null,null,null,null,68,"Значение","Мәні","44001",null,239]
[69,null,"Информация о задолженности, отраженной в 1-ПБ, по которой необходимо представить график погашения","1-ТБ көрсетілген берешек туралы ақпарат, өтеу графигін осы есеп бойынша ұсыну қажет","1-ТБ көрсетілген берешек туралы ақпарат, өтеу графигін осы есеп бойынша ұсыну қажет\nИнформация о задолженности, отраженной в 1-ПБ, по которой необходимо представить график погашения",1,null,"51001",240,null,null,null,null,null,null,69,"Информация о задолженности, отраженной в 1-ПБ, по которой необходимо представить график погашения","1-ТБ көрсетілген берешек туралы ақпарат, өтеу графигін осы есеп бойынша ұсыну қажет","51001",null,240]
[82,null,"Код показателя из формы 1-ПБ, указанный в части 5.1","5.1-бөлігінде көрсетілген 1-ТБ нысанынан көрсеткіштің коды","5.1-бөлігінде көрсетілген 1-ТБ нысанынан көрсеткіштің коды\nКод показателя из формы 1-ПБ, указанный в части 5.1",1,null,"5210А",241,null,null,null,null,null,null,82,"Код показателя из формы 1-ПБ, указанный в части 5.1","5.1-бөлігінде көрсетілген 1-ТБ нысанынан көрсеткіштің коды","5210А",null,241]
[85,null,"Детализация по экспортным и импортным операциям","Экспорттық және импорттық операциялар бойынша нақтылау","Экспорттық және импорттық операциялар бойынша нақтылау\nДетализация по экспортным и импортным операциям",1,null,"5230Б",241]
[79,null,"Задолженность по показателю, указанной в графе Б ","Б бағанында көрсетілген көрсеткіш бойынша берешек","Б бағанында көрсетілген көрсеткіш бойынша берешек\nЗадолженность по показателю, указанной в графе Б ",1,null,"52201",241,null,null,null,null,null,null,79,"Задолженность, указанная в части 5.1","5.1-бөлігінде көрсетілген берешек","52201",null,241]
[70,null,"Информация о задолженности, отраженной в 1-ПБ, по которой представляется валютная структура","1-ТБ көрсетілген берешек туралы ақпарат, валюталық құрылымды осы есеп бойынша ұсыну қажет","1-ТБ көрсетілген берешек туралы ақпарат, валюталық құрылымды осы есеп бойынша ұсыну қажет\nИнформация о задолженности, отраженной в 1-ПБ, по которой представляется валютная структура",1,null,"61001",242,null,null,null,null,null,null,70,"Информация о задолженности, отраженной в 1-ПБ, по которой представляется валютная структура","1-ТБ көрсетілген берешек туралы ақпарат, валюталық құрылымды осы есеп бойынша ұсыну қажет","61001",null,242]
[77,null,"Код показателя из формы 1-ПБ, указанный в части 6.1","6.1-бөлігінде көрсетілген 1-ТБ нысанынан көрсеткіштің коды","6.1-бөлігінде көрсетілген 1-ТБ нысанынан көрсеткіштің коды\nКод показателя из формы 1-ПБ, указанный в части 6.1",1,null,"6210А",243,null,null,null,null,null,null,77,"Код показателя из формы 1-ПБ, указанный в части 6.1","6.1-бөлігінде көрсетілген 1-ТБ нысанынан көрсеткіштің коды","6210А",null,243]
[78,null,"Задолженность, указанная в части 6.1","6.1-бөлігінде көрсетілген берешек","6.1-бөлігінде көрсетілген берешек\nЗадолженность, указанная в части 6.1",1,null,"62201",243,null,null,null,null,null,null,78,"Задолженность, указанная в части 6.1","6.1-бөлігінде көрсетілген берешек","62201",null,243]
[]
["Справочник индексов"]
["ID STR","ID COL","Стиль данных"]
[3506,60,2]
[3510,60,2]
[]
["Справочник справочников"]
["ID","ID меню","Справочник"]
[3459,100025,"p_country_name"]
[3473,100025,"p_country_name"]
[3486,100025,"p_country_name"]
[3496,100025,"p_country_name"]
[3675,100025,"p_country_name"]
[]
["ID","Код слева","Наименование на русском языке","Наименование на казахском языке","Наименование","Перенос текста","Код справа","Код"]
[1,null,"Всего по показателю из формы 1-ПБ","Барлығы 1-ТБ нысанынан көрсеткіштің коды бойынша",{"$f":"CONCATENATE(IF(B647<>\"\",CONCATENATE(B647,\" \"),\"\"),IF(p_language_current_id=1,C647,IF(p_language_current_id=2,D647,IF(C647=D647,C647,CONCATENATE(D647,IF(F647=0,\" / \",CHAR(10)),C647)))),IF(G647<>\"\",CONCATENATE(\" \",G647),\"\"))","v":"Барлығы 1-ТБ нысанынан көрсеткіштің коды бойынша\nВсего по показателю из формы 1-ПБ"},1,null,1]
[2,null,"По экспорту товаров (работ, услуг)","Тауарлар (жұмыстар, қызметтер) экспорты бойынша",{"$f":"CONCATENATE(IF(B648<>\"\",CONCATENATE(B648,\" \"),\"\"),IF(p_language_current_id=1,C648,IF(p_language_current_id=2,D648,IF(C648=D648,C648,CONCATENATE(D648,IF(F648=0,\" / \",CHAR(10)),C648)))),IF(G648<>\"\",CONCATENATE(\" \",G648),\"\"))","v":"Тауарлар (жұмыстар, қызметтер) экспорты бойынша\nПо экспорту товаров (работ, услуг)"},1,null,2]
[3,null,"По импорту товаров (работ, услуг)","Тауарлар (жұмыстар, қызметтер) импорты бойынша",{"$f":"CONCATENATE(IF(B649<>\"\",CONCATENATE(B649,\" \"),\"\"),IF(p_language_current_id=1,C649,IF(p_language_current_id=2,D649,IF(C649=D649,C649,CONCATENATE(D649,IF(F649=0,\" / \",CHAR(10)),C649)))),IF(G649<>\"\",CONCATENATE(\" \",G649),\"\"))","v":"Тауарлар (жұмыстар, қызметтер) импорты бойынша\nПо импорту товаров (работ, услуг)"},1,null,3]